Workbook

Sheet Rozcestí
C1: Ověřovací nástroj kvality PENB

Sheet 1. PENB
A1: Krok 1. | C1: Krok 2. | D1: Krok 3. | F1: Krok 4. | H1: Krok 5. | J1: Krok 6.
A2: ZDE
C3: Základní parametry z PENB | H3: Zpět | I3: Pokračovat | J3: Nápověda
C5: Účel zpracování průkazu
C10: Základní informace o hodnocené budově
C11: Geometrické charakteristiky budovy
C12: Parametr | H12: jednotky | I12: hodnota
C13: Objem budovy V (objem částí budovy s upravovaným vnitřním prostředím vymezený vnějšími povrchy konstrukcí obálky budovy) | H13: [m3]
C16: Celková plocha obálky budovy A (součet vnějších ploch konstrukcí ohraničujících objem budovy V) | H16: [m2] | I16: =D31 -> 0
C19: Objemový faktor tvaru budovy A/V | H19: [m2/m3] | I19: =I16/I13 -> 
C20: Celková energeticky vztažná plocha budovy Ac | H20: [m2]
C22: A) stavební prvky a konstrukce
C23: a.1) požadavky na součinitel prostupu tepla
C24: Konstrukce obálky budovy | D24: Plocha | E24: Součinitel prostupu tepla | H24: Činitel tepl. redukce bj | I24: Měrná ztráta prostupem tepla
E25: Vypočtená hodnota | F25: Referenční hodnota | G25: Splněno
D26: Aj | E26: Uj | F26: UN,rc,j | H26: bj | I26: HT,j
D27: [m2] | E27: [W/(m2.K)] | F27: [W/(m2.K)] | G27: [ano/ne] | H27: [-] | I27: [W/K]
C31: Celkem | D31: =SUM(D28:D30) -> 0 | E31: x | F31: x | G31: x | H31: x | I31: =SUM(I28:I30) -> 0

Sheet 2. Bytové jednotky
A1: Krok 1. | D1: Krok 2. | E1: Krok 3. | F1: Krok 4. | G1: Krok 5.
A2: =IF(SUM('1. PENB'!I13:I15)>0,IF(SUM('1. PENB'!I20)>0,IF(SUM('1. PENB'!D31)>0,IF(SUM('1. PENB'!I31)>0,"Zadáno","Nezadáno"),"Nezadáno"),"Nezadáno"),"Nezadáno") -> Nezadáno | D2: ZDE
C3: Popis stavebních konstrukcí | E3: Zpět | F3: Pokračovat | G3: Nápověda
C5: Obvodové stěny mezi vytápěnou částí a venkovním prostředím | D5: Čistá plocha bez výplní (m2) | E5: Materiál stěny | F5: Existující zateplení (cm) | G5: Uvažované U (W/m2.K)
C6: Obvodová stěna 1 | G6: =IF(D6>0,Vypocet!I4,"") -> 
C7: Obvodová stěna 2 | G7: =IF(D7>0,Vypocet!I5,"") -> 
C8: Obvodová stěna 3 | G8: =IF(D8>0,Vypocet!I6,"") -> 
C9: Obvodová stěna 4 | G9: =IF(D9>0,Vypocet!I7,"") -> 
C10: Obvodová stěna 5 | G10: =IF(D10>0,Vypocet!I8,"") -> 
C11: Obvodová stěna 6 | G11: =IF(D11>0,Vypocet!I9,"") -> 
C12: Obvodová stěna 7 | G12: =IF(D12>0,Vypocet!I10,"") -> 
C13: Obvodová stěna 8 | G13: =IF(D13>0,Vypocet!I11,"") -> 
C14: Obvodová stěna 9 | G14: =IF(D14>0,Vypocet!I12,"") -> 
C15: Obvodová stěna 10 | G15: =IF(D15>0,Vypocet!I13,"") -> 
C18: Obvodové stěny mezi vytápěnou částí a venkovním prostředím | D18: Plocha oken a dveří (m2) | E18: Typ výplňové konstrukce | F18: Poznámka | G18: Uvažované U (W/m2.K)
C19: Okna a dveře 1 | G19: =IF(D19>0,Vypocet!I40,"") -> 
C20: Okna a dveře 2 | G20: =IF(D20>0,Vypocet!I41,"") -> 
C21: Okna a dveře 3 | G21: =IF(D21>0,Vypocet!I42,"") -> 
C22: Okna a dveře 4 | G22: =IF(D22>0,Vypocet!I43,"") -> 
C23: Okna a dveře 5 | G23: =IF(D23>0,Vypocet!I44,"") -> 
C24: Okna a dveře 6 | G24: =IF(D24>0,Vypocet!I45,"") -> 
C25: Okna a dveře 7 | G25: =IF(D25>0,Vypocet!I46,"") -> 
C26: Okna a dveře 8 | G26: =IF(D26>0,Vypocet!I47,"") -> 
C27: Střešní okna 1 | G27: =IF(D27>0,Vypocet!I48,"") -> 
C28: Střešní okna 2 | G28: =IF(D28>0,Vypocet!I49,"") -> 
C31: Podlahy | D31: Celková plocha (m2) | E31: Typ podlahy | F31: Tloušťka izolace v podlaze (cm) | G31: Uvažované U (W/m2.K)
C32: Podlaha na terénu 1 | G32: =IF(D32>0,Vypocet!I16,"") -> 
C33: Podlaha na terénu 2 | G33: =IF(D33>0,Vypocet!I17,"") -> 
C34: Podlaha na terénu 3 | G34: =IF(D34>0,Vypocet!I18,"") -> 
C36: Podlaha nad nevytápěným sklepem 1 | G36: =IF(D36>0,Vypocet!I20,"") -> 
C37: Podlaha nad nevytápěným sklepem 2 | G37: =IF(D37>0,Vypocet!I21,"") -> 
C38: Podlaha nad nevytápěným sklepem 3 | G38: =IF(D38>0,Vypocet!I22,"") -> 
C41: Střechy a stropy | D41: Celková plocha (m2) | E41: Typ střechy | F41: Existující dodatečná tepelná izolace (cm) | G41: Uvažované U (W/m2.K)
C42: Střecha plochá nebo do 45 ° 1 | G42: =IF(D42>0,Vypocet!I25,"") -> 
C43: Střecha plochá nebo do 45 ° 2 | G43: =IF(D43>0,Vypocet!I26,"") -> 
C45: Střecha šikmá nad 45 ° 1 | G45: =IF(D45>0,Vypocet!I28,"") -> 
C46: Střecha šikmá nad 45 ° 2 | G46: =IF(D46>0,Vypocet!I29,"") -> 
C48: Strop pod půdou 1 | G48: =IF(D48>0,Vypocet!I31,"") -> 
C49: Strop pod půdou 2 | G49: =IF(D49>0,Vypocet!I32,"") -> 
C51: Ostatní | D51: Celková plocha (m2) | E51: Materiál | F51: Existující dodatečná tepelná izolace (cm) | G51: Uvažované U (W/m2.K)
C52: Stěna k nevytápěnému prostoru 1 | G52: =IF(D52>0,Vypocet!I35,"") -> 
C53: Stěna k nevytápěnému prostoru 2 | G53: =IF(D53>0,Vypocet!I36,"") -> 
C54: Stěna ke stejně vytápěnému prostoru 1 | G54: =IF(D54>0,Vypocet!I37,"") -> 
C55: Stěna ke stejně vytápěnému prostoru 2 | G55: =IF(D55>0,Vypocet!I38,"") -> 

Sheet 3. Schodišťový prostor
A1: Krok 1. | D1: Krok 2. | E1: Krok 3. | F1: Krok 4. | G1: Krok 5.
A2: =IF(SUM('1. PENB'!I13:I15)>0,IF(SUM('1. PENB'!I20)>0,IF(SUM('1. PENB'!D31)>0,IF(SUM('1. PENB'!I31)>0,"Zadáno","Nezadáno"),"Nezadáno"),"Nezadáno"),"Nezadáno") -> Nezadáno | D2: =IF(SUM('2. Bytové jednotky'!D6:D15)>0,IF(SUM('2. Bytové jednotky'!D19:D28)>0,IF(SUM('2. Bytové jednotky'!D32:D34,'2. Bytové jednotky'!D36:D38)>0,IF(SUM('2. Bytové jednotky'!D42:D43,'2. Bytové jednotky'!D45:D46,'2. Bytové jednotky'!D48:D49)>0,"Zadáno","Nezadáno"),"Nezadáno"),"Nezadáno"),"Nezadáno") -> Nezadáno | E2: ZDE
C3: Popis stavebních konstrukcí | E3: Zpět | F3: Pokračovat | G3: Nápověda
C5: Obvodové stěny mezi vytápěnou částí a venkovním prostředím | D5: Čistá plocha bez výplní (m2) | E5: Materiál stěny | F5: Existující zateplení (cm) | G5: Uvažované U (W/m2.K)
C6: Obvodová stěna 1 | G6: =IF(D6>0,Vypocet!AC4,"") -> 
C7: Obvodová stěna 2 | G7: =IF(D7>0,Vypocet!AC5,"") -> 
C8: Obvodová stěna 3 | G8: =IF(D8>0,Vypocet!AC6,"") -> 
C9: Obvodová stěna 4 | G9: =IF(D9>0,Vypocet!AC7,"") -> 
C10: Obvodová stěna 5 | G10: =IF(D10>0,Vypocet!AC8,"") -> 
C11: Obvodová stěna 6 | G11: =IF(D11>0,Vypocet!AC9,"") -> 
C12: Obvodová stěna 7 | G12: =IF(D12>0,Vypocet!AC10,"") -> 
C13: Obvodová stěna 8 | G13: =IF(D13>0,Vypocet!AC11,"") -> 
C14: Obvodová stěna 9 | G14: =IF(D14>0,Vypocet!AC12,"") -> 
C15: Obvodová stěna 10 | G15: =IF(D15>0,Vypocet!AC13,"") -> 
C18: Obvodové stěny mezi vytápěnou částí a venkovním prostředím | D18: Plocha oken a dveří (m2) | E18: Typ výplňové konstrukce | F18: Poznámka | G18: Uvažované U (W/m2.K)
C19: Okna a dveře 1 | G19: =IF(D19>0,Vypocet!AC40,"") -> 
C20: Okna a dveře 2 | G20: =IF(D20>0,Vypocet!AC41,"") -> 
C21: Okna a dveře 3 | G21: =IF(D21>0,Vypocet!AC42,"") -> 
C22: Okna a dveře 4 | G22: =IF(D22>0,Vypocet!AC43,"") -> 
C23: Okna a dveře 5 | G23: =IF(D23>0,Vypocet!AC44,"") -> 
C24: Okna a dveře 6 | G24: =IF(D24>0,Vypocet!AC45,"") -> 
C25: Okna a dveře 7 | G25: =IF(D25>0,Vypocet!AC46,"") -> 
C26: Okna a dveře 8 | G26: =IF(D26>0,Vypocet!AC47,"") -> 
C27: Střešní okna 1 | G27: =IF(D27>0,Vypocet!AC48,"") -> 
C28: Střešní okna 2 | G28: =IF(D28>0,Vypocet!AC49,"") -> 
C31: Podlahy | D31: Celková plocha (m2) | E31: Typ podlahy | F31: Tloušťka izolace v podlaze (cm) | G31: Uvažované U (W/m2.K)
C32: Podlaha na terénu 1 | G32: =IF(D32>0,Vypocet!AC16,"") -> 
C33: Podlaha na terénu 2 | G33: =IF(D33>0,Vypocet!AC17,"") -> 
C34: Podlaha na terénu 3 | G34: =IF(D34>0,Vypocet!AC18,"") -> 
C36: Podlaha nad nevytápěným sklepem 1 | G36: =IF(D36>0,Vypocet!AC20,"") -> 
C37: Podlaha nad nevytápěným sklepem 2 | G37: =IF(D37>0,Vypocet!AC21,"") -> 
C38: Podlaha nad nevytápěným sklepem 3 | G38: =IF(D38>0,Vypocet!AC22,"") -> 
C41: Střechy a stropy | D41: Celková plocha (m2) | E41: Typ střechy | F41: Existující dodatečná tepelná izolace (cm) | G41: Uvažované U (W/m2.K)
C42: Střecha plochá nebo do 45 ° 1 | G42: =IF(D42>0,Vypocet!AC25,"") -> 
C43: Střecha plochá nebo do 45 ° 2 | G43: =IF(D43>0,Vypocet!AC26,"") -> 
C45: Střecha šikmá nad 45 ° 1 | G45: =IF(D45>0,Vypocet!AC28,"") -> 
C46: Střecha šikmá nad 45 ° 2 | G46: =IF(D46>0,Vypocet!AC29,"") -> 
C48: Strop pod půdou 1 | G48: =IF(D48>0,Vypocet!AC31,"") -> 
C49: Strop pod půdou 2 | G49: =IF(D49>0,Vypocet!AC32,"") -> 
C51: Ostatní | D51: Celková plocha (m2) | E51: Materiál | F51: Existující dodatečná tepelná izolace (cm) | G51: Uvažované U (W/m2.K)
C52: Stěna k nevytápěnému prostoru 1 | G52: =IF(D52>0,Vypocet!AC35,"") -> 
C53: Stěna k nevytápěnému prostoru 2 | G53: =IF(D53>0,Vypocet!AC36,"") -> 
C54: Stěna ke stejně vytápěnému prostoru 1 | G54: =IF(D54>0,Vypocet!AC37,"") -> 
C55: Stěna ke stejně vytápěnému prostoru 2 | G55: =IF(D55>0,Vypocet!AC38,"") -> 

Sheet 4. Technické podlaží-garáže
A1: Krok 1. | D1: Krok 2. | E1: Krok 3. | F1: Krok 4. | G1: Krok 5.
A2: =IF(SUM('1. PENB'!I13:I15)>0,IF(SUM('1. PENB'!I20)>0,IF(SUM('1. PENB'!D31)>0,IF(SUM('1. PENB'!I31)>0,"Zadáno","Nezadáno"),"Nezadáno"),"Nezadáno"),"Nezadáno") -> Nezadáno | D2: =IF(SUM('2. Bytové jednotky'!D6:D15)>0,IF(SUM('2. Bytové jednotky'!D19:D28)>0,IF(SUM('2. Bytové jednotky'!D32:D34,'2. Bytové jednotky'!D36:D38)>0,IF(SUM('2. Bytové jednotky'!D42:D43,'2. Bytové jednotky'!D45:D46,'2. Bytové jednotky'!D48:D49)>0,"Zadáno","Nezadáno"),"Nezadáno"),"Nezadáno"),"Nezadáno") -> Nezadáno | E2: =IF(SUM('3. Schodišťový prostor'!D6:D15)>0,IF(SUM('3. Schodišťový prostor'!D19:D28)>0,IF(SUM('3. Schodišťový prostor'!D32:D34,'3. Schodišťový prostor'!D36:D38)>0,IF(SUM('3. Schodišťový prostor'!D42:D43,'3. Schodišťový prostor'!D45:D46,'3. Schodišťový prostor'!D48:D49)>0,"Zadáno","Nezadáno"),"Nezadáno"),"Nezadáno"),"Nezadáno") -> Nezadáno | F2: ZDE
C3: Popis stavebních konstrukcí | E3: Zpět | F3: Pokračovat | G3: Nápověda
C5: Obvodové stěny mezi vytápěnou částí a venkovním prostředím | D5: Čistá plocha bez výplní (m2) | E5: Materiál stěny | F5: Existující zateplení (cm) | G5: Uvažované U (W/m2.K)
C6: Obvodová stěna 1 | G6: =IF(D6>0,Vypocet!AW4,"") -> 
C7: Obvodová stěna 2 | G7: =IF(D7>0,Vypocet!AW5,"") -> 
C8: Obvodová stěna 3 | G8: =IF(D8>0,Vypocet!AW6,"") -> 
C9: Obvodová stěna 4 | G9: =IF(D9>0,Vypocet!AW7,"") -> 
C10: Obvodová stěna 5 | G10: =IF(D10>0,Vypocet!AW8,"") -> 
C11: Obvodová stěna 6 | G11: =IF(D11>0,Vypocet!AW9,"") -> 
C12: Obvodová stěna 7 | G12: =IF(D12>0,Vypocet!AW10,"") -> 
C13: Obvodová stěna 8 | G13: =IF(D13>0,Vypocet!AW11,"") -> 
C14: Obvodová stěna 9 | G14: =IF(D14>0,Vypocet!AW12,"") -> 
C15: Obvodová stěna 10 | G15: =IF(D15>0,Vypocet!AW13,"") -> 
C18: Obvodové stěny mezi vytápěnou částí a venkovním prostředím | D18: Plocha oken a dveří (m2) | E18: Typ výplňové konstrukce | F18: Poznámka | G18: Uvažované U (W/m2.K)
C19: Okna a dveře 1 | G19: =IF(D19>0,Vypocet!AW40,"") -> 
C20: Okna a dveře 2 | G20: =IF(D20>0,Vypocet!AW41,"") -> 
C21: Okna a dveře 3 | G21: =IF(D21>0,Vypocet!AW42,"") -> 
C22: Okna a dveře 4 | G22: =IF(D22>0,Vypocet!AW43,"") -> 
C23: Okna a dveře 5 | G23: =IF(D23>0,Vypocet!AW44,"") -> 
C24: Okna a dveře 6 | G24: =IF(D24>0,Vypocet!AW45,"") -> 
C25: Okna a dveře 7 | G25: =IF(D25>0,Vypocet!AW46,"") -> 
C26: Okna a dveře 8 | G26: =IF(D26>0,Vypocet!AW47,"") -> 
C27: Střešní okna 1 | G27: =IF(D27>0,Vypocet!AW48,"") -> 
C28: Střešní okna 2 | G28: =IF(D28>0,Vypocet!AW49,"") -> 
C31: Podlahy | D31: Celková plocha (m2) | E31: Typ podlahy | F31: Tloušťka izolace v podlaze (cm) | G31: Uvažované U (W/m2.K)
C32: Podlaha na terénu 1 | G32: =IF(D32>0,Vypocet!AW16,"") -> 
C33: Podlaha na terénu 2 | G33: =IF(D33>0,Vypocet!AW17,"") -> 
C34: Podlaha na terénu 3 | G34: =IF(D34>0,Vypocet!AW18,"") -> 
C36: Podlaha nad nevytápěným sklepem 1 | G36: =IF(D36>0,Vypocet!AW20,"") -> 
C37: Podlaha nad nevytápěným sklepem 2 | G37: =IF(D37>0,Vypocet!AW21,"") -> 
C38: Podlaha nad nevytápěným sklepem 3 | G38: =IF(D38>0,Vypocet!AW22,"") -> 
C41: Střechy a stropy | D41: Celková plocha (m2) | E41: Typ střechy | F41: Existující dodatečná tepelná izolace (cm) | G41: Uvažované U (W/m2.K)
C42: Střecha plochá nebo do 45 ° 1 | G42: =IF(D42>0,Vypocet!AW25,"") -> 
C43: Střecha plochá nebo do 45 ° 2 | G43: =IF(D43>0,Vypocet!AW26,"") -> 
C45: Střecha šikmá nad 45 ° 1 | G45: =IF(D45>0,Vypocet!AW28,"") -> 
C46: Střecha šikmá nad 45 ° 2 | G46: =IF(D46>0,Vypocet!AW29,"") -> 
C48: Strop pod půdou 1 | G48: =IF(D48>0,Vypocet!AW31,"") -> 
C49: Strop pod půdou 2 | G49: =IF(D49>0,Vypocet!AW32,"") -> 
C51: Ostatní | D51: Celková plocha (m2) | E51: Materiál | F51: Existující dodatečná tepelná izolace (cm) | G51: Uvažované U (W/m2.K)
C52: Stěna k nevytápěnému prostoru 1 | G52: =IF(D52>0,Vypocet!AW35,"") -> 
C53: Stěna k nevytápěnému prostoru 2 | G53: =IF(D53>0,Vypocet!AW36,"") -> 
C54: Stěna ke stejně vytápěnému prostoru 1 | G54: =IF(D54>0,Vypocet!AW37,"") -> 
C55: Stěna ke stejně vytápěnému prostoru 2 | G55: =IF(D55>0,Vypocet!AW38,"") -> 

Sheet 5. Geometrie - Byty
A1: Krok 1. | D1: Krok 2. | E1: Krok 3. | F1: Krok 4. | G1: Krok 5. | I1: Krok 6. | K1: Krok 7. | L1: Krok 8. | M1: Krok 9. | N1: Krok 10.
A2: =IF(SUM('1. PENB'!I13:I15)>0,IF(SUM('1. PENB'!I20)>0,IF(SUM('1. PENB'!D31)>0,IF(SUM('1. PENB'!I31)>0,"Zadáno","Nezadáno"),"Nezadáno"),"Nezadáno"),"Nezadáno") -> Nezadáno | D2: =IF(SUM('2. Bytové jednotky'!D6:D15)>0,IF(SUM('2. Bytové jednotky'!D19:D28)>0,IF(SUM('2. Bytové jednotky'!D32:D34,'2. Bytové jednotky'!D36:D38)>0,IF(SUM('2. Bytové jednotky'!D42:D43,'2. Bytové jednotky'!D45:D46,'2. Bytové jednotky'!D48:D49)>0,"Zadáno","Nezadáno"),"Nezadáno"),"Nezadáno"),"Nezadáno") -> Nezadáno | E2: =IF(SUM('3. Schodišťový prostor'!D6:D15)>0,IF(SUM('3. Schodišťový prostor'!D19:D28)>0,IF(SUM('3. Schodišťový prostor'!D32:D34,'3. Schodišťový prostor'!D36:D38)>0,IF(SUM('3. Schodišťový prostor'!D42:D43,'3. Schodišťový prostor'!D45:D46,'3. Schodišťový prostor'!D48:D49)>0,"Zadáno","Nezadáno"),"Nezadáno"),"Nezadáno"),"Nezadáno") -> Nezadáno | F2: =IF(SUM('4. Technické podlaží-garáže'!D6:D15)>0,IF(SUM('4. Technické podlaží-garáže'!D19:D28)>0,IF(SUM('4. Technické podlaží-garáže'!D32:D34,'4. Technické podlaží-garáže'!D36:D38)>0,IF(SUM('4. Technické podlaží-garáže'!D42:D43,'4. Technické podlaží-garáže'!D45:D46,'4. Technické podlaží-garáže'!D48:D49)>0,"Zadáno","Nezadáno"),"Nezadáno"),"Nezadáno"),"Nezadáno") -> Nezadáno | G2: ZDE
K3: Zpět | L3: Pokračovat | M3: Nápověda
D5: Objem z vnějších rozměrů | G5: m3
D7: Počet vytápěných podlaží
D9: Pomocná kalkulačka pro základní tvar
D10: základní rozměry kontrolované zóny určené z vnějších rozměrů je nutné zadat vždy! | E10: a
E11: b
E12: c
E13: d
E14: e
E15: Výsledek | F15: =F10*F11*F12+F13*F14*F10+(F12-F13)*F10*F14 -> 0 | G15: m3
D17: pozn. zadávají se vnější rozměry

Sheet 6. Geometrie - Sch
A1: Krok 1. | D1: Krok 2. | E1: Krok 3. | F1: Krok 4. | G1: Krok 5. | I1: Krok 6. | K1: Krok 7. | L1: Krok 8. | M1: Krok 9. | N1: Krok 10.
A2: =IF(SUM('1. PENB'!I13:I15)>0,IF(SUM('1. PENB'!I20)>0,IF(SUM('1. PENB'!D31)>0,IF(SUM('1. PENB'!I31)>0,"Zadáno","Nezadáno"),"Nezadáno"),"Nezadáno"),"Nezadáno") -> Nezadáno | D2: =IF(SUM('2. Bytové jednotky'!D6:D15)>0,IF(SUM('2. Bytové jednotky'!D19:D28)>0,IF(SUM('2. Bytové jednotky'!D32:D34,'2. Bytové jednotky'!D36:D38)>0,IF(SUM('2. Bytové jednotky'!D42:D43,'2. Bytové jednotky'!D45:D46,'2. Bytové jednotky'!D48:D49)>0,"Zadáno","Nezadáno"),"Nezadáno"),"Nezadáno"),"Nezadáno") -> Nezadáno | E2: =IF(SUM('3. Schodišťový prostor'!D6:D15)>0,IF(SUM('3. Schodišťový prostor'!D19:D28)>0,IF(SUM('3. Schodišťový prostor'!D32:D34,'3. Schodišťový prostor'!D36:D38)>0,IF(SUM('3. Schodišťový prostor'!D42:D43,'3. Schodišťový prostor'!D45:D46,'3. Schodišťový prostor'!D48:D49)>0,"Zadáno","Nezadáno"),"Nezadáno"),"Nezadáno"),"Nezadáno") -> Nezadáno | F2: =IF(SUM('4. Technické podlaží-garáže'!D6:D15)>0,IF(SUM('4. Technické podlaží-garáže'!D19:D28)>0,IF(SUM('4. Technické podlaží-garáže'!D32:D34,'4. Technické podlaží-garáže'!D36:D38)>0,IF(SUM('4. Technické podlaží-garáže'!D42:D43,'4. Technické podlaží-garáže'!D45:D46,'4. Technické podlaží-garáže'!D48:D49)>0,"Zadáno","Nezadáno"),"Nezadáno"),"Nezadáno"),"Nezadáno") -> Nezadáno | G2: =IF('5. Geometrie - Byty'!F5>0,IF('5. Geometrie - Byty'!F7>0,IF('5. Geometrie - Byty'!F10>0,IF('5. Geometrie - Byty'!F11>0,IF('5. Geometrie - Byty'!F12>0,"Zadáno","Nezadáno"),"Nezadáno"),"Nezadáno"),"Nezadáno"),"Nezadáno") -> Nezadáno | I2: ZDE
K3: Zpět | L3: Pokračovat | M3: Nápověda
D5: Objem z vnějších rozměrů | G5: m3
D7: Počet vytápěných podlaží
D9: Pomocná kalkulačka pro základní tvar
D10: základní rozměry kontrolované zóny určené z vnějších rozměrů je nutné zadat vždy! | E10: a
E11: b
E12: c
E15: Výsledek | F15: =F10*F11*F12+F13*F14*F10+(F12-F13)*F10*F14 -> 0 | G15: m3
D17: pozn. zadávají se vnější rozměry

Sheet 7. Geometrie - Tech
A1: Krok 1. | D1: Krok 2. | E1: Krok 3. | F1: Krok 4. | G1: Krok 5. | I1: Krok 6. | K1: Krok 7. | L1: Krok 8. | M1: Krok 9. | N1: Krok 10.
A2: =IF(SUM('1. PENB'!I13:I15)>0,IF(SUM('1. PENB'!I20)>0,IF(SUM('1. PENB'!D31)>0,IF(SUM('1. PENB'!I31)>0,"Zadáno","Nezadáno"),"Nezadáno"),"Nezadáno"),"Nezadáno") -> Nezadáno | D2: =IF(SUM('2. Bytové jednotky'!D6:D15)>0,IF(SUM('2. Bytové jednotky'!D19:D28)>0,IF(SUM('2. Bytové jednotky'!D32:D34,'2. Bytové jednotky'!D36:D38)>0,IF(SUM('2. Bytové jednotky'!D42:D43,'2. Bytové jednotky'!D45:D46,'2. Bytové jednotky'!D48:D49)>0,"Zadáno","Nezadáno"),"Nezadáno"),"Nezadáno"),"Nezadáno") -> Nezadáno | E2: =IF(SUM('3. Schodišťový prostor'!D6:D15)>0,IF(SUM('3. Schodišťový prostor'!D19:D28)>0,IF(SUM('3. Schodišťový prostor'!D32:D34,'3. Schodišťový prostor'!D36:D38)>0,IF(SUM('3. Schodišťový prostor'!D42:D43,'3. Schodišťový prostor'!D45:D46,'3. Schodišťový prostor'!D48:D49)>0,"Zadáno","Nezadáno"),"Nezadáno"),"Nezadáno"),"Nezadáno") -> Nezadáno | F2: =IF(SUM('4. Technické podlaží-garáže'!D6:D15)>0,IF(SUM('4. Technické podlaží-garáže'!D19:D28)>0,IF(SUM('4. Technické podlaží-garáže'!D32:D34,'4. Technické podlaží-garáže'!D36:D38)>0,IF(SUM('4. Technické podlaží-garáže'!D42:D43,'4. Technické podlaží-garáže'!D45:D46,'4. Technické podlaží-garáže'!D48:D49)>0,"Zadáno","Nezadáno"),"Nezadáno"),"Nezadáno"),"Nezadáno") -> Nezadáno | G2: =IF('5. Geometrie - Byty'!F5>0,IF('5. Geometrie - Byty'!F7>0,IF('5. Geometrie - Byty'!F10>0,IF('5. Geometrie - Byty'!F11>0,IF('5. Geometrie - Byty'!F12>0,"Zadáno","Nezadáno"),"Nezadáno"),"Nezadáno"),"Nezadáno"),"Nezadáno") -> Nezadáno | I2: =IF('6. Geometrie - Sch'!F5>0,IF('6. Geometrie - Sch'!F7>0,IF('6. Geometrie - Sch'!F10>0,IF('6. Geometrie - Sch'!F11>0,IF('6. Geometrie - Sch'!F12>0,"Zadáno","Nezadáno"),"Nezadáno"),"Nezadáno"),"Nezadáno"),"Nezadáno") -> Nezadáno | K2: ZDE
D3: Ostatní vstupy | K3: Zpět | L3: Pokračovat | M3: Nápověda
D5: Objem z vnějších rozměrů | G5: m3
D7: Počet vytápěných podlaží
D9: Pomocná kalkulačka pro základní tvar
D10: základní rozměry kontrolované zóny určené z vnějších rozměrů je nutné zadat vždy! | E10: a
E11: b
E12: c
E15: Výsledek | F15: =F10*F11*F12+F13*F14*F10+(F12-F13)*F10*F14 -> 0 | G15: m3
D17: pozn. zadávají se vnější rozměry

Sheet 8. Tepelně tech. parametry
A1: Krok 1. | C1: Krok 2. | E1: Krok 3. | G1: Krok 4. | I1: Krok 5. | N1: Krok 6. | O1: Krok 7. | Q1: Krok 8. | S1: Krok 9. | T1: Krok 10.
A2: =IF(SUM('1. PENB'!I13:I15)>0,IF(SUM('1. PENB'!I20)>0,IF(SUM('1. PENB'!D31)>0,IF(SUM('1. PENB'!I31)>0,"Zadáno","Nezadáno"),"Nezadáno"),"Nezadáno"),"Nezadáno") -> Nezadáno | C2: =IF(SUM('2. Bytové jednotky'!D6:D15)>0,IF(SUM('2. Bytové jednotky'!D19:D28)>0,IF(SUM('2. Bytové jednotky'!D32:D34,'2. Bytové jednotky'!D36:D38)>0,IF(SUM('2. Bytové jednotky'!D42:D43,'2. Bytové jednotky'!D45:D46,'2. Bytové jednotky'!D48:D49)>0,"Zadáno","Nezadáno"),"Nezadáno"),"Nezadáno"),"Nezadáno") -> Nezadáno | E2: =IF(SUM('3. Schodišťový prostor'!D6:D15)>0,IF(SUM('3. Schodišťový prostor'!D19:D28)>0,IF(SUM('3. Schodišťový prostor'!D32:D34,'3. Schodišťový prostor'!D36:D38)>0,IF(SUM('3. Schodišťový prostor'!D42:D43,'3. Schodišťový prostor'!D45:D46,'3. Schodišťový prostor'!D48:D49)>0,"Zadáno","Nezadáno"),"Nezadáno"),"Nezadáno"),"Nezadáno") -> Nezadáno | G2: =IF(SUM('4. Technické podlaží-garáže'!D6:D15)>0,IF(SUM('4. Technické podlaží-garáže'!D19:D28)>0,IF(SUM('4. Technické podlaží-garáže'!D32:D34,'4. Technické podlaží-garáže'!D36:D38)>0,IF(SUM('4. Technické podlaží-garáže'!D42:D43,'4. Technické podlaží-garáže'!D45:D46,'4. Technické podlaží-garáže'!D48:D49)>0,"Zadáno","Nezadáno"),"Nezadáno"),"Nezadáno"),"Nezadáno") -> Nezadáno | I2: =IF('5. Geometrie - Byty'!F5>0,IF('5. Geometrie - Byty'!F7>0,IF('5. Geometrie - Byty'!F10>0,IF('5. Geometrie - Byty'!F11>0,IF('5. Geometrie - Byty'!F12>0,"Zadáno","Nezadáno"),"Nezadáno"),"Nezadáno"),"Nezadáno"),"Nezadáno") -> Nezadáno | N2: =IF('6. Geometrie - Sch'!F5>0,IF('6. Geometrie - Sch'!F7>0,IF('6. Geometrie - Sch'!F10>0,IF('6. Geometrie - Sch'!F11>0,IF('6. Geometrie - Sch'!F12>0,"Zadáno","Nezadáno"),"Nezadáno"),"Nezadáno"),"Nezadáno"),"Nezadáno") -> Nezadáno | O2: =IF('7. Geometrie - Tech'!F5>0,IF('7. Geometrie - Tech'!F7>0,IF('7. Geometrie - Tech'!F10>0,IF('7. Geometrie - Tech'!F11>0,IF('7. Geometrie - Tech'!F12>0,"Zadáno","Nezadáno"),"Nezadáno"),"Nezadáno"),"Nezadáno"),"Nezadáno") -> Nezadáno | Q2: ZDE
B3: Základní parametry z PENB | F3: Zpět | G3: Pokračovat | I3: Nápověda | N3: Kontrolní hodnoty
B5: Základní informace o hodnocené budově | N5: Základní informace o kontrolní budově
B6: Geometrické charakteristiky budovy | N6: Geometrické charakteristiky budovy
B7: Parametr | G7: jednotky | H7: hodnota | N7: Parametr | S7: jednotky | T7: hodnota
B8: Objem budovy V (objem částí budovy s upravovaným vnitřním prostředím vymezený vnějšími povrchy konstrukcí obálky budovy) | G8: [m3] | H8: =SUM('1. PENB'!I13:I15) -> 0 | N8: Objem budovy V (objem částí budovy s upravovaným vnitřním prostředím vymezený vnějšími povrchy konstrukcí obálky budovy) | S8: [m3] | T8: =('5. Geometrie - Byty'!F5+'7. Geometrie - Tech'!F5) -> 0
B11: Celková plocha obálky budovy A (součet vnějších ploch konstrukcí ohraničujících objem budovy V) | G11: [m2] | H11: =C45 -> 0 | N11: Celková plocha obálky budovy A (součet vnějších ploch konstrukcí ohraničujících objem budovy V) | S11: [m2] | T11: =Vypocet!J51+Vypocet!AD51+Vypocet!AX51 -> 0
B14: Objemový faktor tvaru budovy A/V | G14: [m2/m3] | H14: =H11/H8 ->  | N14: Objemový faktor tvaru budovy A/V | S14: [m2/m3] | T14: =T11/T8 -> 
B15: Celková energeticky vztažná plocha budovy Ac | G15: [m2] | H15: ='1. PENB'!I20 -> 0 | N15: Celková energeticky vztažná plocha budovy Ac | S15: [m2] | T15: =(Vypocet!G108*Vypocet!G109)+(Vypocet!X108*Vypocet!X109)+(Vypocet!AR108*Vypocet!AR109) -> 0
B17: A) stavební prvky a konstrukce | N17: A) stavební prvky a konstrukce kontrolní budovy
B18: a.1) požadavky na součinitel prostupu tepla | N18: a.1) požadavky na součinitel prostupu tepla
B19: Konstrukce obálky budovy | C19: Plocha | D19: Součinitel prostupu tepla | G19: Činitel tepl. redukce bj | H19: Měrná ztráta prostupem tepla | N19: Konstrukce obálky budovy | O19: Plocha | P19: Součinitel prostupu tepla | S19: Činitel tepl. redukce bj | T19: Měrná ztráta prostupem tepla
D20: Vypočtená hodnota | E20: Referenční hodnota | F20: Splněno | P20: Vypočtená hodnota | Q20: Referenční hodnota | R20: Splněno
C21: Aj | D21: Uj | E21: UN,rc,j | G21: bj | H21: HT,j | O21: Aj | P21: Uj | Q21: UN,rc,j | S21: bj | T21: HT,j
G22: bj | H22: HT,j | S22: bj | T22: HT,j
C23: [m2] | D23: [W/(m2.K)] | E23: [W/(m2.K)] | F23: [ano/ne] | G23: [-] | H23: [W/K] | O23: [m2] | P23: [W/(m2.K)] | Q23: [W/(m2.K)] | R23: [ano/ne] | S23: [-] | T23: [W/K]
N24: Bytové jednotky
N25: Obvodové zdivo | O25: =SUM(Vypocet!J4:J13) -> 0 | P25: -- | Q25: -- | R25: -- | S25: -- | T25: =SUM(Vypocet!L4:L13) -> 0
N26: Podlahy | O26: =SUM(Vypocet!J16:J18,Vypocet!J20:J22) -> 0 | P26: -- | Q26: -- | R26: -- | S26: -- | T26: =SUM(Vypocet!L16:L18,Vypocet!L20:L22) -> 0
N27: Střechy a stropy | O27: =SUM(Vypocet!J25:J26,Vypocet!J28:J29,Vypocet!J31:J32) -> 0 | P27: -- | Q27: -- | R27: -- | S27: -- | T27: =SUM(Vypocet!L25:L26,Vypocet!L28:L29,Vypocet!L31:L32) -> 0
N28: Stěny k nevyt. prostoru | O28: =SUM(Vypocet!J35:J38) -> 0 | P28: -- | Q28: -- | R28: -- | S28: -- | T28: =SUM(Vypocet!L35:L38) -> 0
N29: Otvorová výplň | O29: =SUM(Vypocet!J40:J49) -> 0 | P29: -- | Q29: -- | R29: -- | S29: -- | T29: =SUM(Vypocet!L40:L49) -> 0
N30: Tepelné mosty | O30: -- | P30: -- | Q30: -- | R30: -- | S30: -- | T30: =Vypocet!L51 -> 0
N31: Schodišťový prostor
N32: Obvodové zdivo | O32: =SUM(Vypocet!AD4:AD13) -> 0 | P32: -- | Q32: -- | R32: -- | S32: -- | T32: =SUM(Vypocet!AF4:AF13) -> 0
N33: Podlahy | O33: =SUM(Vypocet!AD16:AD18,Vypocet!AD20:AD22) -> 0 | P33: -- | Q33: -- | R33: -- | S33: -- | T33: =SUM(Vypocet!AF16:AF18,Vypocet!AF20:AF22) -> 0
N34: Střechy a stropy | O34: =SUM(Vypocet!AD25:AD26,Vypocet!AD28:AD29,Vypocet!AD31:AD32) -> 0 | P34: -- | Q34: -- | R34: -- | S34: -- | T34: =SUM(Vypocet!AF25:AF26,Vypocet!AF28:AF29,Vypocet!AF31:AF32) -> 0
N35: Stěny k nevyt. prostoru | O35: =SUM(Vypocet!AD35:AD38) -> 0 | P35: -- | Q35: -- | R35: -- | S35: -- | T35: =SUM(Vypocet!AF35:AF38) -> 0
N36: Otvorová výplň | O36: =SUM(Vypocet!AD40:AD49) -> 0 | P36: -- | Q36: -- | R36: -- | S36: -- | T36: =SUM(Vypocet!AF40:AF49) -> 0
N37: Tepelné mosty | O37: -- | P37: -- | Q37: -- | R37: -- | S37: -- | T37: =Vypocet!AF51 -> 0
N38: Technické podlaží/ Garáže
N39: Obvodové zdivo | O39: =SUM(Vypocet!AX4:AX13) -> 0 | P39: -- | Q39: -- | R39: -- | S39: -- | T39: =SUM(Vypocet!AZ4:AZ13) -> 0
N40: Podlahy | O40: =SUM(Vypocet!AX16:AX18,Vypocet!AX20:AX22) -> 0 | P40: -- | Q40: -- | R40: -- | S40: -- | T40: =SUM(Vypocet!AZ16:AZ18,Vypocet!AZ20:AZ22) -> 0
N41: Střechy a stropy | O41: =SUM(Vypocet!AX25:AX26,Vypocet!AX28:AX29,Vypocet!AX31:AX32) -> 0 | P41: -- | Q41: -- | R41: -- | S41: -- | T41: =SUM(Vypocet!AZ25:AZ26,Vypocet!AZ28:AZ29,Vypocet!AZ31:AZ32) -> 0
N42: Stěny k nevyt. prostoru | O42: =SUM(Vypocet!AX35:AX38) -> 0 | P42: -- | Q42: -- | R42: -- | S42: -- | T42: =SUM(Vypocet!AZ35:AZ38) -> 0
N43: Otvorová výplň | O43: =SUM(Vypocet!AX40:AX49) -> 0 | P43: -- | Q43: -- | R43: -- | S43: -- | T43: =SUM(Vypocet!AZ40:AZ49) -> 0
N44: Tepelné mosty | O44: -- | P44: -- | Q44: -- | R44: -- | S44: -- | T44: =Vypocet!AZ51 -> 0
B45: Celkem | C45: =SUM('1. PENB'!D31) -> 0 | D45: x | E45: x | F45: x | G45: x | H45: =SUM('1. PENB'!I31) -> 0 | N45: Celkem | O45: =SUM(O30:O44) -> 0 | P45: x | Q45: x | R45: x | S45: x | T45: =SUM(T25:T44) -> 0
B48: Průměrný součinitel prostupu tepla budovy, Uem | G48: =IF(H11=0,"",H45/H11) ->  | H48: [W/(m2K)] | N48: Průměrný součinitel prostupu tepla budovy, Uem | S48: =T45/T11 ->  | T48: [W/(m2K)]
B50: pozn: spočteno z výše zadaných hodnot

Sheet 9. Technické systémy
A1: Krok 1. | D1: Krok 2. | F1: Krok 3. | G1: Krok 4. | I1: Krok 5. | J1: Krok 6. | M1: Krok 7. | P1: Krok 8. | S1: Krok 9. | V1: Krok 10.
A2: =IF(SUM('1. PENB'!I13:I15)>0,IF(SUM('1. PENB'!I20)>0,IF(SUM('1. PENB'!D31)>0,IF(SUM('1. PENB'!I31)>0,"Zadáno","Nezadáno"),"Nezadáno"),"Nezadáno"),"Nezadáno") -> Nezadáno | D2: =IF(SUM('2. Bytové jednotky'!D6:D15)>0,IF(SUM('2. Bytové jednotky'!D19:D28)>0,IF(SUM('2. Bytové jednotky'!D32:D34,'2. Bytové jednotky'!D36:D38)>0,IF(SUM('2. Bytové jednotky'!D42:D43,'2. Bytové jednotky'!D45:D46,'2. Bytové jednotky'!D48:D49)>0,"Zadáno","Nezadáno"),"Nezadáno"),"Nezadáno"),"Nezadáno") -> Nezadáno | F2: =IF(SUM('3. Schodišťový prostor'!D6:D15)>0,IF(SUM('3. Schodišťový prostor'!D19:D28)>0,IF(SUM('3. Schodišťový prostor'!D32:D34,'3. Schodišťový prostor'!D36:D38)>0,IF(SUM('3. Schodišťový prostor'!D42:D43,'3. Schodišťový prostor'!D45:D46,'3. Schodišťový prostor'!D48:D49)>0,"Zadáno","Nezadáno"),"Nezadáno"),"Nezadáno"),"Nezadáno") -> Nezadáno | G2: =IF(SUM('4. Technické podlaží-garáže'!D6:D15)>0,IF(SUM('4. Technické podlaží-garáže'!D19:D28)>0,IF(SUM('4. Technické podlaží-garáže'!D32:D34,'4. Technické podlaží-garáže'!D36:D38)>0,IF(SUM('4. Technické podlaží-garáže'!D42:D43,'4. Technické podlaží-garáže'!D45:D46,'4. Technické podlaží-garáže'!D48:D49)>0,"Zadáno","Nezadáno"),"Nezadáno"),"Nezadáno"),"Nezadáno") -> Nezadáno | I2: =IF('5. Geometrie - Byty'!F5>0,IF('5. Geometrie - Byty'!F7>0,IF('5. Geometrie - Byty'!F10>0,IF('5. Geometrie - Byty'!F11>0,IF('5. Geometrie - Byty'!F12>0,"Zadáno","Nezadáno"),"Nezadáno"),"Nezadáno"),"Nezadáno"),"Nezadáno") -> Nezadáno | J2: =IF('6. Geometrie - Sch'!F5>0,IF('6. Geometrie - Sch'!F7>0,IF('6. Geometrie - Sch'!F10>0,IF('6. Geometrie - Sch'!F11>0,IF('6. Geometrie - Sch'!F12>0,"Zadáno","Nezadáno"),"Nezadáno"),"Nezadáno"),"Nezadáno"),"Nezadáno") -> Nezadáno | M2: =IF('7. Geometrie - Tech'!F5>0,IF('7. Geometrie - Tech'!F7>0,IF('7. Geometrie - Tech'!F10>0,IF('7. Geometrie - Tech'!F11>0,IF('7. Geometrie - Tech'!F12>0,"Zadáno","Nezadáno"),"Nezadáno"),"Nezadáno"),"Nezadáno"),"Nezadáno") -> Nezadáno | P2: =IF(SUM('8. Tepelně tech. parametry'!T8:T10)>0,IF(SUM('8. Tepelně tech. parametry'!T11:T13)>0,IF(SUM('8. Tepelně tech. parametry'!T15)>0,IF(SUM('8. Tepelně tech. parametry'!T45)>0,"Zadáno","Nezadáno"),"Nezadáno"),"Nezadáno"),"Nezadáno") -> Nezadáno | S2: ZDE
C3: Hodnoty pro technické systémy z PENB | M3: Zpět | Q3: Pokračovat | U3: Nápověda
C5: B) technické systémy
C6: b.1.a) vytápění
C7: Hodnocená budova/zóna | F7: Typ zdroje | I7: Energo- nositel | J7: Pokrytí dílčí potřeby energie na vytápění | N7: Jmenovitý tepelný výkon | P7: Účinnost výroby energie zdrojem tepla | S7: Účinnost distribuce energie na vytápění | U7: Účinnost sdílení energie na vytápění
P8: ηH,gen | R8: COP | S8: ηH,dis | U8: ηH,em
F9: [-] | I9: [-] | J9: [%] | N9: [kW] | P9: [%] | R9: [-] | S9: [%] | U9: [%]
C10: Referenční budova | F10: x | I10: x | J10: x | N10: x | P10: =IF(E14="*",80,IF(E19="*",80,IF(E24="*",80,""))) ->  | R10: -- | S10: =IF(E14="*",85,IF(E19="*",85,IF(E24="*",85,""))) ->  | U10: =IF(E14="*",80,IF(E19="*",80,IF(E24="*",80,""))) -> 
C11: Hodnocená budova/zóna:
C12: 1. | D12: Bytové jednotky | F12: Zdroj | G12: Rozvody | I12: Energonositel
E13: * | G13: =IF(Data!B186=0,"","*") -> 
E14: =IF(Data!B186=0,"","*") ->  | G14: =IF(Data!B186=0,"","*") -> 
E15: =IF(Data!O177="-","","*") ->  | G15: Koncové prvky
G16: =IF(Data!B186=0,"","*") -> 
C17: 2. | D17: Bytové jednotky | F17: Zdroj | G17: Rozvody | I17: Energonositel
E18: * | G18: =IF(Data!X186=0,"","*") ->  | H18: =IF(Data!B186=0,"","*") -> 
E19: =IF(Data!X186=0,"","*") ->  | G19: =IF(Data!X186=0,"","*") -> 
E20: =IF(Data!AF177="-","","*") ->  | G20: Koncové prvky
G21: =IF(Data!X186=0,"","*") -> 
C22: 3. | D22: Bytové jednotky | F22: Zdroj | G22: Rozvody | I22: Energonositel
E23: * | G23: =IF(Data!AN186=0,"","*") -> 
E24: =IF(Data!AN186=0,"","*") ->  | G24: =IF(Data!AN186=0,"","*") -> 
E25: =IF(Data!AV177="-","","*") ->  | G25: Koncové prvky
G26: =IF(Data!AN186=0,"","*") -> 
C27: 4. | D27: Bytové jednotky | F27: Zdroj | G27: Rozvody | I27: Energonositel
E28: * | G28: =IF(Data!BD186=0,"","*") -> 
E29: =IF(Data!BD186=0,"","*") ->  | G29: =IF(Data!BD186=0,"","*") -> 
E30: =IF(Data!BL177="-","","*") ->  | G30: Koncové prvky
G31: =IF(Data!BD186=0,"","*") -> 
C32: 5. | D32: Bytové jednotky | F32: Zdroj | G32: Rozvody | I32: Energonositel
E33: * | G33: =IF(Data!BT186=0,"","*") -> 
E34: =IF(Data!BT186=0,"","*") ->  | G34: =IF(Data!BT186=0,"","*") -> 
E35: =IF(Data!CB177="-","","*") ->  | G35: Koncové prvky
G36: =IF(Data!BT186=0,"","*") -> 
C37: Solární kolektory | F37: Typ kolektoru | H37: Účel | I37: Energonositel | N37: Plocha apertury (účinná plocha solárního kolektoru) | S37: =IF(Data!I677=3,S88,"") ->  | U37: m2
F38: =IF(Data!I677=3,Data!B679,"") ->  | H38: =IF(Data!I677=3,Data!J677,"") ->  | I38: Energie okolního prostředí (Slunce)
C39: Schodišťový prostor | F39: V modelu je uvažováno, že výše uvedené zdroje pro vytápění budou zároveň sloužit k pokrytí tepelných ztrát ostatních zón (schodište, technické podlaží).
C40: Technické podlaží/ Garáže | F40: V modelu je uvažováno, že výše uvedené zdroje pro vytápění budou zároveň sloužit k pokrytí tepelných ztrát ostatních zón (schodište, technické podlaží).
J41: =IF(SUM(J12+J17+J22+J27+J32+J37)=1,"V pořádku",IF(SUM(J12+J17+J22+J27+J32+J37)=0,"","Nesprávně zadáno")) -> 
C42: b.2.a) chlazení
C43: Hodnocená budova/zóna | F43: Typ zdroje chlazení | I43: Energo- nositel | J43: Pokrytí dílčí potřeby energie na chlazení | N43: Jmenovitý chladící výkon | P43: Chladicí faktor zdroje chladu | S43: Účinnost distribuce energie na chlazení | U43: Účinnost sdílení energie na chlazení
P44: EERC,gen | S44: ηC,dis | U44: ηC,em
F45: [-] | I45: [-] | J45: [%] | N45: [kW] | P45: [-] | S45: [%] | U45: [%]
C46: Referenční budova | F46: x | I46: x | J46: x | N46: x | P46: =IF(Data!K299=0,"",2.7) ->  | S46: =IF(Data!K299=0,"",85) ->  | U46: =IF(Data!K299=0,"",85) -> 
C47: Hodnocená budova/zóna:
C48: Rodinny dům | F48: Zdroj | I48: Energonositel
E49: *
J50: =IF(SUM(J48)=1,"V pořádku",IF(SUM(J48)=0,"","Nesprávně zadáno")) -> 
C51: b.3) větrání
C52: Hodnocená budova/zóna | F52: Typ větracího systému | I52: Energo- nositel | J52: Tepelný výkon | M52: Chladící výkon | O52: Pokrytí dílčí potřeby energie na větrání | Q52: Jmen. elektr. příkon systému větrání | S52: Jmen. objem. průtok větracího vzduchu | U52: Měrný příkon ventilátoru nuceného větrání
U53: SFPahu
F54: [-] | I54: [-] | J54: [kW] | M54: [kW] | O54: [%] | Q54: [kW] | S54: [m3/hod] | U54: [W.s/m3]
C55: Referenční budova | F55: x | I55: x | J55: x | M55: x | O55: x | Q55: x | S55: x | U55: =IF('9. Technické systémy'!E59="*",1750,"") -> 
C56: Hodnocená budova/zóna:
C57: Bytové jednotky | F57: Zdroj | H57: Měrný příkonu ventilátorů | I57: Energonositel
E58: * | G58: =IF(Data!J361="-","","*") -> 
E59: =IF(Data!J361="-","","*") ->  | G59: =IF(Data!J361="-","","*") -> 
O60: =IF(SUM(O57)=1,"V pořádku",IF(SUM(O57)=0,"","Nesprávně zadáno")) -> 
C61: b.4) úprava vlhkosti vzduchu
C62: Hodnocená budova/zóna | F62: Typ systému vlhčení | J62: Energo- nositel | M62: Jmenovitý elektrický příkon | P62: Jmenovitý tepelný výkon | S62: Pokrytí dílčí dodané energie na úpravu vlhkosti | U62: Účinnost zdroje úpravy vlhkosti systému vlhčení
U63: ηRH+,gen
F64: [-] | J64: [-] | M64: [kW] | P64: [kW] | S64: [%] | U64: [%]
C65: Referenční budova | F65: x | J65: x | M65: x | P65: x | S65: x | U65: 70
C66: Hodnocená budova/zóna:
C67: Rodinny dům
C70: b.5.a) příprava teplé vody (TV)
C71: Hodnocená budova/zóna | F71: Systém přípravy TV v budově | I71: Energo- nositel | J71: Pokrytí dílčí potřeby energie na přípravu teplé vody | L71: Jmen. příkon pro ohřev TV | N71: Objem zásobníku TV | P71: Účinnost zdroje tepla pro přípravu teplé vody | S71: Měrná tepelná ztráta zásobníku teplé vody | U71: Měrná tepelná ztráta rozvodů teplé vody
P72: ηW,gen | R72: COP | S72: QW,st | U72: QW,dis
F73: [-] | I73: [-] | J73: [%] | L73: [kW] | N73: [litry] | P73: [%] | R73: [-] | S73: [Wh/l.d] | U73: [Wh/m.d]
C74: Referenční budova | F74: x | I74: x | J74: x | L74: x | N74: x | P74: =IF(Data!H445>10,85,IF(E82="*",85,IF(E86="*",85,""))) ->  | R74: -- | S74: =IF(Data!H445>10,7,IF(E82="*",7,IF(E86="*",7,""))) ->  | U74: =IF(Data!H445>10,150,IF(E82="*",150,IF(E86="*",150,""))) -> 
C75: Hodnocená budova/zóna:
C76: 1. | D76: Bytové jednotky | F76: Zdroj | G76: Zásobník teplé vody
E77: * | G77: * | I77: Energonositel
E78: =IF(Data!J437="-","","*") ->  | G78: =IF(Data!J556="-","","*") -> 
E79: =IF(Data!O437="-","","*") ->  | G79: =IF(Data!O556="-","","*") -> 
C80: 2. | D80: Bytové jednotky | F80: Zdroj | G80: Zásobník teplé vody
E81: * | G81: * | I81: Energonositel
E82: =IF(Data!AA437="-","","*") ->  | G82: =IF(Data!AA556="-","","*") -> 
E83: =IF(Data!AF437="-","","*") ->  | G83: =IF(Data!AF556="-","","*") -> 
C84: 3. | D84: Bytové jednotky | F84: Zdroj | G84: Zásobník teplé vody
E85: * | G85: * | I85: Energonositel
E86: =IF(Data!AQ437="-","","*") ->  | G86: =IF(Data!AQ556="-","","*") -> 
E87: =IF(Data!AV437="-","","*") ->  | G87: =IF(Data!AV556="-","","*") -> 
C88: Solární kolektory | F88: Typ kolektoru | H88: Účel | I88: Energonositel | L88: Plocha apertury (účinná plocha solárního kolektoru) | U88: m2
I89: Energie okolního prostředí (Slunce)
J90: =IF(SUM(J76+J80+J84+J88)=1,"V pořádku",IF(SUM(J76+J80+J84+J88)=0,"","Nesprávně zadáno")) -> 
C91: b) dílčí dodané energie
C92: ř. | K92: Vytápění | M92: Chlazení | O92: Větrání | Q92: Úprava vlhkosti vzduchu | S92: Příprava teplé vody | U92: Osvětlení
K93: Ref. budova | L93: Hod. budova | M93: Ref. budova | N93: Hod. budova | O93: Ref. budova | P93: Hod. budova | Q93: Ref. budova | R93: Hod. budova | S93: Ref. budova | T93: Hod. budova | U93: Ref. budova | V93: Hod. budova
C94: (1) | E94: Potřeba energie | J94: [MWh/rok] | O94: x | P94: x | U94: x | V94: x
C95: (2) | E95: Vypočtená spotřeba energie | J95: [MWh/rok]
C96: (3) | E96: Pomocná energie | J96: [MWh/rok]
C97: (4) | E97: Dílčí dodaná energie (ř.4)=(ř.2)+(ř.3) | J97: [MWh/rok] | L97: =IF((L95+L96)=0,"",(L95+L96)) ->  | N97: =IF((N95+N96)=0,"",(N95+N96)) ->  | P97: =IF((P95+P96)=0,"",(P95+P96)) ->  | R97: =IF((R95+R96)=0,"",(R95+R96)) ->  | T97: =IF((T95+T96)=0,"",(T95+T96)) ->  | V97: =IF((V95+V96)=0,"",(V95+V96)) -> 
C98: (5) | E98: Měrná dílčí dodaná energie na celkovou energeticky vztažnou plochu (ř.4) / m2 | J98: [kWh/(m2.rok)] | L98: =IF(L97="","",((L97/'1. PENB'!I20)*1000)) ->  | N98: =IF(N97="","",((N97/'1. PENB'!I20)*1000)) ->  | P98: =IF(P97="","",((P97/'1. PENB'!I20)*1000)) ->  | R98: =IF(R97="","",((R97/'1. PENB'!I20)*1000)) ->  | T98: =IF(T97="","",((T97/'1. PENB'!I20)*1000)) ->  | V98: =IF(V97="","",((V97/'1. PENB'!I20)*1000)) -> 
C100: d) rozdělení dílčích dodaných energií, celkové primární energie a neobnovitelné primární energie podle energonositelů
C101: Energonositel | F101: Dílčí vypočtená spotřeba energie / Pomocná energie | H101: Faktor celkové primární energie | I101: Faktor neobnovitelné primární energie | J101: Celková primární energie | Q101: Neobnovitelná primární energie
F102: [MWh/rok] | H102: [-] | I102: [-] | J102: [MWh/rok] | Q102: [MWh/rok]
C105: Celkem | F105: =IF(SUM(L97,N97,P97,R97,T97,V97)=0,"",SUM(L97,N97,P97,R97,T97,V97)) ->  | H105: x | I105: x

Sheet 10. Vyhodnocení
A1: Krok 1. | F1: Krok 2. | J1: Krok 3. | O1: Krok 4. | T1: Krok 5. | AA1: Krok 6. | AD1: Krok 7. | AH1: Krok 8. | AL1: Krok 9. | AP1: Krok 10.
A2: =IF(SUM('1. PENB'!I13:I15)>0,IF(SUM('1. PENB'!I20)>0,IF(SUM('1. PENB'!D31)>0,IF(SUM('1. PENB'!I31)>0,"Zadáno","Nezadáno"),"Nezadáno"),"Nezadáno"),"Nezadáno") -> Nezadáno | F2: =IF(SUM('3. Schodišťový prostor'!D6:D15)>0,IF(SUM('3. Schodišťový prostor'!D19:D28)>0,IF(SUM('3. Schodišťový prostor'!D32:D34,'3. Schodišťový prostor'!D36:D38)>0,IF(SUM('3. Schodišťový prostor'!D42:D43,'3. Schodišťový prostor'!D45:D46,'3. Schodišťový prostor'!D48:D49)>0,"Zadáno","Nezadáno"),"Nezadáno"),"Nezadáno"),"Nezadáno") -> Nezadáno | J2: =IF(SUM('4. Technické podlaží-garáže'!D6:D15)>0,IF(SUM('4. Technické podlaží-garáže'!D19:D28)>0,IF(SUM('4. Technické podlaží-garáže'!D32:D34,'4. Technické podlaží-garáže'!D36:D38)>0,IF(SUM('4. Technické podlaží-garáže'!D42:D43,'4. Technické podlaží-garáže'!D45:D46,'4. Technické podlaží-garáže'!D48:D49)>0,"Zadáno","Nezadáno"),"Nezadáno"),"Nezadáno"),"Nezadáno") -> Nezadáno | O2: =IF('5. Geometrie - Byty'!F5>0,IF('5. Geometrie - Byty'!F7>0,IF('5. Geometrie - Byty'!F10>0,IF('5. Geometrie - Byty'!F11>0,IF('5. Geometrie - Byty'!F12>0,"Zadáno","Nezadáno"),"Nezadáno"),"Nezadáno"),"Nezadáno"),"Nezadáno") -> Nezadáno | T2: =IF('5. Geometrie - Byty'!F5>0,IF('5. Geometrie - Byty'!F7>0,IF('5. Geometrie - Byty'!F10>0,IF('5. Geometrie - Byty'!F11>0,IF('5. Geometrie - Byty'!F12>0,"Zadáno","Nezadáno"),"Nezadáno"),"Nezadáno"),"Nezadáno"),"Nezadáno") -> Nezadáno | AA2: =IF('6. Geometrie - Sch'!F5>0,IF('6. Geometrie - Sch'!F7>0,IF('6. Geometrie - Sch'!F10>0,IF('6. Geometrie - Sch'!F11>0,IF('6. Geometrie - Sch'!F12>0,"Zadáno","Nezadáno"),"Nezadáno"),"Nezadáno"),"Nezadáno"),"Nezadáno") -> Nezadáno | AD2: =IF('7. Geometrie - Tech'!F5>0,IF('7. Geometrie - Tech'!F7>0,IF('7. Geometrie - Tech'!F10>0,IF('7. Geometrie - Tech'!F11>0,IF('7. Geometrie - Tech'!F12>0,"Zadáno","Nezadáno"),"Nezadáno"),"Nezadáno"),"Nezadáno"),"Nezadáno") -> Nezadáno | AH2: =IF(SUM('8. Tepelně tech. parametry'!T8:T10)>0,IF(SUM('8. Tepelně tech. parametry'!T11:T13)>0,IF(SUM('8. Tepelně tech. parametry'!T15)>0,IF(SUM('8. Tepelně tech. parametry'!T45)>0,"Zadáno","Nezadáno"),"Nezadáno"),"Nezadáno"),"Nezadáno") -> Nezadáno | AL2: =IF(SUM('9. Technické systémy'!J12:M38)>0,IF(SUM('9. Technické systémy'!J76:K89)>0,IF(SUM('9. Technické systémy'!F105:G105)>0,IF(SUM('9. Technické systémy'!J105:P105)>0,IF(SUM('9. Technické systémy'!Q105:V105)>0,"Zadáno","Nezadáno"),"Nezadáno"),"Nezadáno"),"Nezadáno"),"Nezadáno") -> Nezadáno | AP2: ZDE
C3: Hodnoty pro technické systémy z PENB | M3: Zpět | P3: Pokračovat | T3: Nápověda | Z3: Hodnoty pro technické systémy z PENB
C5: B) technické systémy | Z5: B) technické systémy
C6: b.1.a) vytápění | Z6: b.1.a) vytápění
C7: Hodnocená budova/zóna | F7: Typ zdroje | G7: Energo- nositel | J7: Pokrytí dílčí potřeby energie na vytápění | L7: Jmenovitý tepelný výkon | N7: Účinnost výroby energie zdrojem tepla | Q7: Účinnost distribuce energie na vytápění | S7: Účinnost sdílení energie na vytápění | Z7: Hodnocená budova/zóna | AC7: Typ zdroje | AD7: Energo- nositel | AG7: Pokrytí dílčí potřeby energie na vytápění | AI7: Jmenovitý tepelný výkon | AK7: Účinnost výroby energie zdrojem tepla | AN7: Účinnost distribuce energie na vytápění | AP7: Účinnost sdílení energie na vytápění
N8: ηH,gen | P8: COP | Q8: ηH,dis | S8: ηH,em | AK8: ηH,gen | AM8: COP | AN8: ηH,dis | AP8: ηH,em
F9: [-] | G9: [-] | J9: [%] | L9: [kW] | N9: [%] | P9: [-] | Q9: [%] | S9: [%] | AC9: [-] | AD9: [-] | AG9: [%] | AI9: [kW] | AK9: [%] | AM9: [-] | AN9: [%] | AP9: [%]
C10: Referenční budova | F10: x | G10: x | J10: x | L10: x | N10: =IF(SUM('9. Technické systémy'!P10:Q10)=0,"",(SUM('9. Technické systémy'!P10:Q10))) ->  | P10: -- | Q10: =IF(SUM('9. Technické systémy'!S10:T10)=0,"",(SUM('9. Technické systémy'!S10:T10))) ->  | S10: =IF(SUM('9. Technické systémy'!U10:V10)=0,"",(SUM('9. Technické systémy'!U10:V10))) ->  | Z10: Referenční budova | AC10: x | AD10: x | AG10: x | AI10: x | AK10: =N10 ->  | AM10: -- | AN10: =Q10 ->  | AP10: =S10 -> 
C11: Hodnocená budova/zóna: | Z11: Hodnocená budova/zóna:
C12: 1. | D12: Rodinny dům | F12: =IF(Data!B186=0,"",Data!B186) ->  | G12: =IF(Data!AN207=0,"",Data!AN207) ->  | J12: =IF(SUM('9. Technické systémy'!J12:M16)=0,"",(SUM('9. Technické systémy'!J12:M16))) ->  | L12: =IF(SUM('9. Technické systémy'!N12:O16)=0,"",(SUM('9. Technické systémy'!N12:O16))) ->  | N12: =IF(SUM('9. Technické systémy'!P12:Q16)=0,"",(SUM('9. Technické systémy'!P12:Q16))) ->  | P12: =IF(SUM('9. Technické systémy'!R12:R16)=0,"",(SUM('9. Technické systémy'!R12:R16))) ->  | Q12: =IF(SUM('9. Technické systémy'!S12:T16)=0,"",(SUM('9. Technické systémy'!S12:T16))) ->  | S12: =IF(SUM('9. Technické systémy'!U12:V16)=0,"",(SUM('9. Technické systémy'!U12:V16))) ->  | Z12: 1. | AA12: Rodinny dům | AC12: =F12 ->  | AG12: =J12 ->  | AI12: =L12 ->  | AK12: =Data!R188 ->  | AM12: =Data!S188 ->  | AN12: =IF(Data!K271=0,"",Data!K271) ->  | AP12: =IF(Data!K284=0,"",Data!K284) -> 
C13: 2. | D13: Rodinny dům | F13: =IF(Data!X186=0,"",Data!X186) ->  | G13: =IF(Data!AN208=0,"",Data!AN208) ->  | J13: =IF(SUM('9. Technické systémy'!J17:M21)=0,"",(SUM('9. Technické systémy'!J17:M21))) ->  | L13: =IF(SUM('9. Technické systémy'!N17:O21)=0,"",(SUM('9. Technické systémy'!N17:O21))) ->  | N13: =IF(SUM('9. Technické systémy'!P17:Q21)=0,"",(SUM('9. Technické systémy'!P17:Q21))) ->  | P13: =IF(SUM('9. Technické systémy'!R17:R21)=0,"",(SUM('9. Technické systémy'!R17:R21))) ->  | Q13: =IF(SUM('9. Technické systémy'!S17:T21)=0,"",(SUM('9. Technické systémy'!S17:T21))) ->  | S13: =IF(SUM('9. Technické systémy'!U17:V21)=0,"",(SUM('9. Technické systémy'!U17:V21))) ->  | Z13: 2. | AA13: Rodinny dům | AI13: =L13 ->  | AK13: =Data!AI188 ->  | AM13: =Data!AJ188 ->  | AN13: =IF(Data!Q271=0,"",Data!Q271) ->  | AP13: =IF(Data!Q284=0,"",Data!Q284) -> 
C14: 3. | D14: Rodinny dům | F14: =IF(Data!AN186=0,"",Data!AN186) ->  | G14: =IF(Data!AN209=0,"",Data!AN209) ->  | J14: =IF(SUM('9. Technické systémy'!J22:M26)=0,"",(SUM('9. Technické systémy'!J22:M26))) ->  | L14: =IF(SUM('9. Technické systémy'!N22:O26)=0,"",(SUM('9. Technické systémy'!N22:O26))) ->  | N14: =IF(SUM('9. Technické systémy'!P22:Q26)=0,"",(SUM('9. Technické systémy'!P22:Q26))) ->  | P14: =IF(SUM('9. Technické systémy'!R22:R26)=0,"",(SUM('9. Technické systémy'!R22:R26))) ->  | Q14: =IF(SUM('9. Technické systémy'!S22:T26)=0,"",(SUM('9. Technické systémy'!S22:T26))) ->  | S14: =IF(SUM('9. Technické systémy'!U22:V26)=0,"",(SUM('9. Technické systémy'!U22:V26))) ->  | Z14: 3. | AA14: Rodinny dům | AI14: =L14 ->  | AK14: =Data!AY188 ->  | AM14: =Data!AZ188 ->  | AN14: =IF(Data!W271=0,"",Data!W271) ->  | AP14: =IF(Data!W284=0,"",Data!W284) -> 
C15: 4. | D15: Rodinny dům | F15: =IF(Data!BD186=0,"",Data!BD186) ->  | G15: =IF(Data!AN210=0,"",Data!AN210) ->  | J15: =IF(SUM('9. Technické systémy'!J27:M31)=0,"",(SUM('9. Technické systémy'!J27:M31))) ->  | L15: =IF(SUM('9. Technické systémy'!N27:O31)=0,"",(SUM('9. Technické systémy'!N27:O31))) ->  | N15: =IF(SUM('9. Technické systémy'!P27:Q31)=0,"",(SUM('9. Technické systémy'!P27:Q31))) ->  | P15: =IF(SUM('9. Technické systémy'!R27:R31)=0,"",(SUM('9. Technické systémy'!R27:R31))) ->  | Q15: =IF(SUM('9. Technické systémy'!S27:T31)=0,"",(SUM('9. Technické systémy'!S27:T31))) ->  | S15: =IF(SUM('9. Technické systémy'!U27:V31)=0,"",(SUM('9. Technické systémy'!U27:V31))) ->  | Z15: 4. | AA15: Rodinny dům | AC15: =F15 ->  | AD15: =G15 ->  | AI15: =L15 ->  | AK15: =Data!BO188 ->  | AM15: =Data!BP188 ->  | AN15: =IF(Data!AB271=0,"",Data!AB271) ->  | AP15: =IF(Data!AB284=0,"",Data!AB284) -> 
C16: 5. | D16: Rodinny dům | F16: =IF(Data!BT186=0,"",Data!BT186) ->  | G16: =IF(Data!AN211=0,"",Data!AN211) ->  | J16: =IF(SUM('9. Technické systémy'!J32:M36)=0,"",(SUM('9. Technické systémy'!J32:M36))) ->  | L16: =IF(SUM('9. Technické systémy'!N24:O27)=0,"",(SUM('9. Technické systémy'!N24:O27))) ->  | N16: =IF(SUM('9. Technické systémy'!P24:Q27)=0,"",(SUM('9. Technické systémy'!P24:Q27))) ->  | P16: =IF(SUM('9. Technické systémy'!R32:R36)=0,"",(SUM('9. Technické systémy'!R32:R36))) ->  | Q16: =IF(SUM('9. Technické systémy'!S24:T27)=0,"",(SUM('9. Technické systémy'!S24:T27))) ->  | S16: =IF(SUM('9. Technické systémy'!U24:V27)=0,"",(SUM('9. Technické systémy'!U24:V27))) ->  | Z16: 5. | AA16: Rodinny dům | AI16: =L16 ->  | AK16: =Data!CE188 ->  | AM16: =Data!CF188 ->  | AN16: =IF(Data!AG271=0,"",Data!AG271) ->  | AP16: =IF(Data!AG284=0,"",Data!AG284) -> 
C17: Solární kolektory | F17: =IF(Data!B679=0,"",IF(Data!I677=3,Data!B679,"")) ->  | G17: =IF(F17="","",Data!AN213) ->  | J17: =IF(SUM('9. Technické systémy'!J37:M38)=0,"",(SUM('9. Technické systémy'!J37:M38))) ->  | L17: =IF(SUM('9. Technické systémy'!P84:Q87)=0,"",(SUM('9. Technické systémy'!P84:Q87))) ->  | Z17: =C17 -> Solární kolektory | AC17: =F17 ->  | AD17: =G17 -> 
C18: Schodišťový prostor | F18: V modelu je uvažováno, že výše uvedené zdroje pro vytápění budou zároveň sloužit k pokrytí tepelných ztrát ostatních zón (schodište, technické podlaží). | Z18: =C18 -> Schodišťový prostor | AC18: =F18 -> V modelu je uvažováno, že výše uvedené zdroje pro vytápění budou zároveň sloužit k pokrytí tepelných ztrát ostatních zón (schodište, technické podlaží).
C19: Technické podlaží/ Garáže | F19: V modelu je uvažováno, že výše uvedené zdroje pro vytápění budou zároveň sloužit k pokrytí tepelných ztrát ostatních zón (schodište, technické podlaží). | Z19: =C19 -> Technické podlaží/ Garáže | AC19: =F19 -> V modelu je uvažováno, že výše uvedené zdroje pro vytápění budou zároveň sloužit k pokrytí tepelných ztrát ostatních zón (schodište, technické podlaží).
C20: Závěrečná tabulka | Z20: Závěrečná tabulka
C21: Potřeba energie na vytápění hodnocené budovy | L21: =IF(Q21="","",('9. Technické systémy'!L94/'1. PENB'!I20*1000)) ->  | N21: [kWh/(m2.rok)] | Q21: =IF('9. Technické systémy'!L94="","",'9. Technické systémy'!L94) ->  | S21: [MWh/rok] | Z21: =C21 -> Potřeba energie na vytápění hodnocené budovy | AI21: =IF(AN21="","",(AN21/'1. PENB'!I20)*1000) ->  | AK21: [kWh/(m2.rok)] | AN21: =IF(Q21="","",(Vypocet!G307+Vypocet!AA307+Vypocet!AU307)) ->  | AP21: =S21 -> [MWh/rok]
C23: Vypočtená spotřeba energie na vytápění hodnocené budovy | L23: =IF(Q23="","",('9. Technické systémy'!L95/'1. PENB'!I20*1000)) ->  | N23: [kWh/(m2.rok)] | Q23: =IF('9. Technické systémy'!L95="","",'9. Technické systémy'!L95) ->  | S23: [MWh/rok] | Z23: =C23 -> Vypočtená spotřeba energie na vytápění hodnocené budovy | AI23: =IF(AN23="","",(AN23/'1. PENB'!I20)*1000) ->  | AK23: [kWh/(m2.rok)] | AN23: =IF(Q23="","",(Vypocet!G360+Vypocet!AA360+Vypocet!AU360)) ->  | AP23: [MWh/rok]
C25: b.2.a) chlazení | Z25: b.2.a) chlazení
C26: Hodnocená budova/zóna | F26: Typ zdroje chlazení | G26: Energo- nositel | J26: Pokrytí dílčí potřeby energie na chlazení | L26: Jmenovitý chladící výkon | N26: Chladicí faktor zdroje chladu | Q26: Účinnost distribuce energie na chlazení | S26: Účinnost sdílení energie na chlazení | Z26: Hodnocená budova/zóna | AC26: Typ zdroje chlazení | AD26: Energo- nositel | AG26: Pokrytí dílčí potřeby energie na chlazení | AI26: Jmenovitý chladící výkon | AK26: Chladicí faktor zdroje chladu | AN26: Účinnost distribuce energie na chlazení | AP26: Účinnost sdílení energie na chlazení
N27: EERC,gen | Q27: ηC,dis | S27: ηC,em | AK27: EERC,gen | AN27: ηC,dis | AP27: ηC,em
F28: [-] | G28: [-] | J28: [%] | L28: [kW] | N28: [-] | Q28: [%] | S28: [%] | AC28: [-] | AD28: [-] | AG28: [%] | AI28: [kW] | AK28: [-] | AN28: [%] | AP28: [%]
C29: Referenční budova | F29: x | G29: x | J29: x | L29: x | N29: =IF(SUM('9. Technické systémy'!P46:R46)=0,"",(SUM('9. Technické systémy'!P46:R46))) ->  | Q29: =IF(SUM('9. Technické systémy'!S46:T46)=0,"",(SUM('9. Technické systémy'!S46:T46))) ->  | S29: =IF(SUM('9. Technické systémy'!U46:V46)=0,"",(SUM('9. Technické systémy'!U46:V46))) ->  | Z29: Referenční budova | AC29: x | AD29: x | AG29: x | AI29: x | AK29: =N29 ->  | AN29: =Q29 ->  | AP29: =S29 -> 
C30: Hodnocená budova/zóna: | Z30: Hodnocená budova/zóna:
C31: Rodinny dům | F31: =IF(Data!J299=0,"",Data!J299) ->  | G31: =IF(Data!AN314=0,"",Data!AN314) ->  | J31: =IF(SUM('9. Technické systémy'!L48:M49)=0,"",(SUM('9. Technické systémy'!L48:M49))) ->  | L31: =IF(SUM('9. Technické systémy'!N48:O49)=0,"",(SUM('9. Technické systémy'!N48:O49))) ->  | N31: =IF(SUM('9. Technické systémy'!P48:R49)=0,"",(SUM('9. Technické systémy'!P48:R49))) ->  | Q31: =IF(SUM('9. Technické systémy'!S48:T49)=0,"",(SUM('9. Technické systémy'!S48:T49))) ->  | S31: =IF(SUM('9. Technické systémy'!U48:V49)=0,"",(SUM('9. Technické systémy'!U48:V49))) ->  | Z31: Rodinny dům | AC31: =F31 ->  | AD31: =G31 ->  | AG31: =J31 ->  | AI31: =L31 ->  | AK31: =IF(Data!K299=0,"",Data!K299) -> 
C32: Závěrečná tabulka | Z32: Závěrečná tabulka
C33: Potřeba energie na chlazení hodnocené budovy | L33: =IF(Q33="","",('9. Technické systémy'!N94/'1. PENB'!I20)*1000) ->  | N33: [kWh/(m2.rok)] | Q33: =IF('9. Technické systémy'!N94="","",'9. Technické systémy'!N94) ->  | S33: [MWh/rok] | Z33: =C33 -> Potřeba energie na chlazení hodnocené budovy | AI33: =IF(AN33="","",(AN33/'1. PENB'!I20)*1000) ->  | AK33: [kWh/(m2.rok)] | AN33: =IF(Q33="","",Vypocet!G390) ->  | AP33: =S33 -> [MWh/rok]
C35: Vypočtená spotřeba energie na chlazení hodnocené budovy | L35: =IF(Q35="","",('9. Technické systémy'!N95/'1. PENB'!I20)*1000) ->  | N35: [kWh/(m2.rok)] | Q35: =IF('9. Technické systémy'!N95="","",'9. Technické systémy'!N95) ->  | S35: [MWh/rok] | Z35: =C35 -> Vypočtená spotřeba energie na chlazení hodnocené budovy | AI35: =IF(AN35="","",(AN35/'1. PENB'!I20)*1000) ->  | AK35: [kWh/(m2.rok)] | AN35: =IF(Q35="","",Vypocet!G397) ->  | AP35: [MWh/rok]
C37: b.3) větrání | Z37: b.3) větrání
C38: Hodnocená budova/zóna | F38: Typ větracího systému | G38: Energo- nositel | I38: Tepelný výkon | K38: Chladící výkon | M38: Pokrytí dílčí potřeby energie na větrání | O38: Jmen. elektr. příkon systému větrání | Q38: Jmen. objem. průtok větracího vzduchu | S38: Měrný příkon ventilátoru nuceného větrání | Z38: Hodnocená budova/zóna | AC38: Typ větracího systému | AD38: Energo- nositel | AF38: Tepelný výkon | AH38: Chladící výkon | AJ38: Pokrytí dílčí potřeby energie na větrání | AL38: Jmen. elektr. příkon systému větrání | AN38: Jmen. objem. průtok větracího vzduchu | AP38: Měrný příkon ventilátoru nuceného větrání
S39: SFPahu | AP39: SFPahu
F40: [-] | G40: [-] | I40: [kW] | K40: [kW] | M40: [%] | O40: [kW] | Q40: [m3/hod] | S40: [W.s/m3] | AC40: [-] | AD40: [-] | AF40: [kW] | AH40: [kW] | AJ40: [%] | AL40: [kW] | AN40: [m3/hod] | AP40: [W.s/m3]
C41: Referenční budova | F41: x | G41: x | I41: x | K41: x | M41: x | O41: x | Q41: x | S41: =IF(SUM('9. Technické systémy'!U55:V55)=0,"",(SUM('9. Technické systémy'!U55:V55))) ->  | Z41: Referenční budova | AC41: x | AD41: x | AF41: x | AH41: x | AJ41: x | AL41: x | AN41: x | AP41: =S41 -> 
C42: Hodnocená budova/zóna: | Z42: Hodnocená budova/zóna:
C43: Rodinny dům | F43: =IF(Data!B364=0,"Přirozené větrání",Data!B364) -> Přirozené větrání | G43: =IF(Data!AN378=0,"",Data!AN378) ->  | I43: =IF(SUM('9. Technické systémy'!K57:L59)=0,"",(SUM('9. Technické systémy'!K57:L59))) ->  | K43: =IF(SUM('9. Technické systémy'!M57:N59)=0,"",(SUM('9. Technické systémy'!M57:N59))) ->  | M43: =IF(SUM('9. Technické systémy'!O57:P59)=0,"",(SUM('9. Technické systémy'!O57:P59))) ->  | O43: =IF(SUM('9. Technické systémy'!Q57:R59)=0,"",(SUM('9. Technické systémy'!Q57:R59))) ->  | Q43: =IF(SUM('9. Technické systémy'!S57:T59)=0,"",(SUM('9. Technické systémy'!S57:T59))) ->  | S43: =IF(SUM('9. Technické systémy'!U57:V59)=0,"",(SUM('9. Technické systémy'!U57:V59))) ->  | Z43: Rodinny dům | AC43: =F43 -> Přirozené větrání | AD43: =G43 ->  | AF43: =I43 ->  | AH43: =K43 ->  | AJ43: =M43 ->  | AL43: =O43 ->  | AN43: =Q43 ->  | AP43: =IF(Data!K387=0,"",Data!K387) -> 
C44: Závěrečná tabulka | Z44: Závěrečná tabulka
C45: Vypočtená spotřeba energie na nucené větrání | L45: =IF(Q45="","",('9. Technické systémy'!P95/'1. PENB'!I20)*1000) ->  | N45: [kWh/(m2.rok)] | Q45: =IF('9. Technické systémy'!P95="","",'9. Technické systémy'!P95) ->  | S45: [MWh/rok] | Z45: =C45 -> Vypočtená spotřeba energie na nucené větrání | AI45: =IF(AN45="","",(AN45/'1. PENB'!I20)*1000) ->  | AK45: [kWh/(m2.rok)] | AN45: =IF(Q45="","",Vypocet!G512) ->  | AP45: [MWh/rok]
C47: b.4) úprava vlhkosti vzduchu | Z47: b.4) úprava vlhkosti vzduchu
C48: Hodnocená budova/zóna | F48: Typ systému vlhčení | H48: Energo- nositel | K48: Jmenovitý elektrický příkon | N48: Jmenovitý tepelný výkon | Q48: Pokrytí dílčí dodané energie na úpravu vlhkosti | S48: Účinnost zdroje úpravy vlhkosti systému vlhčení | Z48: Hodnocená budova/zóna | AC48: Typ systému vlhčení | AE48: Energo- nositel | AH48: Jmenovitý elektrický příkon | AK48: Jmenovitý tepelný výkon | AN48: Pokrytí dílčí dodané energie na úpravu vlhkosti | AP48: Účinnost zdroje úpravy vlhkosti systému vlhčení
S49: ηRH+,gen | AP49: ηRH+,gen
F50: [-] | H50: [-] | K50: [kW] | N50: [kW] | Q50: [%] | S50: [%] | AC50: [-] | AE50: [-] | AH50: [kW] | AK50: [kW] | AN50: [%] | AP50: [%]
C51: Referenční budova | F51: x | H51: x | K51: x | N51: x | Q51: x | Z51: Referenční budova | AC51: x | AE51: x | AH51: x | AK51: x | AN51: x
C52: Hodnocená budova/zóna: | Z52: Hodnocená budova/zóna:
C53: Rodinny dům | Z53: Rodinny dům
C54: Závěrečná tabulka | Z54: Závěrečná tabulka
C58: b.5.a) příprava teplé vody (TV) | Z58: b.5.a) příprava teplé vody (TV)
C59: Hodnocená budova/zóna | F59: Systém přípravy TV v budově | G59: Energo- nositel | H59: Pokrytí dílčí potřeby energie na přípravu teplé vody | J59: Jmen. příkon pro ohřev TV | L59: Objem zásobníku TV | N59: Účinnost zdroje tepla pro přípravu teplé vody | Q59: Měrná tepelná ztráta zásobníku teplé vody | S59: Měrná tepelná ztráta rozvodů teplé vody | Z59: Hodnocená budova/zóna | AC59: Systém přípravy TV v budově | AD59: Energo- nositel | AE59: Pokrytí dílčí potřeby energie na přípravu teplé vody | AG59: Jmen. příkon pro ohřev TV | AI59: Objem zásobníku TV | AK59: Účinnost zdroje tepla pro přípravu teplé vody | AN59: Měrná tepelná ztráta zásobníku teplé vody | AP59: Měrná tepelná ztráta rozvodů teplé vody
N60: ηW,gen | P60: COP | Q60: QW,st | S60: QW,dis | AK60: ηW,gen | AM60: COP | AN60: QW,st | AP60: QW,dis
F61: [-] | G61: [-] | H61: [%] | J61: [kW] | L61: [litry] | N61: [%] | P61: [-] | Q61: [Wh/l.d] | S61: [Wh/m.d] | AC61: [-] | AD61: [-] | AE61: [%] | AG61: [kW] | AI61: [litry] | AK61: [%] | AM61: [-] | AN61: [Wh/l.d] | AP61: [Wh/m.d]
C62: Referenční budova | F62: x | G62: x | H62: x | J62: x | L62: x | N62: =IF(SUM('9. Technické systémy'!P74:Q74)=0,"",(SUM('9. Technické systémy'!P74:Q74))) ->  | P62: -- | Q62: =IF(SUM('9. Technické systémy'!S74:T74)=0,"",(SUM('9. Technické systémy'!S74:T74))) ->  | S62: =IF(SUM('9. Technické systémy'!U74:V74)=0,"",(SUM('9. Technické systémy'!U74:V74))) ->  | Z62: Referenční budova | AC62: x | AD62: x | AE62: x | AG62: x | AI62: x | AK62: =N62 ->  | AM62: -- | AN62: =Q62 ->  | AP62: =S62 -> 
C63: Hodnocená budova/zóna: | Z63: Hodnocená budova/zóna:
C64: 1. | D64: Rodinny dům | F64: =IF(Data!B447=0,"",Data!B447) ->  | G64: =IF(Data!AN469=0,"",Data!AN469) ->  | H64: =IF(SUM('9. Technické systémy'!J76:K79)=0,"",(SUM('9. Technické systémy'!J76:K79))) ->  | J64: =IF(SUM('9. Technické systémy'!L76:M79)=0,"",(SUM('9. Technické systémy'!L76:M79))) ->  | L64: =IF(SUM('9. Technické systémy'!N76:O79)=0,"",(SUM('9. Technické systémy'!N76:O79))) ->  | N64: =IF(SUM('9. Technické systémy'!P76:Q79)=0,"",(SUM('9. Technické systémy'!P76:Q79))) ->  | P64: =IF(SUM('9. Technické systémy'!R76:R79)=0,"",(SUM('9. Technické systémy'!R76:R79))) ->  | Q64: =IF(SUM('9. Technické systémy'!S76:T79)=0,"",(SUM('9. Technické systémy'!S76:T79))) ->  | S64: =IF(SUM('9. Technické systémy'!U76:V79)=0,"",(SUM('9. Technické systémy'!U76:V79))) ->  | Z64: 1. | AA64: Rodinny dům | AC64: =F64 ->  | AG64: =J64 ->  | AI64: =L64 ->  | AK64: =IF(Data!Q449=0,"",Data!Q449) ->  | AM64: =IF(Data!R449="","",Data!R449) ->  | AN64: =IF(Data!P567=0,"",Data!P567) ->  | AP64: =S64 -> 
C65: 2. | D65: Rodinny dům | F65: =IF(Data!X446=0,"",Data!X446) ->  | G65: =IF(Data!AN470=0,"",Data!AN470) ->  | H65: =IF(SUM('9. Technické systémy'!J80:K83)=0,"",(SUM('9. Technické systémy'!J80:K83))) ->  | J65: =IF(SUM('9. Technické systémy'!L80:M83)=0,"",(SUM('9. Technické systémy'!L80:M83))) ->  | L65: =IF(SUM('9. Technické systémy'!N80:O83)=0,"",(SUM('9. Technické systémy'!N80:O83))) ->  | N65: =IF(SUM('9. Technické systémy'!P80:Q83)=0,"",(SUM('9. Technické systémy'!P80:Q83))) ->  | P65: =IF(SUM('9. Technické systémy'!R80:R83)=0,"",(SUM('9. Technické systémy'!R80:R83))) ->  | Q65: =IF(SUM('9. Technické systémy'!S80:T83)=0,"",(SUM('9. Technické systémy'!S80:T83))) ->  | S65: =IF(SUM('9. Technické systémy'!U80:V83)=0,"",(SUM('9. Technické systémy'!U80:V83))) ->  | Z65: 2. | AA65: Rodinny dům | AG65: =J65 ->  | AI65: =L65 ->  | AK65: =IF(Data!AI448=0,"",Data!AI448) ->  | AM65: =IF(Data!AJ448="","",Data!AJ448) ->  | AN65: =IF(Data!AG567=0,"",Data!AG567) ->  | AP65: =S65 -> 
C66: 3. | D66: Rodinny dům | F66: =IF(Data!AN446=0,"",Data!AN446) ->  | G66: =IF(Data!AN471=0,"",Data!AN471) ->  | H66: =IF(SUM('9. Technické systémy'!J84:K87)=0,"",(SUM('9. Technické systémy'!J84:K87))) ->  | J66: =IF(SUM('9. Technické systémy'!L84:M87)=0,"",(SUM('9. Technické systémy'!L84:M87))) ->  | L66: =IF(SUM('9. Technické systémy'!N84:O87)=0,"",(SUM('9. Technické systémy'!N84:O87))) ->  | N66: =IF(SUM('9. Technické systémy'!P84:Q87)=0,"",(SUM('9. Technické systémy'!P84:Q87))) ->  | P66: =IF(SUM('9. Technické systémy'!R84:R87)=0,"",(SUM('9. Technické systémy'!R84:R87))) ->  | Q66: =IF(SUM('9. Technické systémy'!S84:T87)=0,"",(SUM('9. Technické systémy'!S84:T87))) ->  | S66: =IF(SUM('9. Technické systémy'!U84:V87)=0,"",(SUM('9. Technické systémy'!U84:V87))) ->  | Z66: 3. | AA66: Rodinny dům | AG66: =J66 ->  | AI66: =L66 ->  | AK66: =IF(Data!AY448=0,"",Data!AY448) ->  | AM66: =IF(Data!AZ448="","",Data!AZ448) ->  | AN66: =IF(Data!AW567=0,"",Data!AW567) ->  | AP66: =S66 -> 
C67: Solární kolektory | F67: =IF(Data!B679=0,"",IF(Data!I677>1,Data!B679,"")) ->  | G67: =IF(F67="","",Data!AN213) ->  | H67: =IF(SUM('9. Technické systémy'!J88:K89)=0,"",(SUM('9. Technické systémy'!J88:K89))) ->  | Z67: Solární kolektory | AC67: =F67 ->  | AD67: =G67 ->  | AE67: =H67 -> 
C68: Závěrečná tabulka | Z68: Závěrečná tabulka
C69: Potřeba energie na přípravu teplé vody | L69: =IF(Q69="","",('9. Technické systémy'!T94/'1. PENB'!I20)*1000) ->  | N69: [kWh/(m2.rok)] | Q69: =IF('9. Technické systémy'!T94="","",'9. Technické systémy'!T94) ->  | S69: [MWh/rok] | Z69: =C69 -> Potřeba energie na přípravu teplé vody | AI69: =IF(AN69="","",(AN69/'1. PENB'!I20)*1000) ->  | AK69: [kWh/(m2.rok)] | AN69: =IF(Q69="","",Vypocet!G401) ->  | AP69: [MWh/rok]
C71: Vypočtená spotřeba energie na přípravu teplé vody | L71: =IF(Q71="","",('9. Technické systémy'!T95/'1. PENB'!I20)*1000) ->  | N71: [kWh/(m2.rok)] | Q71: =IF('9. Technické systémy'!T95="","",'9. Technické systémy'!T95) ->  | S71: [MWh/rok] | Z71: =C71 -> Vypočtená spotřeba energie na přípravu teplé vody | AI71: =IF(AN71="","",(AN71/'1. PENB'!I20)*1000) ->  | AK71: [kWh/(m2.rok)] | AN71: =IF(Q71="","",Vypocet!G496) ->  | AP71: [MWh/rok]
C73: d) rozdělení dílčích dodaných energií, celkové primární energie a neobnovitelné primární energie podle energonositelů | Z73: d) rozdělení dílčích dodaných energií, celkové primární energie a neobnovitelné primární energie podle energonositelů
C74: Celková dodaná energie hodnocené budovy | L74: =IF(Q74="","",(Q74/'1. PENB'!I20)*1000) ->  | N74: [kWh/(m2.rok)] | Q74: =IF(SUM('9. Technické systémy'!F105:G105)=0,"",SUM('9. Technické systémy'!F105:G105)) ->  | S74: [MWh/rok] | Z74: Celková dodaná energie hodnocené budovy | AI74: =IF(AN74="","",(AN74/'1. PENB'!I20)*1000) ->  | AK74: [kWh/(m2.rok)] | AN74: =IF(Q74="","",Vypocet!B574) ->  | AP74: [MWh/rok]
C75: Celková primární energie | L75: =IF(Q75="","",(Q75/'1. PENB'!I20)*1000) ->  | N75: [kWh/(m2.rok)] | Q75: =IF(SUM('9. Technické systémy'!J105:P105)=0,"",SUM('9. Technické systémy'!J105:P105)) ->  | S75: [MWh/rok] | Z75: Celková primární energie | AI75: =IF(AN75="","",(AN75/'1. PENB'!I20)*1000) ->  | AK75: [kWh/(m2.rok)] | AN75: =IF(Q75="","",Vypocet!F574) ->  | AP75: [MWh/rok]
C76: Neobnovitelná primární energie | L76: =IF(Q76="","",(Q76/'1. PENB'!I20)*1000) ->  | N76: [kWh/(m2.rok)] | Q76: =IF(SUM('9. Technické systémy'!Q105:V105)=0,"",SUM('9. Technické systémy'!Q105:V105)) ->  | S76: [MWh/rok] | Z76: Neobnovitelná primární energie | AI76: =IF(AN76="","",(AN76/'1. PENB'!I20)*1000) ->  | AK76: [kWh/(m2.rok)] | AN76: =IF(Q76="","",Vypocet!G574) ->  | AP76: [MWh/rok]
C77: Využití obnovitelných zdrojů energie z hlediska primární energie | Q77: =IF(Q75="","",1-(Q76/Q75)) ->  | S77: [%] | Z77: Využití obnovitelných zdrojů energie z hlediska primární energie | AN77: =IF(Q77="","",1-(AN76/AN75)) ->  | AP77: [%]

Sheet Kalkulačka na U
C1: Pomocný výpočet U konstrukcí | H1: Zpět | J1: Nápověda
C3: Původní stav | H3: Nový stav
C5: Název konstrukce: | H5: Název konstrukce:
C7: Skladba od interiéru: | D7: Tloušťka konstrukce | E7: Součinitel tepelné vodivosti | F7: Poznámka | H7: Skladba od interiéru: | I7: Tloušťka konstrukce | J7: Součinitel tepelné vodivosti | K7: Poznámka
D8: d [mm] | E8: λ [W/(m.K)] | I8: d [mm] | J8: λ [W/(m.K)]
C9: Tepelný odpor při přestupu tepla v interiéru Rsi | E9: =Data!AG7 -> 0.13 | F9: (m2W)/K | H9: Tepelný odpor při přestupu tepla v interiéru Rsi | J9: =Data!AK36 -> 0.13 | K9: (m2W)/K
C20: Tepelný odpor při přestupu tepla v exteriéru Rse | E20: =Data!AH7 -> 0.04 | F20: (m2.W)/K | H20: Tepelný odpor při přestupu tepla v exteriéru Rse | J20: =Data!AL36 -> 0.04 | K20: (m2.W)/K
C21: Vypočtený součinitel prostupu tepla U | E21: =IF(SUM(Data!AH12:AH21)=0,"",Data!AI23) ->  | F21: W/(m2K) | H21: Vypočtený součinitel prostupu tepla U | J21: =IF(SUM(Data!AH36:AH50)=0,"",Data!AI52) ->  | K21: W/(m2K)
C28: Původní stav | H28: Nový stav
C30: Název konstrukce: | H30: Název konstrukce:
C32: Skladba od interiéru: | D32: Tloušťka konstrukce | E32: Součinitel tepelné vodivosti | F32: Poznámka | H32: Skladba od interiéru: | I32: Tloušťka konstrukce | J32: Součinitel tepelné vodivosti | K32: Poznámka
D33: d [mm] | E33: λ [W/(m.K)] | I33: d [mm] | J33: λ [W/(m.K)]
C34: Tepelný odpor při přestupu tepla v interiéru Rsi | E34: =Data!AK64 -> 0.17 | F34: (m2W)/K | H34: Tepelný odpor při přestupu tepla v interiéru Rsi | J34: =Data!AK91 -> 0.1 | K34: (m2W)/K
C45: Tepelný odpor při přestupu tepla v exteriéru Rse | E45: =Data!AL64 -> 0.04 | F45: (m2.W)/K | H45: Tepelný odpor při přestupu tepla v exteriéru Rse | J45: =Data!AL91 -> 0.04 | K45: (m2.W)/K
C46: Vypočtený součinitel prostupu tepla U | E46: =IF(SUM(Data!AH64:AH76)=0,"",Data!AI78) ->  | F46: W/(m2K) | H46: Vypočtený součinitel prostupu tepla U | J46: =IF(SUM(Data!AH91:AH100)=0,"",Data!AI102) ->  | K46: W/(m2K)

Sheet Data (hidden)
B1: stěna | C1: U | D1: U norm pož | E1: U Norm dop | F1: U pas min | G1: U pas max | H1: Tloušťka (m) | K1: klima | AG1: Rsi | AH1: Rse
B2: konstrukce | K2: měsíc | O2: leden | P2: únor | Q2: březen | R2: duben | S2: květen | T2: červen | U2: červenec | V2: srpen | W2: září | X2: říjen | Y2: listopad | Z2: prosinec | AD2: 1 | AE2: 1 | AF2: Stěna (tepelný tok vodorovně) | AG2: 0.13 | AH2: 0.04
A3: 1 | B3: Cihly plné 30 cm | C3: 1.67 | D3: 0.3 | E3: 0.25 | F3: 0.18 | G3: 0.12 | H3: 0.3 | K3: průměrná venkovní teplota | M3: qe | N3: [°C] | O3: -1.3 | P3: -0.1 | Q3: 3.7 | R3: 8.1 | S3: 13.3 | T3: 16.1 | U3: 18 | V3: 17.9 | W3: 13.5 | X3: 8.3 | Y3: 3.2 | Z3: 0.5 | AE3: 2 | AF3: Stěna přilehlá k zemině (tepelný tok vodorovně) | AG3: 0.13 | AH3: 0
A4: 2 | B4: Cihly plné 45 cm | C4: 1.27 | D4: 0.3 | E4: 0.25 | F4: 0.18 | G4: 0.12 | H4: 0.45 | K4: intenzita slunečního záření | L4: S | M4: Is | N4: [kWh/m2] | O4: 8.2 | P4: 13.4 | Q4: 25.3 | R4: 36 | S4: 49.1 | T4: 51.8 | U4: 51.3 | V4: 42.4 | W4: 28.8 | X4: 18.6 | Y4: 9.4 | Z4: 6 | AE4: 3 | AF4: Střecha/strop pod nevytápěným prostorem (tepelný tok zdola nahoru) | AG4: 0.1 | AH4: 0.04
A5: 3 | B5: Cihly plné 60 cm | C5: 1.03 | D5: 0.3 | E5: 0.25 | F5: 0.18 | G5: 0.12 | H5: 0.6 | K5: intenzita slunečního záření | L5: J | M5: Is | N5: [kWh/m2] | O5: 34.2 | P5: 51.1 | Q5: 74.4 | R5: 85.7 | S5: 87 | T5: 75.6 | U5: 78.1 | V5: 96 | W5: 77.8 | X5: 74.4 | Y5: 45.4 | Z5: 29 | AE5: 4 | AF5: Podlaha nad volným prostorem nebo sklepem (tepelný tok shora dolů) | AG5: 0.17 | AH5: 0.04
A6: 4 | B6: Zdivo smíšené 30 cm | C6: 2.91 | D6: 0.3 | E6: 0.25 | F6: 0.18 | G6: 0.12 | H6: 0.3 | K6: intenzita slunečního záření | L6: V | M6: Is | N6: [kWh/m2] | O6: 14.1 | P6: 25.5 | Q6: 46.9 | R6: 74.2 | S6: 87 | T6: 90 | U6: 84.1 | V6: 80.4 | W6: 53.3 | X6: 38.7 | Y6: 18 | Z6: 11.2 | AE6: 5 | AF6: Podlaha na zemině (tepelný tok shora dolů) | AG6: 0.17 | AH6: 0
A7: 5 | B7: Zdivo smíšené 45 cm | C7: 2.48 | D7: 0.3 | E7: 0.25 | F7: 0.18 | G7: 0.12 | H7: 0.45 | K7: intenzita slunečního záření | L7: Z | M7: Is | N7: [kWh/m2] | O7: 14.1 | P7: 25.5 | Q7: 46.9 | R7: 74.2 | S7: 87 | T7: 90 | U7: 84.1 | V7: 80.4 | W7: 53.3 | X7: 38.7 | Y7: 18 | Z7: 11.2 | AE7: =VLOOKUP(AD2,AE2:AH6,1) -> 1 | AF7: =VLOOKUP(AD2,AE2:AH6,2) -> Stěna (tepelný tok vodorovně) | AG7: =VLOOKUP(AD2,AE2:AH6,3) -> 0.13 | AH7: =VLOOKUP(AD2,AE2:AH6,4) -> 0.04
A8: 6 | B8: Zdivo smíšené 60 cm | C8: 2.16 | D8: 0.3 | E8: 0.25 | F8: 0.18 | G8: 0.12 | H8: 0.6 | K8: intenzita slunečního záření | L8: H | M8: Is | N8: [kWh/m2] | O8: 20.8 | P8: 37 | Q8: 72.2 | R8: 113.8 | S8: 148.8 | T8: 146.2 | U8: 144.3 | V8: 136.2 | W8: 87.1 | X8: 56.5 | Y8: 25.2 | Z8: 14.9
A9: 7 | B9: Betonové vylévané tvárnice 20 cm | C9: 2.65 | D9: 0.3 | E9: 0.25 | F9: 0.18 | G9: 0.12 | H9: 0.2 | K9: intenzita slunečního záření | L9: SV | M9: Is | N9: [kWh/m2] | O9: 8.2 | P9: 14.8 | Q9: 29.8 | R9: 50.4 | S9: 65.5 | T9: 70.6 | U9: 66.2 | V9: 56.5 | W9: 35.3 | X9: 21.6 | Y9: 9.4 | Z9: 6
A10: 8 | B10: Betonové vylévané tvárnice 30 cm | C10: 2.2 | D10: 0.3 | E10: 0.25 | F10: 0.18 | G10: 0.12 | H10: 0.3 | K10: intenzita slunečního záření | L10: SZ | M10: Is | N10: [kWh/m2] | O10: 8.2 | P10: 14.8 | Q10: 29.8 | R10: 50.4 | S10: 65.5 | T10: 70.6 | U10: 66.2 | V10: 56.5 | W10: 35.3 | X10: 21.6 | Y10: 9.4 | Z10: 6 | AF10: Konstrukce 1 PS
A11: 9 | B11: Vyztužený beton 15 cm | C11: 3.77 | D11: 0.3 | E11: 0.25 | F11: 0.18 | G11: 0.12 | H11: 0.15 | K11: intenzita slunečního záření | L11: JV | M11: Is | N11: [kWh/m2] | O11: 26.8 | P11: 41 | Q11: 64.7 | R11: 86.4 | S11: 92.3 | T11: 87.8 | U11: 85.6 | V11: 94.5 | W11: 69.1 | X11: 60.3 | Y11: 33.8 | Z11: 23.1 | AF11: Materiál | AG11: d [mm] | AH11: λ [W/(m.K)] | AK11: Rsi | AL11: Rse
A12: 10 | B12: Vyztužený beton 30 cm | C12: 2.78 | D12: 0.3 | E12: 0.25 | F12: 0.18 | G12: 0.12 | H12: 0.3 | K12: intenzita slunečního záření | L12: JZ | M12: Is | N12: [kWh/m2] | O12: 26.8 | P12: 41 | Q12: 64.7 | R12: 86.4 | S12: 92.3 | T12: 87.8 | U12: 85.6 | V12: 94.5 | W12: 69.1 | X12: 60.3 | Y12: 33.8 | Z12: 23.1 | AF12: ='Kalkulačka na U'!C10 -> 0 | AG12: ='Kalkulačka na U'!D10 -> 0 | AH12: ='Kalkulačka na U'!E10 -> 0 | AI12: =IF(AG12=0,0,IF(AND(ISBLANK(AG12),ISBLANK(AG12)),0,AG12/AH12/1000)) -> 0 | AK12: =AG7 -> 0.13 | AL12: =AH7 -> 0.04
A13: 11 | B13: Vyztužený beton 45 cm | C13: 2.2 | D13: 0.3 | E13: 0.25 | F13: 0.18 | G13: 0.12 | H13: 0.45 | AF13: ='Kalkulačka na U'!C11 -> 0 | AG13: ='Kalkulačka na U'!D11 -> 0 | AH13: ='Kalkulačka na U'!E11 -> 0 | AI13: 0
A14: 12 | B14: Děrované cihly 30 cm | C14: 1.56 | D14: 0.3 | E14: 0.25 | F14: 0.18 | G14: 0.12 | H14: 0.3 | AF14: ='Kalkulačka na U'!C12 -> 0 | AG14: ='Kalkulačka na U'!D12 -> 0 | AH14: ='Kalkulačka na U'!E12 -> 0 | AI14: 0
A15: 13 | B15: Děrované cihly 45 cm | C15: 1.18 | D15: 0.3 | E15: 0.25 | F15: 0.18 | G15: 0.12 | H15: 0.45 | AF15: ='Kalkulačka na U'!C13 -> 0 | AG15: ='Kalkulačka na U'!D13 -> 0 | AH15: ='Kalkulačka na U'!E13 -> 0 | AI15: =IF(AG15=0,0,IF(AND(ISBLANK(AG15),ISBLANK(AG15)),0,AG15/AH15/1000)) -> 0
A16: 14 | B16: Děrované cihly 60 cm | C16: 0.95 | D16: 0.3 | E16: 0.25 | F16: 0.18 | G16: 0.12 | H16: 0.6 | K16: Energonositelé dle vyhlášky č.78/2013 Sb. | P16: Faktor celkové primární energie | T16: Faktor neobnovitelné primární energie | X16: Součinitel emisí CO2 | Y16: dle MDVRR SR č. 364/2012 Z.z. | AF16: ='Kalkulačka na U'!C14 -> 0 | AG16: ='Kalkulačka na U'!D14 -> 0 | AH16: ='Kalkulačka na U'!E14 -> 0 | AI16: =IF(AG16=0,0,IF(AND(ISBLANK(AG16),ISBLANK(AG16)),0,AG16/AH16/1000)) -> 0
A17: 15 | B17: Tvárnice šedé 30 cm | C17: 1.59 | D17: 0.3 | E17: 0.25 | F17: 0.18 | G17: 0.12 | H17: 0.3 | P17: (-) | T17: (-) | X17: (kg/kWh) | AF17: ='Kalkulačka na U'!C15 -> 0 | AG17: ='Kalkulačka na U'!D15 -> 0 | AH17: ='Kalkulačka na U'!E15 -> 0 | AI17: 0
A18: 16 | B18: Tvárnice šedé 45 cm | C18: 1.2 | D18: 0.3 | E18: 0.25 | F18: 0.18 | G18: 0.12 | H18: 0.45 | K18: Zemní plyn | P18: 1.1 | T18: 1.1 | X18: 0.277 | AF18: ='Kalkulačka na U'!C16 -> 0 | AG18: ='Kalkulačka na U'!D16 -> 0 | AH18: ='Kalkulačka na U'!E16 -> 0 | AI18: 0
A19: 17 | B19: Tvárnice šedé 60 cm | C19: 0.97 | D19: 0.3 | E19: 0.25 | F19: 0.18 | G19: 0.12 | H19: 0.6 | K19: Černé uhlí | P19: 1.1 | T19: 1.1 | X19: 0.394 | AF19: ='Kalkulačka na U'!C17 -> 0 | AG19: ='Kalkulačka na U'!D17 -> 0 | AH19: ='Kalkulačka na U'!E17 -> 0 | AI19: 0
A20: 18 | B20: Moderní děrované cihly 30 cm | C20: 0.7 | D20: 0.3 | E20: 0.25 | F20: 0.18 | G20: 0.12 | H20: 0.3 | K20: Hnědé uhlí | P20: 1.1 | T20: 1.1 | X20: 0.433 | AF20: ='Kalkulačka na U'!C18 -> 0 | AG20: ='Kalkulačka na U'!D18 -> 0 | AH20: ='Kalkulačka na U'!E18 -> 0 | AI20: 0
A21: 19 | B21: Moderní děrované cihly 45 cm | C21: 0.49 | D21: 0.3 | E21: 0.25 | F21: 0.18 | G21: 0.12 | H21: 0.45 | K21: Propan-butan/LPG | P21: 1.2 | T21: 1.2 | X21: 0.248 | AF21: ='Kalkulačka na U'!C19 -> 0 | AG21: ='Kalkulačka na U'!D19 -> 0 | AH21: ='Kalkulačka na U'!E19 -> 0 | AI21: 0
A22: 20 | B22: Moderní děrované cihly 60 cm | C22: 0.38 | D22: 0.3 | E22: 0.25 | F22: 0.18 | G22: 0.12 | H22: 0.6 | K22: Topný olej | P22: 1.2 | T22: 1.2 | X22: 0.33
A23: 21 | B23: Moderní pórobeton 30 cm | C23: 0.58 | D23: 0.3 | E23: 0.25 | F23: 0.18 | G23: 0.12 | H23: 0.3 | K23: Elektřina ze sítě | P23: 3.2 | T23: 3 | X23: 0.293 | AH23: U | AI23: =ROUND(1/(AK12+AL12+SUM(AI12:AI21)),2) -> 5.88
A24: 22 | B24: Moderní pórobeton 45 cm | C24: 0.4 | D24: 0.3 | E24: 0.25 | F24: 0.18 | G24: 0.12 | H24: 0.45 | K24: Dřevěné peletky | P24: 1.2 | T24: 0.2 | X24: 0.02
A25: 23 | B25: Moderní pórobeton 60 cm | C25: 0.31 | D25: 0.3 | E25: 0.25 | F25: 0.18 | G25: 0.12 | H25: 0.6 | K25: Kusové dřevo, dřevní štěpky | P25: 1.1 | T25: 0.1 | X25: 0.02
A26: 24 | B26: Vápenopískové cihly 30 cm | C26: 1.75 | D26: 0.3 | E26: 0.25 | F26: 0.18 | G26: 0.12 | H26: 0.3 | K26: Energie okolního prostředí (elektřina a teplo) | P26: 1 | T26: 0 | X26: 0 | AD26: 1 | AE26: 1 | AF26: Stěna (tepelný tok vodorovně) | AG26: 0.13 | AH26: 0.04
A27: 25 | B27: Vápenopískové cihly 45 cm | C27: 1.34 | D27: 0.3 | E27: 0.25 | F27: 0.18 | G27: 0.12 | H27: 0.45 | K27: Elektřína - dodávka mimo budovu | P27: -3.2 | T27: -3 | X27: 0 | AE27: 2 | AF27: Stěna přilehlá k zemině (tepelný tok vodorovně) | AG27: 0.13 | AH27: 0
A28: 26 | B28: Vápenopískové cihly 60 cm | C28: 1.09 | D28: 0.3 | E28: 0.25 | F28: 0.18 | G28: 0.12 | H28: 0.6 | K28: Teplo - dodávka mimo budovu | P28: -1.1 | T28: -0.1 | X28: 0 | AE28: 3 | AF28: Střecha/strop pod nevytápěným prostorem (tepelný tok zdola nahoru) | AG28: 0.1 | AH28: 0.04
A29: 27 | B29: Porotherm 30 P+D - běžná malta | C29: 0.74 | D29: 0.3 | E29: 0.25 | F29: 0.18 | G29: 0.12 | H29: 0.3 | K29: Soustava s vyšším než 80% podílem obnovitelných zdrojů | P29: 1.1 | T29: 0.1 | X29: 0 | AE29: 4 | AF29: Podlaha nad volným prostorem nebo sklepem (tepelný tok shora dolů) | AG29: 0.17 | AH29: 0.04
A30: 28 | B30: Porotherm 30 Profi - tenké spáry | C30: 0.54 | D30: 0.3 | E30: 0.25 | F30: 0.18 | G30: 0.12 | H30: 0.3 | K30: Soustava s vyšším než 50% a nejvýše 80% podílem obnovitelných zdrojů | P30: 1.1 | T30: 0.3 | X30: 0 | AE30: 5 | AF30: Podlaha na zemině (tepelný tok shora dolů) | AG30: 0.17 | AH30: 0
A31: 29 | B31: Porotherm 36,5 P+D - běžná malta | C31: 0.43 | D31: 0.3 | E31: 0.25 | F31: 0.18 | G31: 0.12 | H31: 0.365 | K31: Soustava s 50% a nižším podílem obnovitelných zdrojů | P31: 1.1 | T31: 1 | X31: 0 | AE31: =VLOOKUP(AD26,AE26:AH30,1) -> 1 | AF31: =VLOOKUP(AD26,AE26:AH30,2) -> Stěna (tepelný tok vodorovně) | AG31: =VLOOKUP(AD26,AE26:AH30,3) -> 0.13 | AH31: =VLOOKUP(AD26,AE26:AH30,4) -> 0.04
A32: 30 | B32: Porotherm 36,5 Profi - tenké spáry | C32: 0.36 | D32: 0.3 | E32: 0.25 | F32: 0.18 | G32: 0.12 | H32: 0.365 | K32: Ostatní neuvedené energonositele | P32: 1.2 | T32: 1.2 | X32: 0
A33: 31 | B33: Porotherm 44 P+D - běžná malta | C33: 0.39 | D33: 0.3 | E33: 0.25 | F33: 0.18 | G33: 0.12 | H33: 0.44
A34: 32 | B34: Porotherm 44 Profi - tenké spáry | C34: 0.29 | D34: 0.3 | E34: 0.25 | F34: 0.18 | G34: 0.12 | H34: 0.44 | AF34: Konstrukce 1 NS
A35: 33 | B35: Porotherm 50 Hi CB - tenké spáry | C35: 0.17 | D35: 0.3 | E35: 0.25 | F35: 0.18 | G35: 0.12 | H35: 0.5 | AF35: Materiál | AG35: d [mm] | AH35: λ [W/(m.K)] | AK35: Rsi | AL35: Rse
A36: 34 | B36: Požadavek na stěny od roku 1979 | C36: 0.89 | D36: 0.3 | E36: 0.25 | F36: 0.18 | G36: 0.12 | H36: 0.6 | AF36: ='Kalkulačka na U'!H10 -> 0 | AG36: ='Kalkulačka na U'!I10 -> 0 | AH36: ='Kalkulačka na U'!J10 -> 0 | AI36: =IF(AG36=0,0,IF(AND(ISBLANK(AG36),ISBLANK(AG36)),0,AG36/AH36/1000)) -> 0 | AK36: =AG31 -> 0.13 | AL36: =AH31 -> 0.04
A37: 35 | B37: Požadavek na stěny od roku 1992 | C37: 0.46 | D37: 0.3 | E37: 0.25 | F37: 0.18 | G37: 0.12 | H37: 0.6 | AF37: ='Kalkulačka na U'!H11 -> 0 | AG37: ='Kalkulačka na U'!I11 -> 0 | AH37: ='Kalkulačka na U'!J11 -> 0 | AI37: 0
A38: 36 | B38: Požadavek na těžké stěny od roku 2002 | C38: 0.38 | D38: 0.3 | E38: 0.25 | F38: 0.18 | G38: 0.12 | H38: 0.45
A39: 37 | B39: Požadavek na lehké stěny od roku 2002 | C39: 0.3 | D39: 0.3 | E39: 0.25 | F39: 0.18 | G39: 0.12 | H39: 0.4
A40: 38 | B40: Požadavek na stěny od roku 2011 | C40: 0.3 | D40: 0.3 | E40: 0.25 | F40: 0.18 | G40: 0.12 | H40: 0.45
A41: 39 | B41: Stěna pro nízkoenergetický dům | C41: 0.25 | D41: 0.3 | E41: 0.25 | F41: 0.18 | G41: 0.12 | H41: 0.4
B42: v případě přidávání dalších konstrukcí- nutné propojit s výpočtem objemu !!
AF43: ='Kalkulačka na U'!H12 -> 0 | AG43: ='Kalkulačka na U'!I12 -> 0 | AH43: ='Kalkulačka na U'!J12 -> 0 | AI43: 0
B44: strop a střecha | AF44: ='Kalkulačka na U'!H13 -> 0 | AG44: ='Kalkulačka na U'!I13 -> 0 | AH44: ='Kalkulačka na U'!J13 -> 0 | AI44: =IF(AG44=0,0,IF(AND(ISBLANK(AG44),ISBLANK(AG44)),0,AG44/AH44/1000)) -> 0
B45: konstrukce | AF45: ='Kalkulačka na U'!H14 -> 0 | AG45: ='Kalkulačka na U'!I14 -> 0 | AH45: ='Kalkulačka na U'!J14 -> 0 | AI45: =IF(AG45=0,0,IF(AND(ISBLANK(AG45),ISBLANK(AG45)),0,AG45/AH45/1000)) -> 0
A46: 1 | B46: Střecha plochá - s železobetonovou deskou | C46: 0.5 | D46: 0.24 | E46: 0.16 | F46: 0.15 | G46: 0.1 | H46: 0.38 | I46: do 45° | AF46: ='Kalkulačka na U'!H15 -> 0 | AG46: ='Kalkulačka na U'!I15 -> 0 | AH46: ='Kalkulačka na U'!J15 -> 0 | AI46: 0
A47: 2 | B47: Střecha plochá - dutinový panel (bez izolace) | C47: 2.64 | D47: 0.24 | E47: 0.16 | F47: 0.15 | G47: 0.1 | H47: 0.25 | I47: do 45° | AF47: ='Kalkulačka na U'!H16 -> 0 | AG47: ='Kalkulačka na U'!I16 -> 0 | AH47: ='Kalkulačka na U'!J16 -> 0 | AI47: 0
A48: 3 | B48: Střecha plochá - s keramickými vložkam | C48: 1.34 | D48: 0.24 | E48: 0.16 | F48: 0.15 | G48: 0.1 | H48: 0.26 | I48: do 45° | AF48: ='Kalkulačka na U'!H17 -> 0 | AG48: ='Kalkulačka na U'!I17 -> 0 | AH48: ='Kalkulačka na U'!J17 -> 0 | AI48: 0
A49: 4 | B49: Střecha plochá - novější (zateplená) | C49: 0.25 | D49: 0.24 | E49: 0.16 | F49: 0.15 | G49: 0.1 | H49: 0.38 | I49: do 45° | AF49: ='Kalkulačka na U'!H18 -> 0 | AG49: ='Kalkulačka na U'!I18 -> 0 | AH49: ='Kalkulačka na U'!J18 -> 0 | AI49: 0
A50: 5 | B50: Střecha plochá - U doporučené | C50: 0.16 | D50: 0.24 | E50: 0.16 | F50: 0.15 | G50: 0.1 | H50: 0.45 | I50: do 45° | AF50: ='Kalkulačka na U'!H19 -> 0 | AG50: ='Kalkulačka na U'!I19 -> 0 | AH50: ='Kalkulačka na U'!J19 -> 0 | AI50: 0
A51: 6 | B51: Střecha plochá - pasivní standard | C51: 0.14 | D51: 0.24 | E51: 0.16 | F51: 0.15 | G51: 0.1 | H51: 0.5 | I51: do 45°
A52: 7 | B52: Střecha šikmá - tenká vrstva izolace (zastaralá) | C52: 0.66 | D52: 0.24 | E52: 0.16 | F52: 0.15 | G52: 0.1 | H52: 0.215 | I52: do 45° | AH52: U | AI52: =ROUND(1/(AK36+AL36+SUM(AI36:AI50)),2) -> 5.88
A53: 8 | B53: Střecha šikmá - izolace mezi krokvemi | C53: 0.28 | D53: 0.24 | E53: 0.16 | F53: 0.15 | G53: 0.1 | H53: 0.215 | I53: do 45°
A54: 9 | B54: Střecha šikmá - izolace i pod krokvemi | C54: 0.22 | D54: 0.24 | E54: 0.16 | F54: 0.15 | G54: 0.1 | H54: 0.255 | I54: do 45° | AD54: 4 | AE54: 1 | AF54: Stěna (tepelný tok vodorovně) | AG54: 0.13 | AH54: 0.04
A55: 10 | B55: Střecha šikmá - novější (zateplená) | C55: 0.19 | D55: 0.24 | E55: 0.16 | F55: 0.15 | G55: 0.1 | H55: 0.3 | I55: do 45° | AE55: 2 | AF55: Stěna přilehlá k zemině (tepelný tok vodorovně) | AG55: 0.13 | AH55: 0
A56: 11 | B56: Střecha šikmá - U doporučené | C56: 0.16 | D56: 0.24 | E56: 0.16 | F56: 0.15 | G56: 0.1 | H56: 0.34 | I56: do 45° | AE56: 3 | AF56: Střecha/strop pod nevytápěným prostorem (tepelný tok zdola nahoru) | AG56: 0.1 | AH56: 0.04
A57: 12 | B57: Střecha šikmá - pasivní standard | C57: 0.14 | D57: 0.24 | E57: 0.16 | F57: 0.15 | G57: 0.1 | H57: 0.38 | I57: do 45° | AE57: 4 | AF57: Podlaha nad volným prostorem nebo sklepem (tepelný tok shora dolů) | AG57: 0.17 | AH57: 0.04
A58: 1 | B58: Střecha šikmá - tenká vrstva izolace (zastaralá) | C58: 0.66 | D58: 0.24 | E58: 0.16 | F58: 0.15 | G58: 0.1 | H58: 0.215 | I58: nad 45° | AE58: 5 | AF58: Podlaha na zemině (tepelný tok shora dolů) | AG58: 0.17 | AH58: 0
A59: 2 | B59: Střecha šikmá - izolace mezi krokvemi | C59: 0.28 | D59: 0.3 | E59: 0.2 | F59: 0.18 | G59: 0.12 | H59: 0.215 | I59: nad 45° | AE59: =VLOOKUP(AD54,AE54:AH58,1) -> 4 | AF59: =VLOOKUP(AD54,AE54:AH58,2) -> Podlaha nad volným prostorem nebo sklepem (tepelný tok shora dolů) | AG59: =VLOOKUP(AD54,AE54:AH58,3) -> 0.17 | AH59: =VLOOKUP(AD54,AE54:AH58,4) -> 0.04
A60: 3 | B60: Střecha šikmá - izolace i pod krokvemi | C60: 0.22 | D60: 0.3 | E60: 0.2 | F60: 0.18 | G60: 0.12 | H60: 0.255 | I60: nad 45°
A61: 4 | B61: Střecha šikmá - novější (zateplená) | C61: 0.19 | D61: 0.3 | E61: 0.2 | F61: 0.18 | G61: 0.12 | H61: 0.3 | I61: nad 45°
A62: 5 | B62: Střecha šikmá - U doporučené | C62: 0.16 | D62: 0.3 | E62: 0.2 | F62: 0.18 | G62: 0.12 | H62: 0.34 | I62: nad 45° | AF62: Konstrukce 2 PS
A63: 6 | B63: Střecha šikmá - pasivní standard | C63: 0.14 | D63: 0.3 | E63: 0.2 | F63: 0.18 | G63: 0.12 | H63: 0.38 | I63: nad 45° | AF63: Materiál | AG63: d [mm] | AH63: λ [W/(m.K)] | AK63: Rsi | AL63: Rse
A64: 1 | B64: Strop - dřevěný,trámový | C64: 0.99 | D64: 0.3 | E64: 0.2 | F64: 0.15 | G64: 0.1 | H64: 0.4 | I64: podlaha půdy | AF64: ='Kalkulačka na U'!C35 -> 0 | AG64: ='Kalkulačka na U'!D35 -> 0 | AH64: ='Kalkulačka na U'!E35 -> 0 | AI64: =IF(AG64=0,0,IF(AND(ISBLANK(AG64),ISBLANK(AG64)),0,AG64/AH64/1000)) -> 0 | AK64: =AG59 -> 0.17 | AL64: =AH59 -> 0.04
A65: 2 | B65: Strop - s nosnou keramickou vložkou | C65: 1.5 | D65: 0.3 | E65: 0.2 | F65: 0.15 | G65: 0.1 | H65: 0.265 | I65: podlaha půdy | AF65: ='Kalkulačka na U'!C36 -> 0 | AG65: ='Kalkulačka na U'!D36 -> 0 | AH65: ='Kalkulačka na U'!E36 -> 0 | AI65: 0
A66: 3 | B66: Strop - železobetonový strop (bez izolace) | C66: 3.82 | D66: 0.3 | E66: 0.2 | F66: 0.15 | G66: 0.1 | H66: 0.18 | I66: podlaha půdy | AF66: ='Kalkulačka na U'!C37 -> 0 | AG66: ='Kalkulačka na U'!D37 -> 0 | AH66: ='Kalkulačka na U'!E37 -> 0 | AI66: 0
A67: 4 | B67: Strop - dutinové panely (bez izolace) | C67: 3.06 | D67: 0.3 | E67: 0.2 | F67: 0.15 | G67: 0.1 | H67: 0.22 | I67: podlaha půdy | AF67: ='Kalkulačka na U'!C38 -> 0 | AG67: ='Kalkulačka na U'!D38 -> 0 | AH67: ='Kalkulačka na U'!E38 -> 0 | AI67: =IF(AG67=0,0,IF(AND(ISBLANK(AG67),ISBLANK(AG67)),0,AG67/AH67/1000)) -> 0
A68: 5 | B68: Strop - U požadované | C68: 0.3 | D68: 0.3 | E68: 0.2 | F68: 0.15 | G68: 0.1 | H68: 0.37 | I68: podlaha půdy | AF68: ='Kalkulačka na U'!C39 -> 0 | AG68: ='Kalkulačka na U'!D39 -> 0 | AH68: ='Kalkulačka na U'!E39 -> 0 | AI68: =IF(AG68=0,0,IF(AND(ISBLANK(AG68),ISBLANK(AG68)),0,AG68/AH68/1000)) -> 0
A69: 6 | B69: Strop - U doporučené | C69: 0.2 | D69: 0.3 | E69: 0.2 | F69: 0.15 | G69: 0.1 | H69: 0.43 | I69: podlaha půdy | AF69: ='Kalkulačka na U'!C40 -> 0 | AG69: ='Kalkulačka na U'!D40 -> 0 | AH69: ='Kalkulačka na U'!E40 -> 0 | AI69: 0
A70: 7 | B70: Strop - pasivní standard | C70: 0.14 | D70: 0.3 | E70: 0.2 | F70: 0.15 | G70: 0.1 | H70: 0.51 | I70: podlaha půdy | AF70: ='Kalkulačka na U'!C41 -> 0 | AG70: ='Kalkulačka na U'!D41 -> 0 | AH70: ='Kalkulačka na U'!E41 -> 0 | AI70: 0
B71: v případě přidávání dalších konstrukcí- nutné propojit s výpočtem objemu !! | AF71: ='Kalkulačka na U'!C42 -> 0 | AG71: ='Kalkulačka na U'!D42 -> 0 | AH71: ='Kalkulačka na U'!E42 -> 0 | AI71: 0
AF75: ='Kalkulačka na U'!C43 -> 0 | AG75: ='Kalkulačka na U'!D43 -> 0 | AH75: ='Kalkulačka na U'!E43 -> 0 | AI75: 0
B76: podlaha | AF76: ='Kalkulačka na U'!C44 -> 0 | AG76: ='Kalkulačka na U'!D44 -> 0 | AH76: ='Kalkulačka na U'!E44 -> 0 | AI76: 0
A77: 1 | B77: Podl. na terénu - zastaralá (bez izolace) | C77: 1.7 | D77: 0.45 | E77: 0.3 | F77: 0.22 | G77: 0.15 | H77: 0.2
A78: 2 | B78: Podl. na terénu - zastaralá (s izolací) | C78: 0.97 | D78: 0.45 | E78: 0.3 | F78: 0.22 | G78: 0.15 | H78: 0.23 | AH78: U | AI78: =ROUND(1/(AK64+AL64+SUM(AI64:AI76)),2) -> 4.76
A79: 3 | B79: Podl. na terénu - težká s parketami (bez izolace) | C79: 3.24 | D79: 0.45 | E79: 0.3 | F79: 0.22 | G79: 0.15 | H79: 0.07
A80: 4 | B80: Podl. na terénu - lehká s parketami (bez izolace) | C80: 1.8 | D80: 0.45 | E80: 0.3 | F80: 0.22 | G80: 0.15 | H80: 0.05
A81: 5 | B81: Podl. na terénu - težká s dlažbou (bez izolace) | C81: 4.35 | D81: 0.45 | E81: 0.3 | F81: 0.22 | G81: 0.15 | H81: 0.07 | AD81: 3 | AE81: 1 | AF81: Stěna (tepelný tok vodorovně) | AG81: 0.13 | AH81: 0.04
A82: 6 | B82: Podl. na terénu - lehká s dlažbou (bez izolace) | C82: 2.33 | D82: 0.45 | E82: 0.3 | F82: 0.22 | G82: 0.15 | H82: 0.05 | AE82: 2 | AF82: Stěna přilehlá k zemině (tepelný tok vodorovně) | AG82: 0.13 | AH82: 0
A83: 7 | B83: Podl. na terénu - U požadované | C83: 0.45 | D83: 0.45 | E83: 0.3 | F83: 0.22 | G83: 0.15 | H83: 0.15 | AE83: 3 | AF83: Střecha/strop pod nevytápěným prostorem (tepelný tok zdola nahoru) | AG83: 0.1 | AH83: 0.04
A84: 8 | B84: Podl. na terénu - U doporučené | C84: 0.3 | D84: 0.45 | E84: 0.3 | F84: 0.22 | G84: 0.15 | H84: 0.18 | AE84: 4 | AF84: Podlaha nad volným prostorem nebo sklepem (tepelný tok shora dolů) | AG84: 0.17 | AH84: 0.04
A85: 9 | B85: Podl. na terénu - pasivní standard | C85: 0.2 | D85: 0.45 | E85: 0.3 | F85: 0.22 | G85: 0.15 | H85: 0.25 | AE85: 5 | AF85: Podlaha na zemině (tepelný tok shora dolů) | AG85: 0.17 | AH85: 0
A86: 10 | AE86: =VLOOKUP(AD81,AE81:AH85,1) -> 3 | AF86: =VLOOKUP(AD81,AE81:AH85,2) -> Střecha/strop pod nevytápěným prostorem (tepelný tok zdola nahoru) | AG86: =VLOOKUP(AD81,AE81:AH85,3) -> 0.1 | AH86: =VLOOKUP(AD81,AE81:AH85,4) -> 0.04
A87: 1 | B87: Podl. nad suterénem - bez tep. izolace (zastaralá) | C87: 1.53 | D87: 0.6 | E87: 0.4 | F87: 0.3 | G87: 0.2 | H87: 0.35
A88: 2 | B88: Podl. nad suterénem - s tep. izolací (zastaralá) | C88: 0.82 | D88: 0.6 | E88: 0.4 | F88: 0.3 | G88: 0.2 | H88: 0.33
A89: 3 | B89: Podl. nad suterénem - težká s parketami (bez izolace) | C89: 1.72 | D89: 0.6 | E89: 0.4 | F89: 0.3 | G89: 0.2 | H89: 0.34 | AF89: Konstrukce 2 NS
A90: 4 | B90: Podl. nad suterénem - lehká s parketami (bez izolace) | C90: 1.18 | D90: 0.6 | E90: 0.4 | F90: 0.3 | G90: 0.2 | H90: 0.32 | AF90: Materiál | AG90: d [mm] | AH90: λ [W/(m.K)] | AK90: Rsi | AL90: Rse
A91: 5 | B91: Podl. nad suterénem - težká s dlažbou (bez izolace) | C91: 1.8 | D91: 0.6 | E91: 0.4 | F91: 0.3 | G91: 0.2 | H91: 0.385 | AF91: ='Kalkulačka na U'!H35 -> 0 | AG91: ='Kalkulačka na U'!I35 -> 0 | AH91: ='Kalkulačka na U'!J35 -> 0 | AI91: =IF(AG91=0,0,IF(AND(ISBLANK(AG91),ISBLANK(AG91)),0,AG91/AH91/1000)) -> 0 | AK91: =AG86 -> 0.1 | AL91: =AH86 -> 0.04
A92: 6 | B92: Podl. nad suterénem - lehká s dlažbou (bez izolace) | C92: 1.33 | D92: 0.6 | E92: 0.4 | F92: 0.3 | G92: 0.2 | H92: 0.33 | AF92: ='Kalkulačka na U'!H36 -> 0 | AG92: ='Kalkulačka na U'!I36 -> 0 | AH92: ='Kalkulačka na U'!J36 -> 0 | AI92: 0
A93: 7 | B93: Podl. nad suterénem - U požadované | C93: 0.6 | D93: 0.6 | E93: 0.4 | F93: 0.3 | G93: 0.2 | H93: 0.38 | AF93: ='Kalkulačka na U'!H37 -> 0 | AG93: ='Kalkulačka na U'!I37 -> 0 | AH93: ='Kalkulačka na U'!J37 -> 0 | AI93: 0
A94: 8 | B94: Podl. nad suterénem - U doporučené | C94: 0.4 | D94: 0.6 | E94: 0.4 | F94: 0.3 | G94: 0.2 | H94: 0.42 | AF94: ='Kalkulačka na U'!H38 -> 0 | AG94: ='Kalkulačka na U'!I38 -> 0 | AH94: ='Kalkulačka na U'!J38 -> 0 | AI94: =IF(AG94=0,0,IF(AND(ISBLANK(AG94),ISBLANK(AG94)),0,AG94/AH94/1000)) -> 0
A95: 9 | B95: Podl. nad suterénem - pasivní standard | C95: 0.28 | D95: 0.6 | E95: 0.4 | F95: 0.3 | G95: 0.2 | H95: 0.46 | AF95: ='Kalkulačka na U'!H39 -> 0 | AG95: ='Kalkulačka na U'!I39 -> 0 | AH95: ='Kalkulačka na U'!J39 -> 0 | AI95: =IF(AG95=0,0,IF(AND(ISBLANK(AG95),ISBLANK(AG95)),0,AG95/AH95/1000)) -> 0
A96: 10 | AF96: ='Kalkulačka na U'!H40 -> 0 | AG96: ='Kalkulačka na U'!I40 -> 0 | AH96: ='Kalkulačka na U'!J40 -> 0 | AI96: 0
A97: 11 | AF97: ='Kalkulačka na U'!H41 -> 0 | AG97: ='Kalkulačka na U'!I41 -> 0 | AH97: ='Kalkulačka na U'!J41 -> 0 | AI97: 0
B98: v případě přidávání dalších konstrukcí- nutné propojit s výpočtem objemu !! | AF98: ='Kalkulačka na U'!H42 -> 0 | AG98: ='Kalkulačka na U'!I42 -> 0 | AH98: ='Kalkulačka na U'!J42 -> 0 | AI98: 0
AF99: ='Kalkulačka na U'!H43 -> 0 | AG99: ='Kalkulačka na U'!I43 -> 0 | AH99: ='Kalkulačka na U'!J43 -> 0 | AI99: 0
AF100: ='Kalkulačka na U'!H44 -> 0 | AG100: ='Kalkulačka na U'!I44 -> 0 | AH100: ='Kalkulačka na U'!J44 -> 0 | AI100: 0
B101: okna | H101: g - součinitel propustnosti sol. záření
A102: 1 | B102: okno jednoduché s jedním sklem | C102: 4.5 | D102: 1.5 | E102: 1.2 | F102: 0.8 | G102: 0.6 | H102: 0.85 | AH102: U | AI102: =ROUND(1/(AK91+AL91+SUM(AI91:AI100)),2) -> 7.14
A103: 2 | B103: okno jednoduché s dvojsklem (starší) | C103: 2.5 | D103: 1.5 | E103: 1.2 | F103: 0.8 | G103: 0.6 | H103: 0.75
A104: 3 | B104: okno zdvojené (sešroub. rámy) s dvěma skly | C104: 2.4 | D104: 1.5 | E104: 1.2 | F104: 0.8 | G104: 0.6 | H104: 0.75
A105: 4 | B105: okno špaletové | C105: 2.35 | D105: 1.5 | E105: 1.2 | F105: 0.8 | G105: 0.6 | H105: 0.75
A106: 5 | B106: okno s kovovým rámem a drátosklem | C106: 3.5 | D106: 1.5 | E106: 1.2 | F106: 0.8 | G106: 0.6 | H106: 0.6
A107: 6 | B107: luxfery | C107: 4 | D107: 1.5 | E107: 1.2 | F107: 0.8 | G107: 0.6 | H107: 0.3
A108: 7 | B108: okno starší s dvojsklem | C108: 1.5 | D108: 1.5 | E108: 1.2 | F108: 0.8 | G108: 0.6 | H108: 0.75
A109: 8 | B109: okno novější s dvojsklem | C109: 1.2 | D109: 1.5 | E109: 1.2 | F109: 0.8 | G109: 0.6 | H109: 0.67
A110: 9 | B110: okno s trojsklem | C110: 0.7 | D110: 1.5 | E110: 1.2 | F110: 0.8 | G110: 0.6 | H110: 0.5
A111: 10 | B111: dveře dřevěné vchodové plné | C111: 2.3 | D111: 1.7 | E111: 1.2 | F111: 0.8 | G111: 0.6 | H111: 0
A112: 11 | B112: dveře dřevěné vchodové s prosklením | C112: 4 | D112: 1.7 | E112: 1.2 | F112: 0.8 | G112: 0.6 | H112: 0.75
A113: 12 | B113: dveře balkonové dřevěné | C113: 2.4 | D113: 1.7 | E113: 1.2 | F113: 0.8 | G113: 0.6 | H113: 0.75
A114: 13 | B114: dveře vchodové novější s prosklením | C114: 1.2 | D114: 1.7 | E114: 1.2 | F114: 0.8 | G114: 0.9 | H114: 0.67
A115: 14 | B115: dveře vchodové novější plné | C115: 1.2 | D115: 1.7 | E115: 1.2 | F115: 0.8 | G115: 0.9 | H115: 0
A116: 15 | B116: dveře vchodové trojsklo s prosklením | C116: 0.8 | D116: 1.7 | E116: 1.2 | F116: 0.8 | G116: 0.9 | H116: 0.5
A117: 16 | B117: garážová vrata | C117: 1.3 | D117: 1.7 | E117: 1.2 | F117: 0.8 | G117: 0.9 | H117: 0
A120: 1 | B120: okno střešní jednoduché s jedním sklem | C120: 4.5 | D120: 1.4 | E120: 1.1 | F120: 0.9 | G120: 0.9 | H120: 0.85
A121: 2 | B121: okno střešní starší jednoduché s dvojsklem | C121: 2.5 | D121: 1.4 | E121: 1.1 | F121: 0.9 | G121: 0.9 | H121: 0.75
A122: 3 | B122: okno střešní zdvojené s dvěma skly | C122: 2.4 | D122: 1.4 | E122: 1.1 | F122: 0.9 | G122: 0.9 | H122: 0.75
A123: 4 | B123: okno střešní novější s dvojsklem | C123: 1.2 | D123: 1.4 | E123: 1.1 | F123: 0.9 | G123: 0.9 | H123: 0.67
A124: 5 | B124: okno střešní s trojsklem | C124: 0.9 | D124: 1.4 | E124: 1.1 | F124: 0.9 | G124: 0.9 | H124: 0.5
A125: 6 | C125: 1
A126: 7 | C126: 1
B128: vnitřní stěny
A129: 1 | B129: Cihly plné 10 cm | C129: 2.87 | D129: 0.6 | E129: 0.4 | F129: 0.3 | G129: 0.2 | H129: 0.1
A130: 2 | B130: Cihly plné 20 cm | C130: 2.11 | D130: 0.6 | E130: 0.4 | F130: 0.3 | G130: 0.2 | H130: 0.2
A131: 3 | B131: Cihly plné 30 cm | C131: 1.67 | D131: 0.6 | E131: 0.4 | F131: 0.3 | G131: 0.2 | H131: 0.3
A132: 4 | B132: Zdivo smíšené 10 cm | C132: 3.8 | D132: 0.6 | E132: 0.4 | F132: 0.3 | G132: 0.2 | H132: 0.1
A133: 5 | B133: Zdivo smíšené 20 cm | C133: 3.3 | D133: 0.6 | E133: 0.4 | F133: 0.3 | G133: 0.2 | H133: 0.2
A134: 6 | B134: Zdivo smíšené 30 cm | C134: 2.91 | D134: 0.6 | E134: 0.4 | F134: 0.3 | G134: 0.2 | H134: 0.3
A135: 7 | B135: Vyztužený beton 15 cm | C135: 3.77 | D135: 0.6 | E135: 0.4 | F135: 0.3 | G135: 0.2 | H135: 0.15
A136: 8 | B136: Vyztužený beton 30 cm | C136: 2.78 | D136: 0.6 | E136: 0.4 | F136: 0.3 | G136: 0.2 | H136: 0.3
A137: 9 | B137: Vyztužený beton 45 cm | C137: 2.2 | D137: 0.6 | E137: 0.4 | F137: 0.3 | G137: 0.2 | H137: 0.45
A138: 10 | B138: Děrované cihly 10 cm | C138: 2.76 | D138: 0.6 | E138: 0.4 | F138: 0.3 | G138: 0.2 | H138: 0.1
A139: 11 | B139: Děrované cihly 20 cm | C139: 2 | D139: 0.6 | E139: 0.4 | F139: 0.3 | G139: 0.2 | H139: 0.2
A140: 12 | B140: Děrované cihly 30 cm | C140: 1.56 | D140: 0.6 | E140: 0.4 | F140: 0.3 | G140: 0.2 | H140: 0.3
A141: 13 | B141: Tvárnice šedé 10 cm | C141: 2.79 | D141: 0.6 | E141: 0.4 | F141: 0.3 | G141: 0.2 | H141: 0.1
A142: 14 | B142: Tvárnice šedé 20 cm | C142: 2.03 | D142: 0.6 | E142: 0.4 | F142: 0.3 | G142: 0.2 | H142: 0.2
A143: 15 | B143: Tvárnice šedé 30 cm | C143: 1.59 | D143: 0.6 | E143: 0.4 | F143: 0.3 | G143: 0.2 | H143: 0.3
A144: 16 | B144: Moderní děrované cihly 10 cm | C144: 1.6 | D144: 0.6 | E144: 0.4 | F144: 0.3 | G144: 0.2 | H144: 0.1
A145: 17 | B145: Moderní děrované cihly 20 cm | C145: 0.98 | D145: 0.6 | E145: 0.4 | F145: 0.3 | G145: 0.2 | H145: 0.2
A146: 18 | B146: Moderní děrované cihly 30 cm | C146: 0.7 | D146: 0.6 | E146: 0.4 | F146: 0.3 | G146: 0.2 | H146: 0.3
A147: 19 | B147: Moderní pórobeton 10 cm | C147: 1.38 | D147: 0.6 | E147: 0.4 | F147: 0.3 | G147: 0.2 | H147: 0.1
A148: 20 | B148: Moderní pórobeton 20 cm | C148: 0.82 | D148: 0.6 | E148: 0.4 | F148: 0.3 | G148: 0.2 | H148: 0.2
A149: 21 | B149: Moderní pórobeton 30 cm | C149: 0.58 | D149: 0.6 | E149: 0.4 | F149: 0.3 | G149: 0.2 | H149: 0.3
A150: 22 | B150: Vápenopískové cihly 10 cm | C150: 2.94 | D150: 0.6 | E150: 0.4 | F150: 0.3 | G150: 0.2 | H150: 0.1
A151: 23 | B151: Vápenopískové cihly 20 cm | C151: 2.19 | D151: 0.6 | E151: 0.4 | F151: 0.3 | G151: 0.2 | H151: 0.2
A152: 24 | B152: Vápenopískové cihly 30 cm | C152: 1.75 | D152: 0.6 | E152: 0.4 | F152: 0.3 | G152: 0.2 | H152: 0.3
B153: v případě přidávání dalších konstrukcí- nutné propojit s výpočtem objemu !!
A154: 1 | B154: Dveře vnitřní plné | C154: 2 | D154: 3.5 | E154: 2.3 | F154: 1.7 | G154: 1.7
A155: 2 | B155: Dveře vnitřní 2/3 prosklené | C155: 3 | D155: 3.5 | E155: 2.3 | F155: 1.7 | G155: 1.7
B174: A.1 Zdroje tepla
B176: Hodnoty pro technické systémy dle TNI 73 0331
B177: Základní rozdělení zdrojů tepla | H177: 1 | I177: =IF($H$177=2,A192,IF($H$177=3,A202,IF($H$177=4,A213,IF($H$177=5,A224,IF($H$177=6,A235,IF($H$177=7,A247,"chyba")))))) -> chyba | J177: =IF($H$177=2,B192,IF($H$177=3,B202,IF($H$177=4,B213,IF($H$177=5,B224,IF($H$177=6,B235,IF($H$177=7,B247,"-")))))) -> - | K177: =IF($H$177=2,F192,IF($H$177=3,F202,IF($H$177=4,F213,IF($H$177=5,F224,IF($H$177=6,F235,IF($H$177=7,F247)))))) -> FALSE | M177: =$I$186 -> 10 | N177: =IF($M$177=21,H192,IF($M$177=22,H200,IF($M$177=23,H208,IF($M$177=31,H218,IF($M$177=32,H228,IF($M$177=61,H240,IF($M$177=62,H248,IF($M$177=63,H256,"chyba")))))))) -> chyba | O177: =IF($M$177=21,I192,IF($M$177=22,I200,IF($M$177=23,I208,IF($M$177=31,I218,IF($M$177=32,I228,IF($M$177=61,I240,IF($M$177=62,I248,IF($M$177=63,I256,"-")))))))) -> - | P177: =IF($M$177=21,V192,IF($M$177=22,V200,IF($M$177=23,V208,IF($M$177=31,V218,IF($M$177=32,V228,IF($M$177=61,V240,IF($M$177=62,V248,IF($M$177=63,V256,"chyba")))))))) -> chyba | Y177: 1 | Z177: =IF($Y$177=2,A192,IF($Y$177=3,A202,IF($Y$177=4,A213,IF($Y$177=5,A224,IF($Y$177=6,A235,IF($Y$177=7,A247,"chyba")))))) -> chyba | AA177: =IF($Y$177=2,B192,IF($Y$177=3,B202,IF($Y$177=4,B213,IF($Y$177=5,B224,IF($Y$177=6,B235,IF($Y$177=7,B247,"-")))))) -> - | AB177: =IF($Y$177=2,F192,IF($Y$177=3,F202,IF($Y$177=4,F213,IF($Y$177=5,F224,IF($Y$177=6,F235,IF($Y$177=7,F247)))))) -> FALSE | AD177: =$Z$186 -> 10 | AE177: =IF($AD$177=21,H192,IF($AD$177=22,H200,IF($AD$177=23,H208,IF($AD$177=31,H218,IF($AD$177=32,H228,IF($AD$177=61,H240,IF($AD$177=62,H248,IF($AD$177=63,H256,"chyba")))))))) -> chyba | AF177: =IF($AD$177=21,I192,IF($AD$177=22,I200,IF($AD$177=23,I208,IF($AD$177=31,I218,IF($AD$177=32,I228,IF($AD$177=61,I240,IF($AD$177=62,I248,IF($AD$177=63,I256,"-")))))))) -> - | AG177: =IF($AD$177=21,V192,IF($AD$177=22,V200,IF($AD$177=23,V208,IF($AD$177=31,V218,IF($AD$177=32,V228,IF($AD$177=61,V240,IF($AD$177=62,V248,IF($AD$177=63,V256,"chyba")))))))) -> chyba | AO177: 1 | AP177: =IF($AO$177=2,A192,IF($AO$177=3,A202,IF($AO$177=4,A213,IF($AO$177=5,A224,IF($AO$177=6,A235,IF($AO$177=7,A247,"chyba")))))) -> chyba | AQ177: =IF($AO$177=2,B192,IF($AO$177=3,B202,IF($AO$177=4,B213,IF($AO$177=5,B224,IF($AO$177=6,B235,IF($AO$177=7,B247,"-")))))) -> - | AR177: =IF($AO$177=2,F192,IF($AO$177=3,F202,IF($AO$177=4,F213,IF($AO$177=5,F224,IF($AO$177=6,F235,IF($AO$177=7,F247,"-")))))) -> - | AT177: =$AP$186 -> 10 | AU177: =IF($AT$177=21,H192,IF($AT$177=22,H200,IF($AT$177=23,H208,IF($AT$177=31,H218,IF($AT$177=32,H228,IF($AT$177=61,H240,IF($AT$177=62,H248,IF($AT$177=63,H256,"chyba")))))))) -> chyba | AV177: =IF($AT$177=21,I192,IF($AT$177=22,I200,IF($AT$177=23,I208,IF($AT$177=31,I219,IF($AT$177=32,I228,IF($AT$177=61,I240,IF($AT$177=62,I248,IF($AT$177=63,I256,"-")))))))) -> - | AW177: =IF($AT$177=21,V192,IF($AT$177=22,V200,IF($AT$177=23,V208,IF($AT$177=31,V218,IF($AT$177=32,V228,IF($AT$177=61,V240,IF($AT$177=62,V248,IF($AT$177=63,V256,"chyba")))))))) -> chyba | BE177: 1 | BF177: =IF($BE$177=2,A192,IF($BE$177=3,A202,IF($BE$177=4,A213,IF($BE$177=5,A224,IF($BE$177=6,A235,IF($BE$177=7,A247,"chyba")))))) -> chyba | BG177: =IF($BE$177=2,B192,IF($BE$177=3,B202,IF($BE$177=4,B213,IF($BE$177=5,B224,IF($BE$177=6,B235,IF($BE$177=7,B247,"-")))))) -> - | BH177: =IF($BE$177=2,F192,IF($BE$177=3,F202,IF($BE$177=4,F213,IF($BE$177=5,F224,IF($BE$177=6,F235,IF($BE$177=7,F247,"-")))))) -> - | BJ177: =$BF$186 -> 10 | BK177: =IF($BJ$177=21,H192,IF($BJ$177=22,H200,IF($BJ$177=23,H208,IF($BJ$177=31,H218,IF($BJ$177=32,H228,IF($BJ$177=61,H240,IF($BJ$177=62,H248,IF($BJ$177=63,H256,"chyba")))))))) -> chyba | BL177: =IF($BJ$177=21,I192,IF($BJ$177=22,I200,IF($BJ$177=23,I208,IF($BJ$177=31,I218,IF($BJ$177=32,I228,IF($BJ$177=61,I240,IF($BJ$177=62,I248,IF($BJ$177=63,I256,"-")))))))) -> - | BM177: =IF($BJ$177=21,V192,IF($BJ$177=22,V200,IF($BJ$177=23,V208,IF($BJ$177=31,V218,IF($BJ$177=32,V228,IF($BJ$177=61,V240,IF($BJ$177=62,V248,IF($BJ$177=63,V256,"chyba")))))))) -> chyba | BU177: 1 | BV177: =IF($BU$177=2,A192,IF($BU$177=3,A202,IF($BU$177=4,A213,IF($BU$177=5,A224,IF($BU$177=6,A235,IF($BU$177=7,A247,"chyba")))))) -> chyba | BW177: =IF($BU$177=2,B192,IF($BU$177=3,B202,IF($BU$177=4,B213,IF($BU$177=5,B224,IF($BU$177=6,B235,IF($BU$177=7,B247,"-")))))) -> - | BX177: =IF($BU$177=2,F192,IF($BU$177=3,F202,IF($BU$177=4,F213,IF($BU$177=5,F224,IF($BU$177=6,F235,IF($BU$177=7,F247,"-")))))) -> - | BZ177: =$BV$186 -> 10 | CA177: =IF($BZ$177=21,H192,IF($BZ$177=22,H200,IF($BZ$177=23,H208,IF($BZ$177=31,H218,IF($BZ$177=32,H228,IF($BZ$177=61,H240,IF($BZ$177=62,H248,IF($BZ$177=63,H256,"chyba")))))))) -> chyba | CB177: =IF($BZ$177=21,I192,IF($BZ$177=22,I200,IF($BZ$177=23,I208,IF($BZ$177=31,I218,IF($BZ$177=32,I228,IF($BZ$177=61,I240,IF($BZ$177=62,I248,IF($BZ$177=63,I256,"-")))))))) -> - | CC177: =IF($BZ$177=21,V192,IF($BZ$177=22,V200,IF($BZ$177=23,V208,IF($BZ$177=31,V218,IF($BZ$177=32,V228,IF($BZ$177=61,V240,IF($BZ$177=62,V248,IF($BZ$177=63,V256,"chyba")))))))) -> chyba
A178: 1 | I178: chyba | J178: - | K178: FALSE | M178: 10 | N178: chyba | O178: - | P178: chyba | Z178: chyba | AA178: - | AB178: FALSE | AD178: =$Z$186 -> 10 | AE178: chyba | AF178: - | AG178: =IF($AD$177=21,V193,IF($AD$177=22,V201,IF($AD$177=23,V209,IF($AD$177=31,V219,IF($AD$177=32,V229,IF($AD$177=61,V241,IF($AD$177=62,V249,IF($AD$177=63,V257,"chyba")))))))) -> chyba | AP178: chyba | AQ178: - | AR178: - | AT178: 10 | AU178: chyba | AV178: - | AW178: =IF($AT$177=21,V193,IF($AT$177=22,V201,IF($AT$177=23,V209,IF($AT$177=31,V219,IF($AT$177=32,V229,IF($AT$177=61,V241,IF($AT$177=62,V249,IF($AT$177=63,V257,"chyba")))))))) -> chyba | BF178: =IF($BE$177=2,A193,IF($BE$177=3,A203,IF($BE$177=4,A214,IF($BE$177=5,A225,IF($BE$177=6,A236,IF($BE$177=7,A248,"chyba")))))) -> chyba | BG178: =IF($BE$177=2,B193,IF($BE$177=3,B203,IF($BE$177=4,B214,IF($BE$177=5,B225,IF($BE$177=6,B236,IF($BE$177=7,B248,"-")))))) -> - | BH178: =IF($BE$177=2,F193,IF($BE$177=3,F203,IF($BE$177=4,F214,IF($BE$177=5,F225,IF($BE$177=6,F236,IF($BE$177=7,F248,"-")))))) -> - | BJ178: =$BF$186 -> 10 | BK178: =IF($BJ$177=21,H193,IF($BJ$177=22,H201,IF($BJ$177=23,H209,IF($BJ$177=31,H219,IF($BJ$177=32,H229,IF($BJ$177=61,H241,IF($BJ$177=62,H249,IF($BJ$177=63,H257,"chyba")))))))) -> chyba | BL178: =IF($BJ$177=21,I193,IF($BJ$177=22,I201,IF($BJ$177=23,I209,IF($BJ$177=31,I219,IF($BJ$177=32,I229,IF($BJ$177=61,I241,IF($BJ$177=62,I249,IF($BJ$177=63,I257,"-")))))))) -> - | BM178: =IF($BJ$177=21,V193,IF($BJ$177=22,V201,IF($BJ$177=23,V209,IF($BJ$177=31,V219,IF($BJ$177=32,V229,IF($BJ$177=61,V241,IF($BJ$177=62,V249,IF($BJ$177=63,V257,"chyba")))))))) -> chyba | BV178: =IF($BU$177=2,A193,IF($BU$177=3,A203,IF($BU$177=4,A214,IF($BU$177=5,A225,IF($BU$177=6,A236,IF($BU$177=7,A248,"chyba")))))) -> chyba | BW178: =IF($BU$177=2,B193,IF($BU$177=3,B203,IF($BU$177=4,B214,IF($BU$177=5,B225,IF($BU$177=6,B236,IF($BU$177=7,B248,"-")))))) -> - | BX178: =IF($BU$177=2,F193,IF($BU$177=3,F203,IF($BU$177=4,F214,IF($BU$177=5,F225,IF($BU$177=6,F236,IF($BU$177=7,F248,"-")))))) -> - | BZ178: =$BV$186 -> 10 | CA178: =IF($BZ$177=21,H193,IF($BZ$177=22,H201,IF($BZ$177=23,H209,IF($BZ$177=31,H219,IF($BZ$177=32,H229,IF($BZ$177=61,H241,IF($BZ$177=62,H249,IF($BZ$177=63,H257,"chyba")))))))) -> chyba | CB178: =IF($BZ$177=21,I193,IF($BZ$177=22,I201,IF($BZ$177=23,I209,IF($BZ$177=31,I219,IF($BZ$177=32,I229,IF($BZ$177=61,I241,IF($BZ$177=62,I249,IF($BZ$177=63,I257,"-")))))))) -> - | CC178: =IF($BZ$177=21,V193,IF($BZ$177=22,V201,IF($BZ$177=23,V209,IF($BZ$177=31,V219,IF($BZ$177=32,V229,IF($BZ$177=61,V241,IF($BZ$177=62,V249,IF($BZ$177=63,V257,"chyba")))))))) -> chyba
A179: 2 | B179: Zdroj tepla na plynná a kapalná paliva | H179: 1 | I179: chyba | J179: - | K179: FALSE | M179: 10 | N179: chyba | O179: - | P179: chyba | Y179: 1 | Z179: chyba | AA179: - | AB179: FALSE | AD179: 10 | AE179: chyba | AF179: - | AG179: chyba | AO179: 1 | AP179: chyba | AQ179: - | AR179: - | AT179: 10 | AU179: chyba | AV179: - | AW179: chyba | BE179: 1 | BF179: chyba | BG179: - | BH179: - | BJ179: 10 | BK179: chyba | BL179: - | BM179: chyba | BU179: 1 | BV179: chyba | BW179: - | BX179: - | BZ179: 10 | CA179: chyba | CB179: - | CC179: chyba
A180: 3 | B180: Kotel na pevná paliva | I180: chyba | J180: - | K180: FALSE | M180: 10 | N180: chyba | O180: - | P180: chyba | Z180: chyba | AA180: - | AB180: FALSE | AD180: 10 | AE180: chyba | AF180: - | AG180: chyba | AP180: chyba | AQ180: - | AR180: - | AT180: 10 | AU180: chyba | AV180: - | AW180: chyba | BF180: chyba | BG180: - | BH180: - | BJ180: 10 | BK180: chyba | BL180: - | BM180: chyba | BV180: chyba | BW180: - | BX180: - | BZ180: 10 | CA180: chyba | CB180: - | CC180: chyba
A181: 4 | B181: Elektrokotel | H181: 1 | I181: chyba | J181: - | K181: FALSE | M181: 10 | N181: chyba | O181: - | P181: chyba | Y181: 1 | Z181: chyba | AA181: - | AB181: FALSE | AD181: 10 | AE181: chyba | AF181: - | AG181: chyba | AO181: 1 | AP181: chyba | AQ181: - | AR181: - | AT181: 10 | AU181: chyba | AV181: - | AW181: chyba | BE181: 1 | BF181: chyba | BG181: - | BH181: - | BJ181: 10 | BK181: chyba | BL181: - | BM181: chyba | BU181: 1 | BV181: chyba | BW181: - | BX181: - | BZ181: 10 | CA181: chyba | CB181: - | CC181: chyba
A182: 5 | B182: Objektová předávací stanice | I182: chyba | J182: - | K182: FALSE | M182: 10 | N182: chyba | O182: - | P182: chyba | Z182: chyba | AA182: - | AB182: FALSE | AD182: 10 | AE182: chyba | AF182: - | AG182: chyba | AP182: chyba | AQ182: - | AR182: - | AT182: 10 | AU182: chyba | AV182: - | AW182: chyba | BF182: chyba | BG182: - | BH182: - | BJ182: 10 | BK182: chyba | BL182: - | BM182: chyba | BV182: chyba | BW182: - | BX182: - | BZ182: 10 | CA182: chyba | CB182: - | CC182: chyba
A183: 6 | B183: Tepelné čerpadlo | I183: chyba | J183: - | K183: FALSE | M183: 10 | N183: chyba | O183: - | P183: chyba | Z183: chyba | AA183: - | AB183: FALSE | AD183: 10 | AE183: chyba | AF183: - | AG183: chyba | AP183: chyba | AQ183: - | AR183: - | AT183: 10 | AU183: chyba | AV183: - | AW183: chyba | BF183: chyba | BG183: - | BH183: - | BJ183: 10 | BK183: chyba | BL183: - | BM183: chyba | BV183: chyba | BW183: - | BX183: - | BZ183: 10 | CA183: chyba | CB183: - | CC183: chyba
A184: 7 | B184: Lokální topidlo na pevná a plynná paliva | I184: chyba | J184: - | K184: FALSE | M184: 10 | N184: chyba | O184: - | P184: chyba | Z184: chyba | AA184: - | AB184: FALSE | AD184: 10 | AE184: chyba | AF184: - | AG184: chyba | AP184: chyba | AQ184: - | AR184: - | AT184: 10 | AU184: chyba | AV184: - | AW184: chyba | BF184: chyba | BG184: - | BH184: - | BJ184: 10 | BK184: chyba | BL184: - | BM184: chyba | BV184: chyba | BW184: - | BX184: - | BZ184: 10 | CA184: chyba | CB184: - | CC184: chyba
A186: =H177 -> 1 | B186: =VLOOKUP(A186,A178:B184,2) -> 0 | I186: =(H177*10)+(H179-1) -> 10 | J186: =IF(I177="chyba","",VLOOKUP(I186,I177:K184,2)) ->  | K186: =IF(I177="chyba","",VLOOKUP(I186,I177:K184,3)) ->  | N186: =(H177*100)+((H179-1)*10)+(H181-1) -> 100 | O186: =VLOOKUP(N186,N177:P184,2) ->  | P186: =VLOOKUP(N186,N177:P184,3) ->  | S186: =IF(K186>0,K186,P186) ->  | W186: =Y177 -> 1 | X186: =VLOOKUP(W186,A178:B184,2) -> 0 | Z186: =(Y177*10)+(Y179-1) -> 10 | AA186: =IF(Z177="chyba","",VLOOKUP(Z186,Z177:AB184,2)) ->  | AB186: =IF(Z177="chyba","",VLOOKUP(Z186,Z177:AB184,3)) ->  | AE186: =(Y177*100)+((Y179-1)*10)+(Y181-1) -> 100 | AF186: =VLOOKUP(AE186,AE177:AG184,2) ->  | AG186: =VLOOKUP(AE186,AE177:AG184,3) ->  | AJ186: =IF(AB186>0,AB186,AG186) ->  | AM186: =AO177 -> 1 | AN186: =VLOOKUP(AM186,A178:B184,2) -> 0 | AP186: =(AO177*10)+(AO179-1) -> 10 | AQ186: =IF(AP177="chyba","",VLOOKUP(AP186,AP177:AR184,2)) ->  | AR186: =IF(AP177="chyba","",VLOOKUP(AP186,AP177:AR184,3)) ->  | AU186: =(AO177*100)+((AO179-1)*10)+(AO181-1) -> 100 | AV186: =VLOOKUP(AU186,AU177:AW184,2) ->  | AW186: =VLOOKUP(AU186,AU177:AW184,3) ->  | AZ186: =IF(AR186>0,AR186,AW186) ->  | BC186: =BE177 -> 1 | BD186: =VLOOKUP(BC186,A178:B184,2) -> 0 | BF186: =(BE177*10)+(BE179-1) -> 10 | BG186: =IF(BF177="chyba","",VLOOKUP(BF186,BF177:BH184,2)) ->  | BH186: =IF(BF177="chyba","",VLOOKUP(BF186,BF177:BH184,3)) ->  | BK186: =(BE177*100)+((BE179-1)*10)+(BE181-1) -> 100 | BL186: =VLOOKUP(BK186,BK177:BM184,2) ->  | BM186: =VLOOKUP(BK186,BK177:BM184,3) ->  | BP186: =IF(BH186>0,BH186,BM186) ->  | BS186: =BU177 -> 1 | BT186: =VLOOKUP(BS186,A178:B184,2) -> 0 | BV186: =(BU177*10)+(BU179-1) -> 10 | BW186: =IF(BV177="chyba","",VLOOKUP(BV186,BV177:BX184,2)) ->  | BX186: =IF(BV177="chyba","",VLOOKUP(BV186,BV177:BX184,3)) ->  | CA186: =(BU177*100)+((BU179-1)*10)+(BU181-1) -> 100 | CB186: =VLOOKUP(CA186,CA177:CC184,2) ->  | CC186: =VLOOKUP(CA186,CA177:CC184,3) ->  | CF186: =IF(BX186>0,BX186,CC186) -> 
R187: ηH,gen | S187: COPH,gen | AI187: ηH,gen | AJ187: COPH,gen | AY187: ηH,gen | AZ187: COPH,gen | BO187: ηH,gen | BP187: COPH,gen | CE187: ηH,gen | CF187: COPH,gen
R188: =IF(N186<600,S186,IF(N186>700,S186,"")) ->  | S188: =IF(N186<600,"",IF(N186>700,"",S186)) ->  | AI188: =IF(AE186<600,AJ186,IF(AE186>700,AJ186,"")) ->  | AJ188: =IF(AE186<600,"",IF(AE186>700,"",AJ186)) ->  | AY188: =IF(AU186<600,AZ186,IF(AU186>700,AZ186,"")) ->  | AZ188: =IF(AU186<600,"",IF(AU186>700,"",AZ186)) ->  | BO188: =IF(BK186<600,BP186,IF(BK186>700,BP186,"")) ->  | BP188: =IF(BK186<600,"",IF(BK186>700,"",BP186)) ->  | CE188: =IF(CA186<600,CF186,IF(CA186>700,CF186,"")) ->  | CF188: =IF(CA186<600,"",IF(CA186>700,"",CF186)) -> 
I189: A.2 Sezónní účinnost výroby tepla zdrojem tepla ηH,gen pro plynové kotle a kotle na kapalná paliva do 35 kW určené pouze pro vytápění | AN189: ENERGONOSITELE | AO189: =P16 -> Faktor celkové primární energie | AP189: =T16 -> Faktor neobnovitelné primární energie | AQ189: =X16 -> Součinitel emisí CO2
I190: A.3 Sezónní účinnost výroby tepla zdrojem tepla ηH,gen pro plynové kotle a kotle na kapalná paliva do 35 kW určené pro vytápění a přípravu teplé vody | AO190: =P17 -> (-) | AP190: =T17 -> (-) | AQ190: =X17 -> (kg/kWh)
B191: A.1.1.1 Zdroje tepla na plynná a kapalná paliva | I191: A.4 Sezónní účinnost výroby tepla zdrojem tepla ηH,gen pro plynové kotle nad 35 kW určené pro vytápění a/nebo přípravu teplé vody | V191: ηH,gen | AM191: 0
A192: 21 | B192: Kotel do 35 kW pouze pro vytápění | H192: 211 | I192: standardní - jednostupňový hořák | O192: Kotel do 35 kW pouze pro vytápění | V192: 0.76 | AM192: 1 | AN192: =$K$18 -> Zemní plyn | AO192: =$P$18 -> 1.1 | AP192: =$T$18 -> 1.1 | AQ192: =$X$18 -> 0.277
A193: 22 | B193: Kotel do 35 kW pro vytápění a přípravu TV | H193: 212 | I193: standardní - modulovaný hořák | O193: Kotel do 35 kW pouze pro vytápění | V193: 0.78 | AM193: 2 | AN193: =$K$19 -> Černé uhlí | AO193: =$P$19 -> 1.1 | AP193: =$T$19 -> 1.1 | AQ193: =$X$19 -> 0.394
A194: 23 | B194: Kotel nad 35 kW pro vytápění a/nebo přípravu TV | H194: 213 | I194: nízkoteplotní (s modulovaným hořákem) | O194: Kotel do 35 kW pouze pro vytápění | V194: 0.88 | AM194: 3 | AN194: =$K$20 -> Hnědé uhlí | AO194: =$P$20 -> 1.1 | AP194: =$T$20 -> 1.1 | AQ194: =$X$20 -> 0.433
A195: 24 | B195: - | H195: 214 | I195: kondenzační (s modulovaným hořákem) | O195: Kotel do 35 kW pouze pro vytápění | V195: 0.93 | AM195: 4 | AN195: =$K$21 -> Propan-butan/LPG | AO195: =$P$21 -> 1.2 | AP195: =$T$21 -> 1.2 | AQ195: =$X$21 -> 0.248
A196: 25 | B196: - | H196: 215 | I196: - | AM196: 5 | AN196: =$K$22 -> Topný olej | AO196: =$P$22 -> 1.2 | AP196: =$T$22 -> 1.2 | AQ196: =$X$22 -> 0.33
A197: 26 | B197: - | H197: 216 | I197: - | AM197: 6 | AN197: =$K$23 -> Elektřina ze sítě | AO197: =$P$23 -> 3.2 | AP197: =$T$23 -> 3 | AQ197: =$X$23 -> 0.293
A198: 27 | B198: - | H198: 217 | I198: - | AM198: 7 | AN198: =$K$24 -> Dřevěné peletky | AO198: =$P$24 -> 1.2 | AP198: =$T$24 -> 0.2 | AQ198: =$X$24 -> 0.02
A199: 28 | B199: - | H199: 218 | I199: - | AM199: 8 | AN199: =$K$25 -> Kusové dřevo, dřevní štěpky | AO199: =$P$25 -> 1.1 | AP199: =$T$25 -> 0.1 | AQ199: =$X$25 -> 0.02
H200: 221 | I200: standardní - jednostupňový hořák | O200: Kotel do 35 kW pro vytápění a přípravu TV | V200: 0.74 | AM200: 9 | AN200: =$K$26 -> Energie okolního prostředí (elektřina a teplo) | AO200: =$P$26 -> 1 | AP200: =$T$26 -> 0 | AQ200: =$X$26 -> 0
B201: A.1.1.2 Kotle na pevná paliva | H201: 222 | I201: standardní - modulovaný hořák | O201: Kotel do 35 kW pro vytápění a přípravu TV | V201: 0.77 | AM201: 10 | AN201: =$K$27 -> Elektřína - dodávka mimo budovu | AO201: =$P$27 -> -3.2 | AP201: =$T$27 -> -3 | AQ201: =$X$27 -> 0
A202: 31 | B202: Kotel do 50 kW | H202: 223 | I202: nízkoteplotní (s modulovaným hořákem) | O202: Kotel do 35 kW pro vytápění a přípravu TV | V202: 0.85 | AM202: 11 | AN202: =$K$28 -> Teplo - dodávka mimo budovu | AO202: =$P$28 -> -1.1 | AP202: =$T$28 -> -0.1 | AQ202: =$X$28 -> 0
A203: 32 | B203: Kotel 50 - 300 kW | H203: 224 | I203: kondenzační (s modulovaným hořákem) | O203: Kotel do 35 kW pro vytápění a přípravu TV | V203: 0.94 | AM203: 12 | AN203: =$K$29 -> Soustava s vyšším než 80% podílem obnovitelných zdrojů | AO203: =$P$29 -> 1.1 | AP203: =$T$29 -> 0.1 | AQ203: =$X$29 -> 0
A204: 33 | B204: - | H204: 225 | I204: - | AM204: 13 | AN204: =$K$30 -> Soustava s vyšším než 50% a nejvýše 80% podílem obnovitelných zdrojů | AO204: =$P$30 -> 1.1 | AP204: =$T$30 -> 0.3 | AQ204: =$X$30 -> 0
A205: 34 | B205: - | H205: 226 | I205: - | AM205: 14 | AN205: =$K$31 -> Soustava s 50% a nižším podílem obnovitelných zdrojů | AO205: =$P$31 -> 1.1 | AP205: =$T$31 -> 1 | AQ205: =$X$31 -> 0
A206: 35 | B206: - | H206: 227 | I206: - | AM206: 15 | AN206: =$K$32 -> Ostatní neuvedené energonositele | AO206: =$P$32 -> 1.2 | AP206: =$T$32 -> 1.2 | AQ206: =$X$32 -> 0
A207: 36 | B207: - | H207: 228 | I207: - | AL207: 1. Zdroj | AM207: 1 | AN207: =VLOOKUP((AM207-1),AM191:AP206,2) -> 0 | AO207: =VLOOKUP((AM207-1),AM191:AP206,3) -> 0 | AP207: =VLOOKUP((AM207-1),AM191:AP206,4) -> 0 | AQ207: =VLOOKUP((AM207-1),AM191:AQ206,5) -> 0
A208: 37 | B208: - | H208: 231 | I208: standardní - jednostupňový hořák | O208: Kotel nad 35 kW pro vytápění a/nebo přípravu TV | V208: 0.77 | AL208: 2. Zdroj | AM208: 1 | AN208: =VLOOKUP((AM208-1),AM191:AP206,2) -> 0 | AO208: =VLOOKUP((AM208-1),AM191:AP206,3) -> 0 | AP208: =VLOOKUP((AM208-1),AM191:AP206,4) -> 0 | AQ208: =VLOOKUP((AM208-1),AM191:AQ206,5) -> 0
A209: 38 | B209: - | H209: 232 | I209: standardní - modulovaný hořák | O209: Kotel nad 35 kW pro vytápění a/nebo přípravu TV | V209: 0.8 | AL209: 3. Zdroj | AM209: 1 | AN209: =VLOOKUP((AM209-1),AM191:AP206,2) -> 0 | AO209: =VLOOKUP((AM209-1),AM191:AP206,3) -> 0 | AP209: =VLOOKUP((AM209-1),AM191:AP206,4) -> 0 | AQ209: =VLOOKUP((AM209-1),AM191:AQ206,5) -> 0
H210: 233 | I210: nízkoteplotní (s modulovaným hořákem) | O210: Kotel nad 35 kW pro vytápění a/nebo přípravu TV | V210: 0.89 | AL210: 4. Zdroj | AM210: 1 | AN210: =VLOOKUP((AM210-1),AM191:AP206,2) -> 0 | AO210: =VLOOKUP((AM210-1),AM191:AP206,3) -> 0 | AP210: =VLOOKUP((AM210-1),AM191:AP206,4) -> 0 | AQ210: =VLOOKUP((AM210-1),AM191:AQ206,5) -> 0
B211: A.1.1.3 Elektrokotle | H211: 234 | I211: kondenzační (s modulovaným hořákem) | O211: Kotel nad 35 kW pro vytápění a/nebo přípravu TV | V211: 0.98 | AL211: 5. Zdroj | AM211: 1 | AN211: =VLOOKUP((AM211-1),AM191:AP206,2) -> 0 | AO211: =VLOOKUP((AM211-1),AM191:AP206,3) -> 0 | AP211: =VLOOKUP((AM211-1),AM191:AP206,4) -> 0 | AQ211: =VLOOKUP((AM211-1),AM191:AQ206,5) -> 0
B212: A.7 Sezónní účinnost výroby tepla zdrojem tepla ηH,gen pro elektrokotle | F212: ηH,gen | H212: 235 | I212: - | AL212: FV | AN212: Energie okolního prostředí (elektřina a teplo) | AO212: 1 | AP212: 0 | AQ212: 0
A213: 41 | B213: Výkonový rozsah 0 kW - 149 kW | F213: 0.94 | H213: 236 | I213: - | AL213: Kolektory | AN213: Energie okolního prostředí (elektřina a teplo) | AO213: 1 | AP213: 0 | AQ213: 0
A214: 42 | B214: Výkonový rozsah ≥ 150 kW | F214: 0.96 | H214: 237 | I214: -
A215: 43 | B215: - | H215: 238 | I215: -
A216: 44 | B216: -
A217: 45 | B217: - | I217: A.5 Sezónní účinnost výroby tepla zdrojem tepla ηH,gen pro kotle na pevná paliva do jmenovitého výkonu 50 kW určené pro vytápění a/nebo přípravu teplé vody | V217: ηH,gen
A218: 46 | B218: - | H218: 311 | I218: s ručním přikládáním splňující požadavky třídy I - bez akumulace | O218: Kotel do 50 kW | V218: 0.5
A219: 47 | B219: - | H219: 312 | I219: s ručním přikládáním splňující požadavky třídy I - s akumulací | O219: Kotel do 50 kW | V219: 0.56
A220: 48 | B220: - | H220: 313 | I220: s ručním přikládáním splňující požadavky třídy II - bez akumulace | O220: Kotel do 50 kW | V220: 0.59
H221: 314 | I221: s ručním přikládáním splňující požadavky třídy II - s akumulací | O221: Kotel do 50 kW | V221: 0.66
B222: A.1.1.4 Objektové předávací stanice | H222: 315 | I222: s ručním přikládáním splňující požadavky třídy III - bez akumulace | O222: Kotel do 50 kW | V222: 0.68
B223: A.8 Sezónní účinnost výroby tepla zdrojem tepla ηH,gen pro předávací stanici | F223: ηH,gen | H223: 316 | I223: s ručním přikládáním splňující požadavky třídy III - s akumulací | O223: Kotel do 50 kW | V223: 0.76
A224: 51 | B224: Výkonový rozsah 0 kW - 49 kW | F224: 0.98 | H224: 317 | I224: s automatickým přikládáním splňující požadavky třídy III - bez akumulace | O224: Kotel do 50 kW | V224: 0.71
A225: 52 | B225: Výkonový rozsah ≥ 50 kW | F225: 0.99 | H225: 318 | I225: s automatickým přikládáním splňující požadavky třídy III - s akumulací | O225: Kotel do 50 kW | V225: 0.79
A226: 53 | B226: -
... 415 more rows

Sheet Vypocet (hidden)
A1: Bytové jednotky | U1: Schodišťový prostor | AO1: Technické podlaží
A2: výpočet Ht | C2: lambda původní izolace | E2: 0.04 | U2: výpočet Ht | W2: lambda původní izolace | Y2: 0.04 | AO2: výpočet Ht | AQ2: lambda původní izolace | AS2: 0.04
A3: Konstrukce | B3: kód | C3: popis | D3: Uzáklad | E3: zateplení | F3: Rsi | G3: Rse | H3: Rpův | I3: Ucelk | J3: A | K3: b | L3: Ucelk*A*b | M3: Tloušťka (m) | N3: Stěna+izolace (m) | O3: Plocha;delka | P3: m2;m | U3: Konstrukce | V3: kód | W3: popis | X3: Uzáklad | Y3: zateplení | Z3: Rsi | AA3: Rse | AB3: Rpův | AC3: Ucelk | AD3: A | AE3: b | AF3: Ucelk*A*b | AG3: Tloušťka (m) | AH3: Stěna+izolace (m) | AI3: Plocha;delka | AJ3: m2;m | AO3: Konstrukce | AP3: kód | AQ3: popis | AR3: Uzáklad | AS3: zateplení | AT3: Rsi | AU3: Rse | AV3: Rpův | AW3: Ucelk | AX3: A | AY3: b | AZ3: Ucelk*A*b | BA3: Tloušťka (m) | BB3: Stěna+izolace (m) | BC3: Plocha;delka | BD3: m2;m
A4: Obvodová stěna 1 | B4: 1 | C4: =VLOOKUP(Vypocet!B4,Data!$A$3:$B$41,2) -> Cihly plné 30 cm | D4: =VLOOKUP(B4,Data!$A$3:$C$41,3) -> 1.67 | E4: ='2. Bytové jednotky'!F6 -> 0 | F4: 0.13 | G4: 0.04 | H4: =1/D4-F4-G4 -> 0.4288023952 | I4: =1/(F4+G4+(E4/100)/$E$2+H4) -> 1.67 | J4: ='2. Bytové jednotky'!D6 -> 0 | K4: 1 | L4: =I4*J4*K4 -> 0 | U4: Obvodová stěna 1 | V4: 1 | W4: =VLOOKUP(Vypocet!V4,Data!$A$3:$B$41,2) -> Cihly plné 30 cm | X4: =VLOOKUP(V4,Data!$A$3:$C$41,3) -> 1.67 | Y4: ='3. Schodišťový prostor'!F6 -> 0 | Z4: 0.13 | AA4: 0.04 | AB4: =1/X4-Z4-AA4 -> 0.4288023952 | AC4: =1/(Z4+AA4+(Y4/100)/$E$2+AB4) -> 1.67 | AD4: ='3. Schodišťový prostor'!D6 -> 0 | AE4: 1 | AF4: =AC4*AD4*AE4 -> 0 | AO4: Obvodová stěna 1 | AP4: 1 | AQ4: =VLOOKUP(Vypocet!AP4,Data!$A$3:$B$41,2) -> Cihly plné 30 cm | AR4: =VLOOKUP(AP4,Data!$A$3:$C$41,3) -> 1.67 | AS4: ='4. Technické podlaží-garáže'!F6 -> 0 | AT4: 0.13 | AU4: 0.04 | AV4: =1/AR4-AT4-AU4 -> 0.4288023952 | AW4: =1/(AT4+AU4+(AS4/100)/$E$2+AV4) -> 1.67 | AX4: ='4. Technické podlaží-garáže'!D6 -> 0 | AY4: 1 | AZ4: =AW4*AX4*AY4 -> 0
A5: Obvodová stěna 2 | B5: 1 | C5: =VLOOKUP(Vypocet!B5,Data!$A$3:$B$41,2) -> Cihly plné 30 cm | D5: =VLOOKUP(B5,Data!$A$3:$C$41,3) -> 1.67 | E5: ='2. Bytové jednotky'!F7 -> 0 | F5: 0.13 | G5: 0.04 | H5: 0.4288023952 | I5: 1.67 | J5: ='2. Bytové jednotky'!D7 -> 0 | K5: 1 | L5: =I5*J5*K5 -> 0 | U5: Obvodová stěna 2 | V5: 1 | W5: =VLOOKUP(Vypocet!V5,Data!$A$3:$B$41,2) -> Cihly plné 30 cm | X5: =VLOOKUP(V5,Data!$A$3:$C$41,3) -> 1.67 | Y5: ='3. Schodišťový prostor'!F7 -> 0 | Z5: 0.13 | AA5: 0.04 | AB5: =1/X5-Z5-AA5 -> 0.4288023952 | AC5: =1/(Z5+AA5+(Y5/100)/$E$2+AB5) -> 1.67 | AD5: ='3. Schodišťový prostor'!D7 -> 0 | AE5: 1 | AF5: =AC5*AD5*AE5 -> 0 | AO5: Obvodová stěna 2 | AP5: 1 | AQ5: =VLOOKUP(Vypocet!AP5,Data!$A$3:$B$41,2) -> Cihly plné 30 cm | AR5: =VLOOKUP(AP5,Data!$A$3:$C$41,3) -> 1.67 | AS5: ='4. Technické podlaží-garáže'!F7 -> 0 | AT5: 0.13 | AU5: 0.04 | AV5: =1/AR5-AT5-AU5 -> 0.4288023952 | AW5: =1/(AT5+AU5+(AS5/100)/$E$2+AV5) -> 1.67 | AX5: ='4. Technické podlaží-garáže'!D7 -> 0 | AY5: 1 | AZ5: =AW5*AX5*AY5 -> 0
A6: Obvodová stěna 3 | B6: 1 | C6: =VLOOKUP(Vypocet!B6,Data!$A$3:$B$41,2) -> Cihly plné 30 cm | D6: =VLOOKUP(B6,Data!$A$3:$C$41,3) -> 1.67 | E6: ='2. Bytové jednotky'!F8 -> 0 | F6: 0.13 | G6: 0.04 | H6: 0.4288023952 | I6: 1.67 | J6: ='2. Bytové jednotky'!D8 -> 0 | K6: 1 | L6: 0 | U6: Obvodová stěna 3 | V6: 1 | W6: =VLOOKUP(Vypocet!V6,Data!$A$3:$B$41,2) -> Cihly plné 30 cm | X6: =VLOOKUP(V6,Data!$A$3:$C$41,3) -> 1.67 | Y6: ='3. Schodišťový prostor'!F8 -> 0 | Z6: 0.13 | AA6: 0.04 | AB6: 0.4288023952 | AC6: 1.67 | AD6: ='3. Schodišťový prostor'!D8 -> 0 | AE6: 1 | AF6: 0 | AO6: Obvodová stěna 3 | AP6: 1 | AQ6: =VLOOKUP(Vypocet!AP6,Data!$A$3:$B$41,2) -> Cihly plné 30 cm | AR6: =VLOOKUP(AP6,Data!$A$3:$C$41,3) -> 1.67 | AS6: ='4. Technické podlaží-garáže'!F8 -> 0 | AT6: 0.13 | AU6: 0.04 | AV6: 0.4288023952 | AW6: 1.67 | AX6: ='4. Technické podlaží-garáže'!D8 -> 0 | AY6: 1 | AZ6: 0
A7: Obvodová stěna 4 | B7: 1 | C7: =VLOOKUP(Vypocet!B7,Data!$A$3:$B$41,2) -> Cihly plné 30 cm | D7: =VLOOKUP(B7,Data!$A$3:$C$41,3) -> 1.67 | E7: ='2. Bytové jednotky'!F9 -> 0 | F7: 0.13 | G7: 0.04 | H7: 0.4288023952 | I7: 1.67 | J7: ='2. Bytové jednotky'!D9 -> 0 | K7: 1 | L7: 0 | U7: Obvodová stěna 4 | V7: 1 | W7: =VLOOKUP(Vypocet!V7,Data!$A$3:$B$41,2) -> Cihly plné 30 cm | X7: =VLOOKUP(V7,Data!$A$3:$C$41,3) -> 1.67 | Y7: ='3. Schodišťový prostor'!F9 -> 0 | Z7: 0.13 | AA7: 0.04 | AB7: 0.4288023952 | AC7: 1.67 | AD7: ='3. Schodišťový prostor'!D9 -> 0 | AE7: 1 | AF7: 0 | AO7: Obvodová stěna 4 | AP7: 1 | AQ7: =VLOOKUP(Vypocet!AP7,Data!$A$3:$B$41,2) -> Cihly plné 30 cm | AR7: =VLOOKUP(AP7,Data!$A$3:$C$41,3) -> 1.67 | AS7: ='4. Technické podlaží-garáže'!F9 -> 0 | AT7: 0.13 | AU7: 0.04 | AV7: 0.4288023952 | AW7: 1.67 | AX7: ='4. Technické podlaží-garáže'!D9 -> 0 | AY7: 1 | AZ7: 0
A8: Obvodová stěna 5 | B8: 1 | C8: =VLOOKUP(Vypocet!B8,Data!$A$3:$B$41,2) -> Cihly plné 30 cm | D8: =VLOOKUP(B8,Data!$A$3:$C$41,3) -> 1.67 | E8: ='2. Bytové jednotky'!F10 -> 0 | F8: 0.13 | G8: 0.04 | H8: 0.4288023952 | I8: 1.67 | J8: ='2. Bytové jednotky'!D10 -> 0 | K8: 1 | L8: 0 | U8: Obvodová stěna 5 | V8: 1 | W8: =VLOOKUP(Vypocet!V8,Data!$A$3:$B$41,2) -> Cihly plné 30 cm | X8: =VLOOKUP(V8,Data!$A$3:$C$41,3) -> 1.67 | Y8: ='3. Schodišťový prostor'!F10 -> 0 | Z8: 0.13 | AA8: 0.04 | AB8: 0.4288023952 | AC8: 1.67 | AD8: ='3. Schodišťový prostor'!D10 -> 0 | AE8: 1 | AF8: 0 | AO8: Obvodová stěna 5 | AP8: 1 | AQ8: =VLOOKUP(Vypocet!AP8,Data!$A$3:$B$41,2) -> Cihly plné 30 cm | AR8: =VLOOKUP(AP8,Data!$A$3:$C$41,3) -> 1.67 | AS8: ='4. Technické podlaží-garáže'!F10 -> 0 | AT8: 0.13 | AU8: 0.04 | AV8: 0.4288023952 | AW8: 1.67 | AX8: ='4. Technické podlaží-garáže'!D10 -> 0 | AY8: 1 | AZ8: 0
A9: Obvodová stěna 6 | B9: 1 | C9: =VLOOKUP(Vypocet!B9,Data!$A$3:$B$41,2) -> Cihly plné 30 cm | D9: =VLOOKUP(B9,Data!$A$3:$C$41,3) -> 1.67 | E9: ='2. Bytové jednotky'!F11 -> 0 | F9: 0.13 | G9: 0.04 | H9: 0.4288023952 | I9: 1.67 | J9: ='2. Bytové jednotky'!D11 -> 0 | K9: 1 | L9: 0 | U9: Obvodová stěna 6 | V9: 1 | W9: =VLOOKUP(Vypocet!V9,Data!$A$3:$B$41,2) -> Cihly plné 30 cm | X9: =VLOOKUP(V9,Data!$A$3:$C$41,3) -> 1.67 | Y9: ='3. Schodišťový prostor'!F11 -> 0 | Z9: 0.13 | AA9: 0.04 | AB9: 0.4288023952 | AC9: 1.67 | AD9: ='3. Schodišťový prostor'!D11 -> 0 | AE9: 1 | AF9: 0 | AO9: Obvodová stěna 6 | AP9: 1 | AQ9: =VLOOKUP(Vypocet!AP9,Data!$A$3:$B$41,2) -> Cihly plné 30 cm | AR9: =VLOOKUP(AP9,Data!$A$3:$C$41,3) -> 1.67 | AS9: ='4. Technické podlaží-garáže'!F11 -> 0 | AT9: 0.13 | AU9: 0.04 | AV9: 0.4288023952 | AW9: 1.67 | AX9: ='4. Technické podlaží-garáže'!D11 -> 0 | AY9: 1 | AZ9: 0
A10: Obvodová stěna 7 | B10: 1 | C10: =VLOOKUP(Vypocet!B10,Data!$A$3:$B$41,2) -> Cihly plné 30 cm | D10: =VLOOKUP(B10,Data!$A$3:$C$41,3) -> 1.67 | E10: ='2. Bytové jednotky'!F12 -> 0 | F10: 0.13 | G10: 0.04 | H10: 0.4288023952 | I10: 1.67 | J10: ='2. Bytové jednotky'!D12 -> 0 | K10: 1 | L10: 0 | U10: Obvodová stěna 7 | V10: 1 | W10: =VLOOKUP(Vypocet!V10,Data!$A$3:$B$41,2) -> Cihly plné 30 cm | X10: =VLOOKUP(V10,Data!$A$3:$C$41,3) -> 1.67 | Y10: ='3. Schodišťový prostor'!F12 -> 0 | Z10: 0.13 | AA10: 0.04 | AB10: 0.4288023952 | AC10: 1.67 | AD10: ='3. Schodišťový prostor'!D12 -> 0 | AE10: 1 | AF10: 0 | AO10: Obvodová stěna 7 | AP10: 1 | AQ10: =VLOOKUP(Vypocet!AP10,Data!$A$3:$B$41,2) -> Cihly plné 30 cm | AR10: =VLOOKUP(AP10,Data!$A$3:$C$41,3) -> 1.67 | AS10: ='4. Technické podlaží-garáže'!F12 -> 0 | AT10: 0.13 | AU10: 0.04 | AV10: 0.4288023952 | AW10: 1.67 | AX10: ='4. Technické podlaží-garáže'!D12 -> 0 | AY10: 1 | AZ10: 0
A11: Obvodová stěna 8 | B11: 1 | C11: =VLOOKUP(Vypocet!B11,Data!$A$3:$B$41,2) -> Cihly plné 30 cm | D11: =VLOOKUP(B11,Data!$A$3:$C$41,3) -> 1.67 | E11: ='2. Bytové jednotky'!F13 -> 0 | F11: 0.13 | G11: 0.04 | H11: 0.4288023952 | I11: 1.67 | J11: ='2. Bytové jednotky'!D13 -> 0 | K11: 1 | L11: 0 | U11: Obvodová stěna 8 | V11: 1 | W11: =VLOOKUP(Vypocet!V11,Data!$A$3:$B$41,2) -> Cihly plné 30 cm | X11: =VLOOKUP(V11,Data!$A$3:$C$41,3) -> 1.67 | Y11: ='3. Schodišťový prostor'!F13 -> 0 | Z11: 0.13 | AA11: 0.04 | AB11: 0.4288023952 | AC11: 1.67 | AD11: ='3. Schodišťový prostor'!D13 -> 0 | AE11: 1 | AF11: 0 | AO11: Obvodová stěna 8 | AP11: 1 | AQ11: =VLOOKUP(Vypocet!AP11,Data!$A$3:$B$41,2) -> Cihly plné 30 cm | AR11: =VLOOKUP(AP11,Data!$A$3:$C$41,3) -> 1.67 | AS11: ='4. Technické podlaží-garáže'!F13 -> 0 | AT11: 0.13 | AU11: 0.04 | AV11: 0.4288023952 | AW11: 1.67 | AX11: ='4. Technické podlaží-garáže'!D13 -> 0 | AY11: 1 | AZ11: 0
A12: Obvodová stěna 9 | B12: 1 | C12: =VLOOKUP(Vypocet!B12,Data!$A$3:$B$41,2) -> Cihly plné 30 cm | D12: =VLOOKUP(B12,Data!$A$3:$C$41,3) -> 1.67 | E12: ='2. Bytové jednotky'!F14 -> 0 | F12: 0.13 | G12: 0.04 | H12: 0.4288023952 | I12: 1.67 | J12: ='2. Bytové jednotky'!D14 -> 0 | K12: 1 | L12: 0 | U12: Obvodová stěna 9 | V12: 1 | W12: =VLOOKUP(Vypocet!V12,Data!$A$3:$B$41,2) -> Cihly plné 30 cm | X12: =VLOOKUP(V12,Data!$A$3:$C$41,3) -> 1.67 | Y12: ='3. Schodišťový prostor'!F14 -> 0 | Z12: 0.13 | AA12: 0.04 | AB12: 0.4288023952 | AC12: 1.67 | AD12: ='3. Schodišťový prostor'!D14 -> 0 | AE12: 1 | AF12: 0 | AO12: Obvodová stěna 9 | AP12: 1 | AQ12: =VLOOKUP(Vypocet!AP12,Data!$A$3:$B$41,2) -> Cihly plné 30 cm | AR12: =VLOOKUP(AP12,Data!$A$3:$C$41,3) -> 1.67 | AS12: ='4. Technické podlaží-garáže'!F14 -> 0 | AT12: 0.13 | AU12: 0.04 | AV12: 0.4288023952 | AW12: 1.67 | AX12: ='4. Technické podlaží-garáže'!D14 -> 0 | AY12: 1 | AZ12: 0
A13: Obvodová stěna 10 | B13: 1 | C13: =VLOOKUP(Vypocet!B13,Data!$A$3:$B$41,2) -> Cihly plné 30 cm | D13: =VLOOKUP(B13,Data!$A$3:$C$41,3) -> 1.67 | E13: ='2. Bytové jednotky'!F15 -> 0 | F13: 0.13 | G13: 0.04 | H13: 0.4288023952 | I13: 1.67 | J13: ='2. Bytové jednotky'!D15 -> 0 | K13: 1 | L13: 0 | U13: Obvodová stěna 10 | V13: 1 | W13: =VLOOKUP(Vypocet!V13,Data!$A$3:$B$41,2) -> Cihly plné 30 cm | X13: =VLOOKUP(V13,Data!$A$3:$C$41,3) -> 1.67 | Y13: ='3. Schodišťový prostor'!F15 -> 0 | Z13: 0.13 | AA13: 0.04 | AB13: 0.4288023952 | AC13: 1.67 | AD13: ='3. Schodišťový prostor'!D15 -> 0 | AE13: 1 | AF13: 0 | AO13: Obvodová stěna 10 | AP13: 1 | AQ13: =VLOOKUP(Vypocet!AP13,Data!$A$3:$B$41,2) -> Cihly plné 30 cm | AR13: =VLOOKUP(AP13,Data!$A$3:$C$41,3) -> 1.67 | AS13: ='4. Technické podlaží-garáže'!F15 -> 0 | AT13: 0.13 | AU13: 0.04 | AV13: 0.4288023952 | AW13: 1.67 | AX13: ='4. Technické podlaží-garáže'!D15 -> 0 | AY13: 1 | AZ13: 0
A15: Podlahy | U15: Podlahy | AO15: Podlahy
A16: Podlaha na terénu 1 | B16: 1 | C16: =VLOOKUP(Vypocet!B16,Data!$A$77:$B$85,2) -> Podl. na terénu - zastaralá (bez izolace) | D16: =VLOOKUP(B16,Data!$A$77:$C$85,3) -> 1.7 | E16: ='2. Bytové jednotky'!F32 -> 0 | F16: 0.17 | H16: =1/D16-F16-G16 -> 0.4182352941 | I16: =1/(F16+G16+(E16/100)/$E$2+H16) -> 1.7 | J16: ='2. Bytové jednotky'!D32 -> 0 | K16: 0.5 | L16: =I16*J16*K16 -> 0 | U16: Podlaha na terénu 1 | V16: 1 | W16: =VLOOKUP(Vypocet!V16,Data!$A$77:$B$85,2) -> Podl. na terénu - zastaralá (bez izolace) | X16: =VLOOKUP(V16,Data!$A$77:$C$85,3) -> 1.7 | Y16: ='3. Schodišťový prostor'!F32 -> 0 | Z16: 0.17 | AB16: =1/X16-Z16-AA16 -> 0.4182352941 | AC16: =1/(Z16+AA16+(Y16/100)/$E$2+AB16) -> 1.7 | AD16: ='3. Schodišťový prostor'!D32 -> 0 | AE16: 0.5 | AF16: =AC16*AD16*AE16 -> 0 | AO16: Podlaha na terénu 1 | AP16: 1 | AQ16: =VLOOKUP(Vypocet!AP16,Data!$A$77:$B$85,2) -> Podl. na terénu - zastaralá (bez izolace) | AR16: =VLOOKUP(AP16,Data!$A$77:$C$85,3) -> 1.7 | AS16: ='4. Technické podlaží-garáže'!F32 -> 0 | AT16: 0.17 | AV16: =1/AR16-AT16-AU16 -> 0.4182352941 | AW16: =1/(AT16+AU16+(AS16/100)/$E$2+AV16) -> 1.7 | AX16: ='4. Technické podlaží-garáže'!D32 -> 0 | AY16: 0.5 | AZ16: =AW16*AX16*AY16 -> 0
A17: Podlaha na terénu 2 | B17: 1 | C17: =VLOOKUP(Vypocet!B17,Data!$A$77:$B$85,2) -> Podl. na terénu - zastaralá (bez izolace) | D17: =VLOOKUP(B17,Data!$A$77:$C$85,3) -> 1.7 | E17: ='2. Bytové jednotky'!F33 -> 0 | F17: 0.17 | H17: =1/D17-F17-G17 -> 0.4182352941 | I17: =1/(F17+G17+(E17/100)/$E$2+H17) -> 1.7 | J17: ='2. Bytové jednotky'!D33 -> 0 | K17: 0.5 | L17: 0 | U17: Podlaha na terénu 2 | V17: 1 | W17: =VLOOKUP(Vypocet!V17,Data!$A$77:$B$85,2) -> Podl. na terénu - zastaralá (bez izolace) | X17: =VLOOKUP(V17,Data!$A$77:$C$85,3) -> 1.7 | Y17: ='3. Schodišťový prostor'!F33 -> 0 | Z17: 0.17 | AB17: =1/X17-Z17-AA17 -> 0.4182352941 | AC17: =1/(Z17+AA17+(Y17/100)/$E$2+AB17) -> 1.7 | AD17: ='3. Schodišťový prostor'!D33 -> 0 | AE17: 0.5 | AF17: 0 | AO17: Podlaha na terénu 2 | AP17: 1 | AQ17: =VLOOKUP(Vypocet!AP17,Data!$A$77:$B$85,2) -> Podl. na terénu - zastaralá (bez izolace) | AR17: =VLOOKUP(AP17,Data!$A$77:$C$85,3) -> 1.7 | AS17: ='4. Technické podlaží-garáže'!F33 -> 0 | AT17: 0.17 | AV17: =1/AR17-AT17-AU17 -> 0.4182352941 | AW17: =1/(AT17+AU17+(AS17/100)/$E$2+AV17) -> 1.7 | AX17: ='4. Technické podlaží-garáže'!D33 -> 0 | AY17: 0.5 | AZ17: 0
A18: Podlaha na terénu 3 | B18: 1 | C18: =VLOOKUP(Vypocet!B18,Data!$A$77:$B$85,2) -> Podl. na terénu - zastaralá (bez izolace) | D18: =VLOOKUP(B18,Data!$A$77:$C$85,3) -> 1.7 | E18: ='2. Bytové jednotky'!F34 -> 0 | F18: 0.17 | H18: 0.4182352941 | I18: 1.7 | J18: ='2. Bytové jednotky'!D34 -> 0 | K18: 0.5 | L18: 0 | U18: Podlaha na terénu 3 | V18: 1 | W18: =VLOOKUP(Vypocet!V18,Data!$A$77:$B$85,2) -> Podl. na terénu - zastaralá (bez izolace) | X18: =VLOOKUP(V18,Data!$A$77:$C$85,3) -> 1.7 | Y18: ='3. Schodišťový prostor'!F34 -> 0 | Z18: 0.17 | AB18: 0.4182352941 | AC18: 1.7 | AD18: ='3. Schodišťový prostor'!D34 -> 0 | AE18: 0.5 | AF18: 0 | AO18: Podlaha na terénu 3 | AP18: 1 | AQ18: =VLOOKUP(Vypocet!AP18,Data!$A$77:$B$85,2) -> Podl. na terénu - zastaralá (bez izolace) | AR18: =VLOOKUP(AP18,Data!$A$77:$C$85,3) -> 1.7 | AS18: ='4. Technické podlaží-garáže'!F34 -> 0 | AT18: 0.17 | AV18: 0.4182352941 | AW18: 1.7 | AX18: ='4. Technické podlaží-garáže'!D34 -> 0 | AY18: 0.5 | AZ18: 0
A20: Podlaha nad nevytápěným sklepem 1 | B20: 1 | C20: =VLOOKUP(Vypocet!B20,Data!$A$87:$B$95,2) -> Podl. nad suterénem - bez tep. izolace (zastaralá) | D20: =VLOOKUP(B20,Data!$A$87:$C$95,3) -> 1.53 | E20: ='2. Bytové jednotky'!F36 -> 0 | F20: 0.17 | G20: 0.04 | H20: =1/D20-F20-G20 -> 0.4435947712 | I20: =1/(F20+G20+(E20/100)/$E$2+H20) -> 1.53 | J20: ='2. Bytové jednotky'!D36 -> 0 | K20: 0.43 | L20: 0 | U20: Podlaha nad nevytápěným sklepem 1 | V20: 1 | W20: =VLOOKUP(Vypocet!V20,Data!$A$87:$B$95,2) -> Podl. nad suterénem - bez tep. izolace (zastaralá) | X20: =VLOOKUP(V20,Data!$A$87:$C$95,3) -> 1.53 | Y20: ='3. Schodišťový prostor'!F36 -> 0 | Z20: 0.17 | AA20: 0.04 | AB20: =1/X20-Z20-AA20 -> 0.4435947712 | AC20: =1/(Z20+AA20+(Y20/100)/$E$2+AB20) -> 1.53 | AD20: ='3. Schodišťový prostor'!D36 -> 0 | AE20: 0.43 | AF20: =AC20*AD20*AE20 -> 0 | AO20: Podlaha nad nevytápěným sklepem 1 | AP20: 1 | AQ20: =VLOOKUP(Vypocet!AP20,Data!$A$87:$B$95,2) -> Podl. nad suterénem - bez tep. izolace (zastaralá) | AR20: =VLOOKUP(AP20,Data!$A$87:$C$95,3) -> 1.53 | AS20: ='4. Technické podlaží-garáže'!F36 -> 0 | AT20: 0.17 | AU20: 0.04 | AV20: =1/AR20-AT20-AU20 -> 0.4435947712 | AW20: =1/(AT20+AU20+(AS20/100)/$E$2+AV20) -> 1.53 | AX20: ='4. Technické podlaží-garáže'!D36 -> 0 | AY20: 0.43 | AZ20: =AW20*AX20*AY20 -> 0
A21: Podlaha nad nevytápěným sklepem 2 | B21: 1 | C21: =VLOOKUP(Vypocet!B21,Data!$A$87:$B$95,2) -> Podl. nad suterénem - bez tep. izolace (zastaralá) | D21: =VLOOKUP(B21,Data!$A$87:$C$95,3) -> 1.53 | E21: ='2. Bytové jednotky'!F37 -> 0 | F21: 0.17 | G21: 0.04 | H21: =1/D21-F21-G21 -> 0.4435947712 | I21: =1/(F21+G21+(E21/100)/$E$2+H21) -> 1.53 | J21: ='2. Bytové jednotky'!D37 -> 0 | K21: 0.43 | L21: 0 | U21: Podlaha nad nevytápěným sklepem 2 | V21: 1 | W21: =VLOOKUP(Vypocet!V21,Data!$A$87:$B$95,2) -> Podl. nad suterénem - bez tep. izolace (zastaralá) | X21: =VLOOKUP(V21,Data!$A$87:$C$95,3) -> 1.53 | Y21: ='3. Schodišťový prostor'!F37 -> 0 | Z21: 0.17 | AA21: 0.04 | AB21: =1/X21-Z21-AA21 -> 0.4435947712 | AC21: =1/(Z21+AA21+(Y21/100)/$E$2+AB21) -> 1.53 | AD21: ='3. Schodišťový prostor'!D37 -> 0 | AE21: 0.43 | AF21: 0 | AO21: Podlaha nad nevytápěným sklepem 2 | AP21: 1 | AQ21: =VLOOKUP(Vypocet!AP21,Data!$A$87:$B$95,2) -> Podl. nad suterénem - bez tep. izolace (zastaralá) | AR21: =VLOOKUP(AP21,Data!$A$87:$C$95,3) -> 1.53 | AS21: ='4. Technické podlaží-garáže'!F37 -> 0 | AT21: 0.17 | AU21: 0.04 | AV21: =1/AR21-AT21-AU21 -> 0.4435947712 | AW21: =1/(AT21+AU21+(AS21/100)/$E$2+AV21) -> 1.53 | AX21: ='4. Technické podlaží-garáže'!D37 -> 0 | AY21: 0.43 | AZ21: 0
A22: Podlaha nad nevytápěným sklepem 3 | B22: 1 | C22: =VLOOKUP(Vypocet!B22,Data!$A$87:$B$95,2) -> Podl. nad suterénem - bez tep. izolace (zastaralá) | D22: =VLOOKUP(B22,Data!$A$87:$C$95,3) -> 1.53 | E22: ='2. Bytové jednotky'!F38 -> 0 | F22: 0.17 | G22: 0.04 | H22: =1/D22-F22-G22 -> 0.4435947712 | I22: 1.53 | J22: ='2. Bytové jednotky'!D38 -> 0 | K22: 0.43 | L22: 0 | U22: Podlaha nad nevytápěným sklepem 3 | V22: 1 | W22: =VLOOKUP(Vypocet!V22,Data!$A$87:$B$95,2) -> Podl. nad suterénem - bez tep. izolace (zastaralá) | X22: =VLOOKUP(V22,Data!$A$87:$C$95,3) -> 1.53 | Y22: ='3. Schodišťový prostor'!F38 -> 0 | Z22: 0.17 | AA22: 0.04 | AB22: 0.4435947712 | AC22: 1.53 | AD22: ='3. Schodišťový prostor'!D38 -> 0 | AE22: 0.43 | AF22: 0 | AO22: Podlaha nad nevytápěným sklepem 3 | AP22: 1 | AQ22: =VLOOKUP(Vypocet!AP22,Data!$A$87:$B$95,2) -> Podl. nad suterénem - bez tep. izolace (zastaralá) | AR22: =VLOOKUP(AP22,Data!$A$87:$C$95,3) -> 1.53 | AS22: ='4. Technické podlaží-garáže'!F38 -> 0 | AT22: 0.17 | AU22: 0.04 | AV22: 0.4435947712 | AW22: 1.53 | AX22: ='4. Technické podlaží-garáže'!D38 -> 0 | AY22: 0.43 | AZ22: 0
A24: Střechy a stropy | U24: Střechy a stropy | AO24: Střechy a stropy
A25: Střecha plochá nebo do 45 ° 1 | B25: 3 | C25: =VLOOKUP(Vypocet!B25,Data!$A$46:$G$57,2) -> Střecha plochá - s keramickými vložkam | D25: =VLOOKUP(B25,Data!$A$46:$G$57,3) -> 1.34 | E25: ='2. Bytové jednotky'!F42 -> 0 | F25: 0.1 | G25: 0.04 | H25: =1/D25-F25-G25 -> 0.6062686567 | I25: =1/(F25+G25+(E25/100)/$E$2+H25) -> 1.34 | J25: ='2. Bytové jednotky'!D42 -> 0 | K25: 1 | L25: 0 | U25: Střecha plochá nebo do 45 ° 1 | V25: 1 | W25: =VLOOKUP(Vypocet!V25,Data!$A$46:$G$57,2) -> Střecha plochá - s železobetonovou deskou | X25: =VLOOKUP(V25,Data!$A$46:$G$57,3) -> 0.5 | Y25: ='3. Schodišťový prostor'!F42 -> 0 | Z25: 0.1 | AA25: 0.04 | AB25: =1/X25-Z25-AA25 -> 1.86 | AC25: =1/(Z25+AA25+(Y25/100)/$E$2+AB25) -> 0.5 | AD25: ='3. Schodišťový prostor'!D42 -> 0 | AE25: 1 | AF25: =AC25*AD25*AE25 -> 0 | AO25: Střecha plochá nebo do 45 ° 1 | AP25: 3 | AQ25: =VLOOKUP(Vypocet!AP25,Data!$A$46:$G$57,2) -> Střecha plochá - s keramickými vložkam | AR25: =VLOOKUP(AP25,Data!$A$46:$G$57,3) -> 1.34 | AS25: ='4. Technické podlaží-garáže'!F42 -> 0 | AT25: 0.1 | AU25: 0.04 | AV25: =1/AR25-AT25-AU25 -> 0.6062686567 | AW25: =1/(AT25+AU25+(AS25/100)/$E$2+AV25) -> 1.34 | AX25: ='4. Technické podlaží-garáže'!D42 -> 0 | AY25: 1 | AZ25: =AW25*AX25*AY25 -> 0
A26: Střecha plochá nebo do 45 ° 2 | B26: 3 | C26: =VLOOKUP(Vypocet!B26,Data!$A$46:$G$57,2) -> Střecha plochá - s keramickými vložkam | D26: =VLOOKUP(B26,Data!$A$46:$G$57,3) -> 1.34 | E26: ='2. Bytové jednotky'!F43 -> 0 | F26: 0.1 | G26: 0.04 | H26: =1/D26-F26-G26 -> 0.6062686567 | I26: =1/(F26+G26+(E26/100)/$E$2+H26) -> 1.34 | J26: ='2. Bytové jednotky'!D43 -> 0 | K26: 1 | L26: 0 | U26: Střecha plochá nebo do 45 ° 2 | V26: 1 | W26: =VLOOKUP(Vypocet!V26,Data!$A$46:$G$57,2) -> Střecha plochá - s železobetonovou deskou | X26: =VLOOKUP(V26,Data!$A$46:$G$57,3) -> 0.5 | Y26: ='3. Schodišťový prostor'!F43 -> 0 | Z26: 0.1 | AA26: 0.04 | AB26: =1/X26-Z26-AA26 -> 1.86 | AC26: =1/(Z26+AA26+(Y26/100)/$E$2+AB26) -> 0.5 | AD26: ='3. Schodišťový prostor'!D43 -> 0 | AE26: 1 | AF26: 0 | AO26: Střecha plochá nebo do 45 ° 2 | AP26: 3 | AQ26: =VLOOKUP(Vypocet!AP26,Data!$A$46:$G$57,2) -> Střecha plochá - s keramickými vložkam | AR26: =VLOOKUP(AP26,Data!$A$46:$G$57,3) -> 1.34 | AS26: ='4. Technické podlaží-garáže'!F43 -> 0 | AT26: 0.1 | AU26: 0.04 | AV26: =1/AR26-AT26-AU26 -> 0.6062686567 | AW26: =1/(AT26+AU26+(AS26/100)/$E$2+AV26) -> 1.34 | AX26: ='4. Technické podlaží-garáže'!D43 -> 0 | AY26: 1 | AZ26: 0
A28: Střecha šikmá nad 45 ° 1 | B28: 1 | C28: =VLOOKUP(Vypocet!B28,Data!$A$58:$G$63,2) -> Střecha šikmá - tenká vrstva izolace (zastaralá) | D28: =VLOOKUP(B28,Data!$A$58:$G$63,3) -> 0.66 | E28: ='2. Bytové jednotky'!F45 -> 0 | F28: 0.1 | G28: 0.04 | H28: =1/D28-F28-G28 -> 1.375151515 | I28: =1/(F28+G28+(E28/100)/$E$2+H28) -> 0.66 | J28: ='2. Bytové jednotky'!D45 -> 0 | K28: 1 | L28: 0 | U28: Střecha šikmá nad 45 ° 1 | V28: 1 | W28: =VLOOKUP(Vypocet!V28,Data!$A$58:$G$63,2) -> Střecha šikmá - tenká vrstva izolace (zastaralá) | X28: =VLOOKUP(V28,Data!$A$58:$G$63,3) -> 0.66 | Y28: ='3. Schodišťový prostor'!F45 -> 0 | Z28: 0.1 | AA28: 0.04 | AB28: =1/X28-Z28-AA28 -> 1.375151515 | AC28: =1/(Z28+AA28+(Y28/100)/$E$2+AB28) -> 0.66 | AD28: ='3. Schodišťový prostor'!D45 -> 0 | AE28: 1 | AF28: =AC28*AD28*AE28 -> 0 | AO28: Střecha šikmá nad 45 ° 1 | AP28: 1 | AQ28: =VLOOKUP(Vypocet!AP28,Data!$A$58:$G$63,2) -> Střecha šikmá - tenká vrstva izolace (zastaralá) | AR28: =VLOOKUP(AP28,Data!$A$58:$G$63,3) -> 0.66 | AS28: ='4. Technické podlaží-garáže'!F45 -> 0 | AT28: 0.1 | AU28: 0.04 | AV28: =1/AR28-AT28-AU28 -> 1.375151515 | AW28: =1/(AT28+AU28+(AS28/100)/$E$2+AV28) -> 0.66 | AX28: ='4. Technické podlaží-garáže'!D45 -> 0 | AY28: 1 | AZ28: =AW28*AX28*AY28 -> 0
A29: Střecha šikmá nad 45 ° 1 | B29: 1 | C29: =VLOOKUP(Vypocet!B29,Data!$A$58:$G$63,2) -> Střecha šikmá - tenká vrstva izolace (zastaralá) | D29: =VLOOKUP(B29,Data!$A$58:$G$63,3) -> 0.66 | E29: ='2. Bytové jednotky'!F46 -> 0 | F29: 0.1 | G29: 0.04 | H29: =1/D29-F29-G29 -> 1.375151515 | I29: =1/(F29+G29+(E29/100)/$E$2+H29) -> 0.66 | J29: ='2. Bytové jednotky'!D46 -> 0 | K29: 1 | L29: 0 | U29: Střecha šikmá nad 45 ° 1 | V29: 1 | W29: =VLOOKUP(Vypocet!V29,Data!$A$58:$G$63,2) -> Střecha šikmá - tenká vrstva izolace (zastaralá) | X29: =VLOOKUP(V29,Data!$A$58:$G$63,3) -> 0.66 | Y29: ='3. Schodišťový prostor'!F46 -> 0 | Z29: 0.1 | AA29: 0.04 | AB29: =1/X29-Z29-AA29 -> 1.375151515 | AC29: =1/(Z29+AA29+(Y29/100)/$E$2+AB29) -> 0.66 | AD29: ='3. Schodišťový prostor'!D46 -> 0 | AE29: 1 | AF29: 0 | AO29: Střecha šikmá nad 45 ° 1 | AP29: 1 | AQ29: =VLOOKUP(Vypocet!AP29,Data!$A$58:$G$63,2) -> Střecha šikmá - tenká vrstva izolace (zastaralá) | AR29: =VLOOKUP(AP29,Data!$A$58:$G$63,3) -> 0.66 | AS29: ='4. Technické podlaží-garáže'!F46 -> 0 | AT29: 0.1 | AU29: 0.04 | AV29: =1/AR29-AT29-AU29 -> 1.375151515 | AW29: =1/(AT29+AU29+(AS29/100)/$E$2+AV29) -> 0.66 | AX29: ='4. Technické podlaží-garáže'!D46 -> 0 | AY29: 1 | AZ29: 0
A31: Strop pod půdou 1 | B31: 1 | C31: =VLOOKUP(Vypocet!B31,Data!$A$64:$G$70,2) -> Strop - dřevěný,trámový | D31: =VLOOKUP(B31,Data!$A$64:$G$70,3) -> 0.99 | E31: ='2. Bytové jednotky'!F48 -> 0 | F31: 0.1 | G31: 0.04 | H31: =1/D31-F31-G31 -> 0.8701010101 | I31: =1/(F31+G31+(E31/100)/$E$2+H31) -> 0.99 | J31: ='2. Bytové jednotky'!D48 -> 0 | K31: 0.83 | L31: 0 | U31: Strop pod půdou 1 | V31: 1 | W31: =VLOOKUP(Vypocet!V31,Data!$A$64:$G$70,2) -> Strop - dřevěný,trámový | X31: =VLOOKUP(V31,Data!$A$64:$G$70,3) -> 0.99 | Y31: ='3. Schodišťový prostor'!F48 -> 0 | Z31: 0.1 | AA31: 0.04 | AB31: =1/X31-Z31-AA31 -> 0.8701010101 | AC31: =1/(Z31+AA31+(Y31/100)/$E$2+AB31) -> 0.99 | AD31: ='3. Schodišťový prostor'!D48 -> 0 | AE31: 0.83 | AF31: =AC31*AD31*AE31 -> 0 | AO31: Strop pod půdou 1 | AP31: 1 | AQ31: =VLOOKUP(Vypocet!AP31,Data!$A$64:$G$70,2) -> Strop - dřevěný,trámový | AR31: =VLOOKUP(AP31,Data!$A$64:$G$70,3) -> 0.99 | AS31: ='4. Technické podlaží-garáže'!F48 -> 0 | AT31: 0.1 | AU31: 0.04 | AV31: =1/AR31-AT31-AU31 -> 0.8701010101 | AW31: =1/(AT31+AU31+(AS31/100)/$E$2+AV31) -> 0.99 | AX31: ='4. Technické podlaží-garáže'!D48 -> 0 | AY31: 0.83 | AZ31: =AW31*AX31*AY31 -> 0
A32: Strop pod půdou 2 | B32: 1 | C32: =VLOOKUP(Vypocet!B32,Data!$A$64:$G$70,2) -> Strop - dřevěný,trámový | D32: =VLOOKUP(B32,Data!$A$64:$G$70,3) -> 0.99 | E32: ='2. Bytové jednotky'!F49 -> 0 | F32: 0.1 | G32: 0.04 | H32: =1/D32-F32-G32 -> 0.8701010101 | I32: =1/(F32+G32+(E32/100)/$E$2+H32) -> 0.99 | J32: ='2. Bytové jednotky'!D49 -> 0 | K32: 0.83 | L32: 0 | U32: Strop pod půdou 2 | V32: 1 | W32: =VLOOKUP(Vypocet!V32,Data!$A$64:$G$70,2) -> Strop - dřevěný,trámový | X32: =VLOOKUP(V32,Data!$A$64:$G$70,3) -> 0.99 | Y32: ='3. Schodišťový prostor'!F49 -> 0 | Z32: 0.1 | AA32: 0.04 | AB32: =1/X32-Z32-AA32 -> 0.8701010101 | AC32: =1/(Z32+AA32+(Y32/100)/$E$2+AB32) -> 0.99 | AD32: ='3. Schodišťový prostor'!D49 -> 0 | AE32: 0.83 | AF32: 0 | AO32: Strop pod půdou 2 | AP32: 1 | AQ32: =VLOOKUP(Vypocet!AP32,Data!$A$64:$G$70,2) -> Strop - dřevěný,trámový | AR32: =VLOOKUP(AP32,Data!$A$64:$G$70,3) -> 0.99 | AS32: ='4. Technické podlaží-garáže'!F49 -> 0 | AT32: 0.1 | AU32: 0.04 | AV32: =1/AR32-AT32-AU32 -> 0.8701010101 | AW32: =1/(AT32+AU32+(AS32/100)/$E$2+AV32) -> 0.99 | AX32: ='4. Technické podlaží-garáže'!D49 -> 0 | AY32: 0.83 | AZ32: 0
A34: Stěny k nevyt. prostoru | U34: Stěny k nevyt. prostoru | AO34: Stěny k nevyt. prostoru
A35: Stěna k nevytápěnému prostoru 1 | B35: 1 | C35: =VLOOKUP(Vypocet!B35,Data!$A$129:$B$152,2) -> Cihly plné 10 cm | D35: =VLOOKUP(B35,Data!$A$129:$C$152,3) -> 2.87 | E35: ='2. Bytové jednotky'!F52 -> 0 | F35: 0.13 | G35: 0.04 | H35: =1/D35-F35-G35 -> 0.1784320557 | I35: =1/(F35+G35+(E35/100)/$E$2+H35) -> 2.87 | J35: ='2. Bytové jednotky'!D52 -> 0 | K35: 0.49 | L35: 0 | U35: Stěna k nevytápěnému prostoru 1 | V35: 1 | W35: =VLOOKUP(Vypocet!V35,Data!$A$129:$B$152,2) -> Cihly plné 10 cm | X35: =VLOOKUP(V35,Data!$A$129:$C$152,3) -> 2.87 | Y35: ='3. Schodišťový prostor'!F52 -> 0 | Z35: 0.13 | AA35: 0.04 | AB35: =1/X35-Z35-AA35 -> 0.1784320557 | AC35: =1/(Z35+AA35+(Y35/100)/$E$2+AB35) -> 2.87 | AD35: ='3. Schodišťový prostor'!D52 -> 0 | AE35: 0.49 | AF35: =AC35*AD35*AE35 -> 0 | AO35: Stěna k nevytápěnému prostoru 1 | AP35: 1 | AQ35: =VLOOKUP(Vypocet!AP35,Data!$A$129:$B$152,2) -> Cihly plné 10 cm | AR35: =VLOOKUP(AP35,Data!$A$129:$C$152,3) -> 2.87 | AS35: ='4. Technické podlaží-garáže'!F52 -> 0 | AT35: 0.13 | AU35: 0.04 | AV35: =1/AR35-AT35-AU35 -> 0.1784320557 | AW35: =1/(AT35+AU35+(AS35/100)/$E$2+AV35) -> 2.87 | AX35: ='4. Technické podlaží-garáže'!D52 -> 0 | AY35: 0.49 | AZ35: =AW35*AX35*AY35 -> 0
A36: Stěna k nevytápěnému prostoru 2 | B36: 1 | C36: =VLOOKUP(Vypocet!B36,Data!$A$129:$B$152,2) -> Cihly plné 10 cm | D36: =VLOOKUP(B36,Data!$A$129:$C$152,3) -> 2.87 | E36: ='2. Bytové jednotky'!F53 -> 0 | F36: 0.13 | G36: 0.04 | H36: =1/D36-F36-G36 -> 0.1784320557 | I36: =1/(F36+G36+(E36/100)/$E$2+H36) -> 2.87 | J36: ='2. Bytové jednotky'!D53 -> 0 | K36: 0.49 | L36: 0 | U36: Stěna k nevytápěnému prostoru 2 | V36: 1 | W36: =VLOOKUP(Vypocet!V36,Data!$A$129:$B$152,2) -> Cihly plné 10 cm | X36: =VLOOKUP(V36,Data!$A$129:$C$152,3) -> 2.87 | Y36: ='3. Schodišťový prostor'!F53 -> 0 | Z36: 0.13 | AA36: 0.04 | AB36: =1/X36-Z36-AA36 -> 0.1784320557 | AC36: =1/(Z36+AA36+(Y36/100)/$E$2+AB36) -> 2.87 | AD36: ='3. Schodišťový prostor'!D53 -> 0 | AE36: 0.49 | AF36: 0 | AO36: Stěna k nevytápěnému prostoru 2 | AP36: 1 | AQ36: =VLOOKUP(Vypocet!AP36,Data!$A$129:$B$152,2) -> Cihly plné 10 cm | AR36: =VLOOKUP(AP36,Data!$A$129:$C$152,3) -> 2.87 | AS36: ='4. Technické podlaží-garáže'!F53 -> 0 | AT36: 0.13 | AU36: 0.04 | AV36: =1/AR36-AT36-AU36 -> 0.1784320557 | AW36: =1/(AT36+AU36+(AS36/100)/$E$2+AV36) -> 2.87 | AX36: ='4. Technické podlaží-garáže'!D53 -> 0 | AY36: 0.49 | AZ36: 0
A37: Stěna ke stejně vytápěnému prostoru 1 | B37: 1 | C37: =VLOOKUP(Vypocet!B37,Data!$A$129:$B$152,2) -> Cihly plné 10 cm | D37: =VLOOKUP(B37,Data!$A$129:$C$152,3) -> 2.87 | F37: 0.13 | G37: 0.04 | H37: =1/D37-F37-G37 -> 0.1784320557 | I37: =1/(F37+G37+(E37/100)/$E$2+H37) -> 2.87 | J37: ='2. Bytové jednotky'!D54 -> 0 | K37: 0.03 | L37: 0 | U37: Stěna ke stejně vytápěnému prostoru 1 | V37: 1 | W37: =VLOOKUP(Vypocet!V37,Data!$A$129:$B$152,2) -> Cihly plné 10 cm | X37: =VLOOKUP(V37,Data!$A$129:$C$152,3) -> 2.87 | Z37: 0.13 | AA37: 0.04 | AB37: =1/X37-Z37-AA37 -> 0.1784320557 | AC37: =1/(Z37+AA37+(Y37/100)/$E$2+AB37) -> 2.87 | AD37: ='3. Schodišťový prostor'!D54 -> 0 | AE37: 0.03 | AF37: 0 | AO37: Stěna ke stejně vytápěnému prostoru 1 | AP37: 1 | AQ37: =VLOOKUP(Vypocet!AP37,Data!$A$129:$B$152,2) -> Cihly plné 10 cm | AR37: =VLOOKUP(AP37,Data!$A$129:$C$152,3) -> 2.87 | AT37: 0.13 | AU37: 0.04 | AV37: =1/AR37-AT37-AU37 -> 0.1784320557 | AW37: =1/(AT37+AU37+(AS37/100)/$E$2+AV37) -> 2.87 | AX37: ='4. Technické podlaží-garáže'!D54 -> 0 | AY37: 0.03 | AZ37: 0
A38: Stěna ke stejně vytápěnému prostoru 2 | B38: 1 | C38: =VLOOKUP(Vypocet!B38,Data!$A$129:$B$152,2) -> Cihly plné 10 cm | D38: =VLOOKUP(B38,Data!$A$129:$C$152,3) -> 2.87 | F38: 0.13 | G38: 0.04 | H38: =1/D38-F38-G38 -> 0.1784320557 | I38: =1/(F38+G38+(E38/100)/$E$2+H38) -> 2.87 | J38: ='2. Bytové jednotky'!D55 -> 0 | K38: 0.03 | L38: 0 | U38: Stěna ke stejně vytápěnému prostoru 2 | V38: 1 | W38: =VLOOKUP(Vypocet!V38,Data!$A$129:$B$152,2) -> Cihly plné 10 cm | X38: =VLOOKUP(V38,Data!$A$129:$C$152,3) -> 2.87 | Z38: 0.13 | AA38: 0.04 | AB38: =1/X38-Z38-AA38 -> 0.1784320557 | AC38: =1/(Z38+AA38+(Y38/100)/$E$2+AB38) -> 2.87 | AD38: ='3. Schodišťový prostor'!D55 -> 0 | AE38: 0.03 | AF38: 0 | AO38: Stěna ke stejně vytápěnému prostoru 2 | AP38: 1 | AQ38: =VLOOKUP(Vypocet!AP38,Data!$A$129:$B$152,2) -> Cihly plné 10 cm | AR38: =VLOOKUP(AP38,Data!$A$129:$C$152,3) -> 2.87 | AT38: 0.13 | AU38: 0.04 | AV38: =1/AR38-AT38-AU38 -> 0.1784320557 | AW38: =1/(AT38+AU38+(AS38/100)/$E$2+AV38) -> 2.87 | AX38: ='4. Technické podlaží-garáže'!D55 -> 0 | AY38: 0.03 | AZ38: 0
M39: korekce dveře | AG39: korekce dveře | BA39: korekce dveře | BB39: Σ
A40: Okna a dveře 1 | B40: 1 | C40: =VLOOKUP(Vypocet!B40,Data!$A$102:$B$117,2) -> okno jednoduché s jedním sklem | D40: =VLOOKUP(B40,Data!$A$102:$C$117,3) -> 4.5 | I40: =D40 -> 4.5 | J40: ='2. Bytové jednotky'!D19 -> 0 | K40: 1 | L40: 0 | M40: =IF(OR(B40=10,B40=14,B40=16),-J40,0) -> 0 | N40: =VLOOKUP(B40,Data!$A$102:$H$117,8) -> 0.85 | O40: <-g - souč. prop. sol. záření | U40: Okna a dveře 1 | V40: 1 | W40: =VLOOKUP(Vypocet!V40,Data!$A$102:$B$117,2) -> okno jednoduché s jedním sklem | X40: =VLOOKUP(V40,Data!$A$102:$C$117,3) -> 4.5 | AC40: =X40 -> 4.5 | AD40: ='3. Schodišťový prostor'!D19 -> 0 | AE40: 1 | AF40: =AC40*AD40*AE40 -> 0 | AG40: =IF(OR(V40=10,V40=14,V40=16),-AD40,0) -> 0 | AH40: =VLOOKUP(V40,Data!$A$102:$H$117,8) -> 0.85 | AI40: <-g - souč. prop. sol. záření | AO40: Okna a dveře 1 | AP40: 1 | AQ40: =VLOOKUP(Vypocet!AP40,Data!$A$102:$B$117,2) -> okno jednoduché s jedním sklem | AR40: =VLOOKUP(AP40,Data!$A$102:$C$117,3) -> 4.5 | AW40: =AR40 -> 4.5 | AX40: ='4. Technické podlaží-garáže'!D19 -> 0 | AY40: 1 | AZ40: =AW40*AX40*AY40 -> 0 | BA40: =IF(OR(AP40=10,AP40=14,AP40=16),-AX40,0) -> 0 | BB40: =VLOOKUP(AP40,Data!$A$102:$H$117,8) -> 0.85 | BC40: <-g - souč. prop. sol. záření
A41: Okna a dveře 2 | B41: 1 | C41: =VLOOKUP(Vypocet!B41,Data!$A$102:$B$117,2) -> okno jednoduché s jedním sklem | D41: =VLOOKUP(B41,Data!$A$102:$C$117,3) -> 4.5 | I41: 4.5 | J41: ='2. Bytové jednotky'!D20 -> 0 | K41: 1 | L41: 0 | M41: =IF(OR(B41=10,B41=14,B41=16),-J41,0) -> 0 | N41: =VLOOKUP(B41,Data!$A$102:$H$117,8) -> 0.85 | U41: Okna a dveře 2 | V41: 1 | W41: =VLOOKUP(Vypocet!V41,Data!$A$102:$B$117,2) -> okno jednoduché s jedním sklem | X41: =VLOOKUP(V41,Data!$A$102:$C$117,3) -> 4.5 | AC41: 4.5 | AD41: ='3. Schodišťový prostor'!D20 -> 0 | AE41: 1 | AF41: 0 | AG41: =IF(OR(V41=10,V41=14,V41=16),-AD41,0) -> 0 | AH41: =VLOOKUP(V41,Data!$A$102:$H$117,8) -> 0.85 | AO41: Okna a dveře 2 | AP41: 1 | AQ41: =VLOOKUP(Vypocet!AP41,Data!$A$102:$B$117,2) -> okno jednoduché s jedním sklem | AR41: =VLOOKUP(AP41,Data!$A$102:$C$117,3) -> 4.5 | AW41: 4.5 | AX41: ='4. Technické podlaží-garáže'!D20 -> 0 | AY41: 1 | AZ41: 0 | BA41: =IF(OR(AP41=10,AP41=14,AP41=16),-AX41,0) -> 0 | BB41: =VLOOKUP(AP41,Data!$A$102:$H$117,8) -> 0.85
A42: Okna a dveře 3 | B42: 1 | C42: =VLOOKUP(Vypocet!B42,Data!$A$102:$B$117,2) -> okno jednoduché s jedním sklem | D42: =VLOOKUP(B42,Data!$A$102:$C$117,3) -> 4.5 | I42: 4.5 | J42: ='2. Bytové jednotky'!D21 -> 0 | K42: 1 | L42: 0 | M42: 0 | N42: =VLOOKUP(B42,Data!$A$102:$H$117,8) -> 0.85 | U42: Okna a dveře 3 | V42: 1 | W42: =VLOOKUP(Vypocet!V42,Data!$A$102:$B$117,2) -> okno jednoduché s jedním sklem | X42: =VLOOKUP(V42,Data!$A$102:$C$117,3) -> 4.5 | AC42: 4.5 | AD42: ='3. Schodišťový prostor'!D21 -> 0 | AE42: 1 | AF42: 0 | AG42: 0 | AH42: =VLOOKUP(V42,Data!$A$102:$H$117,8) -> 0.85 | AO42: Okna a dveře 3 | AP42: 1 | AQ42: =VLOOKUP(Vypocet!AP42,Data!$A$102:$B$117,2) -> okno jednoduché s jedním sklem | AR42: =VLOOKUP(AP42,Data!$A$102:$C$117,3) -> 4.5 | AW42: 4.5 | AX42: ='4. Technické podlaží-garáže'!D21 -> 0 | AY42: 1 | AZ42: 0 | BA42: 0 | BB42: =VLOOKUP(AP42,Data!$A$102:$H$117,8) -> 0.85
A43: Okna a dveře 4 | B43: 1 | C43: =VLOOKUP(Vypocet!B43,Data!$A$102:$B$117,2) -> okno jednoduché s jedním sklem | D43: =VLOOKUP(B43,Data!$A$102:$C$117,3) -> 4.5 | I43: 4.5 | J43: ='2. Bytové jednotky'!D22 -> 0 | K43: 1 | L43: 0 | M43: 0 | N43: =VLOOKUP(B43,Data!$A$102:$H$117,8) -> 0.85 | U43: Okna a dveře 4 | V43: 1 | W43: =VLOOKUP(Vypocet!V43,Data!$A$102:$B$117,2) -> okno jednoduché s jedním sklem | X43: =VLOOKUP(V43,Data!$A$102:$C$117,3) -> 4.5 | AC43: 4.5 | AD43: ='3. Schodišťový prostor'!D22 -> 0 | AE43: 1 | AF43: 0 | AG43: 0 | AH43: =VLOOKUP(V43,Data!$A$102:$H$117,8) -> 0.85 | AO43: Okna a dveře 4 | AP43: 1 | AQ43: =VLOOKUP(Vypocet!AP43,Data!$A$102:$B$117,2) -> okno jednoduché s jedním sklem | AR43: =VLOOKUP(AP43,Data!$A$102:$C$117,3) -> 4.5 | AW43: 4.5 | AX43: ='4. Technické podlaží-garáže'!D22 -> 0 | AY43: 1 | AZ43: 0 | BA43: 0 | BB43: =VLOOKUP(AP43,Data!$A$102:$H$117,8) -> 0.85
A44: Okna a dveře 5 | B44: 1 | C44: =VLOOKUP(Vypocet!B44,Data!$A$102:$B$117,2) -> okno jednoduché s jedním sklem | D44: =VLOOKUP(B44,Data!$A$102:$C$117,3) -> 4.5 | I44: 4.5 | J44: ='2. Bytové jednotky'!D23 -> 0 | K44: 1 | L44: 0 | M44: 0 | N44: =VLOOKUP(B44,Data!$A$102:$H$117,8) -> 0.85 | U44: Okna a dveře 5 | V44: 1 | W44: =VLOOKUP(Vypocet!V44,Data!$A$102:$B$117,2) -> okno jednoduché s jedním sklem | X44: =VLOOKUP(V44,Data!$A$102:$C$117,3) -> 4.5 | AC44: 4.5 | AD44: ='3. Schodišťový prostor'!D23 -> 0 | AE44: 1 | AF44: 0 | AG44: 0 | AH44: =VLOOKUP(V44,Data!$A$102:$H$117,8) -> 0.85 | AO44: Okna a dveře 5 | AP44: 1 | AQ44: =VLOOKUP(Vypocet!AP44,Data!$A$102:$B$117,2) -> okno jednoduché s jedním sklem | AR44: =VLOOKUP(AP44,Data!$A$102:$C$117,3) -> 4.5 | AW44: 4.5 | AX44: ='4. Technické podlaží-garáže'!D23 -> 0 | AY44: 1 | AZ44: 0 | BA44: 0 | BB44: =VLOOKUP(AP44,Data!$A$102:$H$117,8) -> 0.85
A45: Okna a dveře 6 | B45: 1 | C45: =VLOOKUP(Vypocet!B45,Data!$A$102:$B$117,2) -> okno jednoduché s jedním sklem | D45: =VLOOKUP(B45,Data!$A$102:$C$117,3) -> 4.5 | I45: 4.5 | J45: ='2. Bytové jednotky'!D24 -> 0 | K45: 1 | L45: 0 | M45: 0 | N45: =VLOOKUP(B45,Data!$A$102:$H$117,8) -> 0.85 | U45: Okna a dveře 6 | V45: 1 | W45: =VLOOKUP(Vypocet!V45,Data!$A$102:$B$117,2) -> okno jednoduché s jedním sklem | X45: =VLOOKUP(V45,Data!$A$102:$C$117,3) -> 4.5 | AC45: 4.5 | AD45: ='3. Schodišťový prostor'!D24 -> 0 | AE45: 1 | AF45: 0 | AG45: 0 | AH45: =VLOOKUP(V45,Data!$A$102:$H$117,8) -> 0.85 | AO45: Okna a dveře 6 | AP45: 1 | AQ45: =VLOOKUP(Vypocet!AP45,Data!$A$102:$B$117,2) -> okno jednoduché s jedním sklem | AR45: =VLOOKUP(AP45,Data!$A$102:$C$117,3) -> 4.5 | AW45: 4.5 | AX45: ='4. Technické podlaží-garáže'!D24 -> 0 | AY45: 1 | AZ45: 0 | BA45: 0 | BB45: =VLOOKUP(AP45,Data!$A$102:$H$117,8) -> 0.85
A46: Okna a dveře 7 | B46: 1 | C46: =VLOOKUP(Vypocet!B46,Data!$A$102:$B$117,2) -> okno jednoduché s jedním sklem | D46: =VLOOKUP(B46,Data!$A$102:$C$117,3) -> 4.5 | I46: 4.5 | J46: ='2. Bytové jednotky'!D25 -> 0 | K46: 1 | L46: 0 | M46: 0 | N46: =VLOOKUP(B46,Data!$A$102:$H$117,8) -> 0.85 | U46: Okna a dveře 7 | V46: 1 | W46: =VLOOKUP(Vypocet!V46,Data!$A$102:$B$117,2) -> okno jednoduché s jedním sklem | X46: =VLOOKUP(V46,Data!$A$102:$C$117,3) -> 4.5 | AC46: 4.5 | AD46: ='3. Schodišťový prostor'!D25 -> 0 | AE46: 1 | AF46: 0 | AG46: 0 | AH46: =VLOOKUP(V46,Data!$A$102:$H$117,8) -> 0.85 | AO46: Okna a dveře 7 | AP46: 1 | AQ46: =VLOOKUP(Vypocet!AP46,Data!$A$102:$B$117,2) -> okno jednoduché s jedním sklem | AR46: =VLOOKUP(AP46,Data!$A$102:$C$117,3) -> 4.5 | AW46: 4.5 | AX46: ='4. Technické podlaží-garáže'!D25 -> 0 | AY46: 1 | AZ46: 0 | BA46: 0 | BB46: =VLOOKUP(AP46,Data!$A$102:$H$117,8) -> 0.85
A47: Okna a dveře 8 | B47: 1 | C47: =VLOOKUP(Vypocet!B47,Data!$A$102:$B$117,2) -> okno jednoduché s jedním sklem | D47: =VLOOKUP(B47,Data!$A$102:$C$117,3) -> 4.5 | I47: 4.5 | J47: ='2. Bytové jednotky'!D26 -> 0 | K47: 1 | L47: 0 | M47: 0 | N47: =VLOOKUP(B47,Data!$A$102:$H$117,8) -> 0.85 | U47: Okna a dveře 8 | V47: 1 | W47: =VLOOKUP(Vypocet!V47,Data!$A$102:$B$117,2) -> okno jednoduché s jedním sklem | X47: =VLOOKUP(V47,Data!$A$102:$C$117,3) -> 4.5 | AC47: 4.5 | AD47: ='3. Schodišťový prostor'!D26 -> 0 | AE47: 1 | AF47: 0 | AG47: 0 | AH47: =VLOOKUP(V47,Data!$A$102:$H$117,8) -> 0.85 | AO47: Okna a dveře 8 | AP47: 1 | AQ47: =VLOOKUP(Vypocet!AP47,Data!$A$102:$B$117,2) -> okno jednoduché s jedním sklem | AR47: =VLOOKUP(AP47,Data!$A$102:$C$117,3) -> 4.5 | AW47: 4.5 | AX47: ='4. Technické podlaží-garáže'!D26 -> 0 | AY47: 1 | AZ47: 0 | BA47: 0 | BB47: =VLOOKUP(AP47,Data!$A$102:$H$117,8) -> 0.85
A48: Střešní okna 1 | B48: 1 | C48: =VLOOKUP(Vypocet!B48,Data!$A$120:$B$124,2) -> okno střešní jednoduché s jedním sklem | D48: =VLOOKUP(Vypocet!B48,Data!$A$120:$C$124,3) -> 4.5 | I48: 4.5 | J48: ='2. Bytové jednotky'!D27 -> 0 | K48: 1 | L48: 0 | N48: =VLOOKUP(Vypocet!B48,Data!$A$120:$H$124,8) -> 0.85 | U48: Střešní okna 1 | V48: 1 | W48: =VLOOKUP(Vypocet!V48,Data!$A$120:$B$124,2) -> okno střešní jednoduché s jedním sklem | X48: =VLOOKUP(Vypocet!V48,Data!$A$120:$C$124,3) -> 4.5 | AC48: 4.5 | AD48: ='3. Schodišťový prostor'!D27 -> 0 | AE48: 1 | AF48: 0 | AH48: =VLOOKUP(Vypocet!V48,Data!$A$120:$H$124,8) -> 0.85 | AO48: Střešní okna 1 | AP48: 1 | AQ48: =VLOOKUP(Vypocet!AP48,Data!$A$120:$B$124,2) -> okno střešní jednoduché s jedním sklem | AR48: =VLOOKUP(Vypocet!AP48,Data!$A$120:$C$124,3) -> 4.5 | AW48: 4.5 | AX48: ='4. Technické podlaží-garáže'!D27 -> 0 | AY48: 1 | AZ48: 0 | BB48: =VLOOKUP(Vypocet!AP48,Data!$A$120:$H$124,8) -> 0.85
A49: Střešní okna 2 | B49: 1 | C49: =VLOOKUP(Vypocet!B49,Data!$A$120:$B$124,2) -> okno střešní jednoduché s jedním sklem | D49: =VLOOKUP(Vypocet!B49,Data!$A$120:$C$124,3) -> 4.5 | I49: 4.5 | J49: ='2. Bytové jednotky'!D28 -> 0 | K49: 1 | L49: 0 | N49: =VLOOKUP(Vypocet!B49,Data!$A$120:$H$124,8) -> 0.85 | U49: Střešní okna 2 | V49: 1 | W49: =VLOOKUP(Vypocet!V49,Data!$A$120:$B$124,2) -> okno střešní jednoduché s jedním sklem | X49: =VLOOKUP(Vypocet!V49,Data!$A$120:$C$124,3) -> 4.5 | AC49: 4.5 | AD49: ='3. Schodišťový prostor'!D28 -> 0 | AE49: 1 | AF49: 0 | AH49: =VLOOKUP(Vypocet!V49,Data!$A$120:$H$124,8) -> 0.85 | AO49: Střešní okna 2 | AP49: 1 | AQ49: =VLOOKUP(Vypocet!AP49,Data!$A$120:$B$124,2) -> okno střešní jednoduché s jedním sklem | AR49: =VLOOKUP(Vypocet!AP49,Data!$A$120:$C$124,3) -> 4.5 | AW49: 4.5 | AX49: ='4. Technické podlaží-garáže'!D28 -> 0 | AY49: 1 | AZ49: 0 | BB49: =VLOOKUP(Vypocet!AP49,Data!$A$120:$H$124,8) -> 0.85
A50: suma A | U50: suma A | AO50: suma A
A51: tepelné mosty | E51: delta U | I51: =IF(D56=1,0.02,IF((D91+D104)<=3,0.02,IF((D91+D104)<=5,0.05,IF((D91+D104)>5,0.1,"chyba")))) -> 0.02 | J51: =SUM(J4:J49) -> 0 | L51: =I51*J51 -> 0 | U51: tepelné mosty | Y51: delta U | AC51: =IF(D56=1,0.02,IF((X91+X104)<=3,0.02,IF((X91+X104)<=5,0.05,IF((X91+X104)>5,0.1,"chyba")))) -> 0.02 | AD51: =SUM(AD4:AD49) -> 0 | AF51: =AC51*AD51 -> 0 | AO51: tepelné mosty | AS51: delta U | AW51: =IF(D56=1,0.02,IF((AR91+AR104)<=3,0.02,IF((AR91+AR104)<=5,0.05,IF((AR91+AR104)>5,0.1,"chyba")))) -> 0.02 | AX51: =SUM(AX4:AX49) -> 0 | AZ51: =AW51*AX51 -> 0
A52: HT | L52: =SUM(L4:L51) -> 0 | U52: HT | AF52: =SUM(AF4:AF51) -> 0 | AO52: HT | AZ52: =SUM(AZ4:AZ51) -> 0
A53: Ht | B53: =L52 -> 0 | C53: W/K | U53: Ht | V53: =AF52 -> 0 | W53: W/K | AO53: Ht | AP53: =AZ52 -> 0 | AQ53: W/K
A55: Účel zpracování průkazu | C55: Konstrukce zadána
A56: Nová budova | B56: FALSE | D56: =IF(B56=TRUE,1,0) -> 0 | U56: =A56 -> Nová budova | V56: =B56 -> FALSE | X56: =D56 -> 0 | AO56: Nová budova | AP56: =V56 -> FALSE | AR56: =X56 -> 0
A57: Prodej budovy nebo její části | B57: FALSE | D57: =IF(B57=TRUE,2,0) -> 0 | U57: =A57 -> Prodej budovy nebo její části | V57: =B57 -> FALSE | X57: =D57 -> 0 | AO57: Prodej budovy nebo její části | AP57: =V57 -> FALSE | AR57: =X57 -> 0
A58: Větší změna dokončené budovy | B58: FALSE | D58: =IF(B58=TRUE,2,0) -> 0 | U58: Větší změna dokončené budovy | V58: FALSE | X58: 0 | AO58: Větší změna dokončené budovy | AP58: FALSE | AR58: 0
A59: Budova užívaná orgánem veřejné moci | B59: FALSE | D59: =IF(B59=TRUE,2,0) -> 0 | U59: Budova užívaná orgánem veřejné moci | V59: FALSE | X59: 0 | AO59: Budova užívaná orgánem veřejné moci | AP59: FALSE | AR59: 0
A60: Pronájem budovy nebo její části | B60: FALSE | D60: =IF(B60=TRUE,2,0) -> 0 | U60: =A60 -> Pronájem budovy nebo její části | V60: FALSE | X60: 0 | AO60: Pronájem budovy nebo její části | AP60: FALSE | AR60: 0
A61: =A4 -> Obvodová stěna 1 | B61: =IF(I4<=0.25,"ANO","NE") -> NE | C61: =IF(J4>0,"ANO","NE") -> NE | D61: =IF(C61="NE",0,IF(B61="ANO",0,1)) -> 0 | U61: =U4 -> Obvodová stěna 1 | V61: =IF(AC4<=0.25,"ANO","NE") -> NE | W61: =IF(AD4>0,"ANO","NE") -> NE | X61: =IF(W61="NE",0,IF(V61="ANO",0,1)) -> 0 | AO61: =AO4 -> Obvodová stěna 1 | AP61: =IF(AW4<=0.25,"ANO","NE") -> NE | AQ61: =IF(AX4>0,"ANO","NE") -> NE | AR61: =IF(AQ61="NE",0,IF(AP61="ANO",0,1)) -> 0
A62: =A5 -> Obvodová stěna 2 | B62: =IF(I5<=0.25,"ANO","NE") -> NE | C62: =IF(J5>0,"ANO","NE") -> NE | D62: =IF(C62="NE",0,IF(B62="ANO",0,1)) -> 0 | U62: =U5 -> Obvodová stěna 2 | V62: =IF(AC5<=0.25,"ANO","NE") -> NE | W62: =IF(AD5>0,"ANO","NE") -> NE | X62: =IF(W62="NE",0,IF(V62="ANO",0,1)) -> 0 | AO62: =AO5 -> Obvodová stěna 2 | AP62: =IF(AW5<=0.25,"ANO","NE") -> NE | AQ62: =IF(AX5>0,"ANO","NE") -> NE | AR62: =IF(AQ62="NE",0,IF(AP62="ANO",0,1)) -> 0
A63: Obvodová stěna 3 | B63: NE | C63: NE | D63: 0 | U63: Obvodová stěna 3 | V63: NE | W63: NE | X63: 0 | AO63: Obvodová stěna 3 | AP63: NE | AQ63: NE | AR63: 0
A64: Obvodová stěna 4 | B64: NE | C64: NE | D64: 0 | U64: Obvodová stěna 4 | V64: NE | W64: NE | X64: 0 | AO64: Obvodová stěna 4 | AP64: NE | AQ64: NE | AR64: 0
A65: Obvodová stěna 5 | B65: NE | C65: NE | D65: 0 | U65: Obvodová stěna 5 | V65: NE | W65: NE | X65: 0 | AO65: Obvodová stěna 5 | AP65: NE | AQ65: NE | AR65: 0
A66: Obvodová stěna 6 | B66: NE | C66: NE | D66: 0 | U66: Obvodová stěna 6 | V66: NE | W66: NE | X66: 0 | AO66: Obvodová stěna 6 | AP66: NE | AQ66: NE | AR66: 0
A67: Obvodová stěna 7 | B67: NE | C67: NE | D67: 0 | U67: Obvodová stěna 7 | V67: NE | W67: NE | X67: 0 | AO67: Obvodová stěna 7 | AP67: NE | AQ67: NE | AR67: 0
A68: Obvodová stěna 8 | B68: NE | C68: NE | D68: 0 | U68: Obvodová stěna 8 | V68: NE | W68: NE | X68: 0 | AO68: Obvodová stěna 8 | AP68: NE | AQ68: NE | AR68: 0
A69: Obvodová stěna 9 | B69: NE | C69: NE | D69: 0 | U69: Obvodová stěna 9 | V69: NE | W69: NE | X69: 0 | AO69: Obvodová stěna 9 | AP69: NE | AQ69: NE | AR69: 0
A70: =A13 -> Obvodová stěna 10 | B70: NE | C70: NE | D70: 0 | U70: =U13 -> Obvodová stěna 10 | V70: NE | W70: NE | X70: 0 | AO70: =AO13 -> Obvodová stěna 10 | AP70: NE | AQ70: NE | AR70: 0
A72: =A16 -> Podlaha na terénu 1 | B72: =IF(I16<=0.3,"ANO","NE") -> NE | C72: =IF(J16>0,"ANO","NE") -> NE | D72: =IF(C72="NE",0,IF(B72="ANO",0,1)) -> 0 | U72: Podlaha na zemině 1 | V72: =IF(AC16<=0.3,"ANO","NE") -> NE | W72: =IF(AD16>0,"ANO","NE") -> NE | X72: =IF(W72="NE",0,IF(V72="ANO",0,1)) -> 0 | AO72: Podlaha na zemině 1 | AP72: =IF(AW16<=0.3,"ANO","NE") -> NE | AQ72: =IF(AX16>0,"ANO","NE") -> NE | AR72: =IF(AQ72="NE",0,IF(AP72="ANO",0,1)) -> 0
A73: =A17 -> Podlaha na terénu 2 | B73: =IF(I17<=0.3,"ANO","NE") -> NE | C73: =IF(J17>0,"ANO","NE") -> NE | D73: 0 | U73: Podlaha na zemině 2 | V73: =IF(AC17<=0.3,"ANO","NE") -> NE | W73: =IF(AD17>0,"ANO","NE") -> NE | X73: 0 | AO73: Podlaha na zemině 2 | AP73: =IF(AW17<=0.3,"ANO","NE") -> NE | AQ73: =IF(AX17>0,"ANO","NE") -> NE | AR73: 0
A74: Podlaha na terénu 3 | B74: NE | C74: NE | D74: 0 | U74: Podlaha na zemině 3 | V74: NE | W74: NE | X74: 0 | AO74: Podlaha na zemině 3 | AP74: NE | AQ74: NE | AR74: 0
A76: =A20 -> Podlaha nad nevytápěným sklepem 1 | B76: =IF(I20<=0.4,"ANO","NE") -> NE | C76: =IF(J20>0,"ANO","NE") -> NE | D76: 0 | U76: Podlaha nad nevytápěným sklepem 1 | V76: =IF(AC20<=0.4,"ANO","NE") -> NE | W76: =IF(AD20>0,"ANO","NE") -> NE | X76: =IF(W76="NE",0,IF(V76="ANO",0,1)) -> 0 | AO76: Podlaha nad nevytápěným sklepem 1 | AP76: =IF(AW20<=0.4,"ANO","NE") -> NE | AQ76: =IF(AX20>0,"ANO","NE") -> NE | AR76: =IF(AQ76="NE",0,IF(AP76="ANO",0,1)) -> 0
A77: =A21 -> Podlaha nad nevytápěným sklepem 2 | B77: =IF(I21<=0.4,"ANO","NE") -> NE | C77: =IF(J21>0,"ANO","NE") -> NE | D77: 0 | U77: Podlaha nad nevytápěným sklepem 2 | V77: =IF(AC21<=0.4,"ANO","NE") -> NE | W77: =IF(AD21>0,"ANO","NE") -> NE | X77: 0 | AO77: Podlaha nad nevytápěným sklepem 2 | AP77: =IF(AW21<=0.4,"ANO","NE") -> NE | AQ77: =IF(AX21>0,"ANO","NE") -> NE | AR77: 0
A78: Podlaha nad nevytápěným sklepem 3 | B78: NE | C78: NE | D78: 0 | U78: Podlaha nad nevytápěným sklepem 3 | V78: NE | W78: NE | X78: 0 | AO78: Podlaha nad nevytápěným sklepem 3 | AP78: NE | AQ78: NE | AR78: 0
A80: Střecha plochá nebo do 45 ° 1 | B80: =IF(I25<=0.16,"ANO","NE") -> NE | C80: =IF(J25>0,"ANO","NE") -> NE | D80: 0 | U80: Střecha plochá nebo do 45 ° 1 | V80: =IF(AC25<=0.16,"ANO","NE") -> NE | W80: =IF(AD25>0,"ANO","NE") -> NE | X80: =IF(W80="NE",0,IF(V80="ANO",0,1)) -> 0 | AO80: Střecha plochá nebo do 45 ° 1 | AP80: =IF(AW25<=0.16,"ANO","NE") -> NE | AQ80: =IF(AX25>0,"ANO","NE") -> NE | AR80: =IF(AQ80="NE",0,IF(AP80="ANO",0,1)) -> 0
A81: Střecha plochá nebo do 45 ° 2 | B81: =IF(I26<=0.16,"ANO","NE") -> NE | C81: =IF(J26>0,"ANO","NE") -> NE | D81: 0 | U81: Střecha plochá nebo do 45 ° 2 | V81: =IF(AC26<=0.16,"ANO","NE") -> NE | W81: =IF(AD26>0,"ANO","NE") -> NE | X81: 0 | AO81: Střecha plochá nebo do 45 ° 2 | AP81: =IF(AW26<=0.16,"ANO","NE") -> NE | AQ81: =IF(AX26>0,"ANO","NE") -> NE | AR81: 0
A83: Střecha šikmá nad 45 ° 1 | B83: =IF(I28<=0.2,"ANO","NE") -> NE | C83: =IF(J28>0,"ANO","NE") -> NE | D83: 0 | U83: Střecha šikmá nad 45 ° 1 | V83: =IF(AC28<=0.2,"ANO","NE") -> NE | W83: =IF(AD28>0,"ANO","NE") -> NE | X83: =IF(W83="NE",0,IF(V83="ANO",0,1)) -> 0 | AO83: Střecha šikmá nad 45 ° 1 | AP83: =IF(AW28<=0.2,"ANO","NE") -> NE | AQ83: =IF(AX28>0,"ANO","NE") -> NE | AR83: =IF(AQ83="NE",0,IF(AP83="ANO",0,1)) -> 0
A84: Střecha šikmá nad 45 ° 1 | B84: =IF(I29<=0.2,"ANO","NE") -> NE | C84: =IF(J29>0,"ANO","NE") -> NE | D84: 0 | U84: Střecha šikmá nad 45 ° 1 | V84: =IF(AC29<=0.2,"ANO","NE") -> NE | W84: =IF(AD29>0,"ANO","NE") -> NE | X84: 0 | AO84: Střecha šikmá nad 45 ° 1 | AP84: =IF(AW29<=0.2,"ANO","NE") -> NE | AQ84: =IF(AX29>0,"ANO","NE") -> NE | AR84: 0
A86: Strop pod půdou 1 | B86: =IF(I31<=0.2,"ANO","NE") -> NE | C86: =IF(J31>0,"ANO","NE") -> NE | D86: 0 | U86: Strop pod půdou 1 | V86: =IF(AC31<=0.2,"ANO","NE") -> NE | W86: =IF(AD31>0,"ANO","NE") -> NE | X86: =IF(W86="NE",0,IF(V86="ANO",0,1)) -> 0 | AO86: Strop pod půdou 1 | AP86: =IF(AW31<=0.2,"ANO","NE") -> NE | AQ86: =IF(AX31>0,"ANO","NE") -> NE | AR86: =IF(AQ86="NE",0,IF(AP86="ANO",0,1)) -> 0
A87: Strop pod půdou 2 | B87: =IF(I32<=0.2,"ANO","NE") -> NE | C87: =IF(J32>0,"ANO","NE") -> NE | D87: 0 | U87: Strop pod půdou 2 | V87: =IF(AC32<=0.2,"ANO","NE") -> NE | W87: =IF(AD32>0,"ANO","NE") -> NE | X87: 0 | AO87: Strop pod půdou 2 | AP87: =IF(AW32<=0.2,"ANO","NE") -> NE | AQ87: =IF(AX32>0,"ANO","NE") -> NE | AR87: 0
A89: Stěna k nevytápěnému prostoru 1 | B89: =IF(I35<=0.4,"ANO","NE") -> NE | C89: =IF(J35>0,"ANO","NE") -> NE | D89: 0 | U89: Stěna k nevytápěnému prostoru 1 | V89: =IF(AC35<=0.4,"ANO","NE") -> NE | W89: =IF(AD35>0,"ANO","NE") -> NE | X89: 0 | AO89: Stěna k nevytápěnému prostoru 1 | AP89: =IF(AW35<=0.4,"ANO","NE") -> NE | AQ89: =IF(AX35>0,"ANO","NE") -> NE | AR89: 0
A90: Stěna k nevytápěnému prostoru 2 | B90: =IF(I36<=0.4,"ANO","NE") -> NE | C90: =IF(J36>0,"ANO","NE") -> NE | D90: 0 | U90: Stěna k nevytápěnému prostoru 2 | V90: =IF(AC36<=0.4,"ANO","NE") -> NE | W90: =IF(AD36>0,"ANO","NE") -> NE | X90: 0 | AO90: Stěna k nevytápěnému prostoru 2 | AP90: =IF(AW36<=0.4,"ANO","NE") -> NE | AQ90: =IF(AX36>0,"ANO","NE") -> NE | AR90: 0
D91: =SUM(D56:D90) -> 0 | X91: =SUM(X56:X90) -> 0 | AR91: =SUM(AR56:AR90) -> 0
A93: OKNA | B93: Uw≤1,2 | C93: Okno zadáno | U93: OKNA | V93: Uw≤1,2 | W93: Okno zadáno | AO93: OKNA | AP93: Uw≤1,2 | AQ93: Okno zadáno
A94: =A40 -> Okna a dveře 1 | B94: =IF(I40<=1.2,"ANO","NE") -> NE | C94: =IF(J40>0,"ANO","NE") -> NE | D94: =IF(C94="NE",0,IF(B94="ANO",0,1)) -> 0 | U94: =U40 -> Okna a dveře 1 | V94: =IF(AC40<=1.2,"ANO","NE") -> NE | W94: =IF(AD40>0,"ANO","NE") -> NE | X94: =IF(W94="NE",0,IF(V94="ANO",0,1)) -> 0 | AO94: =AO40 -> Okna a dveře 1 | AP94: =IF(AW40<=1.2,"ANO","NE") -> NE | AQ94: =IF(AX40>0,"ANO","NE") -> NE | AR94: =IF(AQ94="NE",0,IF(AP94="ANO",0,1)) -> 0
A95: =A41 -> Okna a dveře 2 | B95: =IF(I41<=1.2,"ANO","NE") -> NE | C95: =IF(J41>0,"ANO","NE") -> NE | D95: =IF(C95="NE",0,IF(B95="ANO",0,1)) -> 0 | U95: =U41 -> Okna a dveře 2 | V95: =IF(AC41<=1.2,"ANO","NE") -> NE | W95: =IF(AD41>0,"ANO","NE") -> NE | X95: =IF(W95="NE",0,IF(V95="ANO",0,1)) -> 0 | AO95: =AO41 -> Okna a dveře 2 | AP95: =IF(AW41<=1.2,"ANO","NE") -> NE | AQ95: =IF(AX41>0,"ANO","NE") -> NE | AR95: =IF(AQ95="NE",0,IF(AP95="ANO",0,1)) -> 0
A96: Okna a dveře 3 | B96: NE | C96: NE | D96: 0 | U96: Okna a dveře 3 | V96: NE | W96: NE | X96: 0 | AO96: Okna a dveře 3 | AP96: NE | AQ96: NE | AR96: 0
A97: Okna a dveře 4 | B97: NE | C97: NE | D97: 0 | U97: Okna a dveře 4 | V97: NE | W97: NE | X97: 0 | AO97: Okna a dveře 4 | AP97: NE | AQ97: NE | AR97: 0
A98: Okna a dveře 5 | B98: NE | C98: NE | D98: 0 | U98: Okna a dveře 5 | V98: NE | W98: NE | X98: 0 | AO98: Okna a dveře 5 | AP98: NE | AQ98: NE | AR98: 0
A99: Okna a dveře 6 | B99: NE | C99: NE | D99: 0 | U99: Okna a dveře 6 | V99: NE | W99: NE | X99: 0 | AO99: Okna a dveře 6 | AP99: NE | AQ99: NE | AR99: 0
A100: Okna a dveře 7 | B100: NE | C100: NE | D100: 0 | U100: Okna a dveře 7 | V100: NE | W100: NE | X100: 0 | AO100: Okna a dveře 7 | AP100: NE | AQ100: NE | AR100: 0
A101: Okna a dveře 8 | B101: NE | C101: NE | D101: 0 | U101: Okna a dveře 8 | V101: NE | W101: NE | X101: 0 | AO101: Okna a dveře 8 | AP101: NE | AQ101: NE | AR101: 0
A102: =A48 -> Střešní okna 1 | B102: NE | C102: NE | D102: 0 | U102: =U48 -> Střešní okna 1 | V102: NE | W102: NE | X102: 0 | AO102: =AO48 -> Střešní okna 1 | AP102: NE | AQ102: NE | AR102: 0
A103: Střešní okna 2 | B103: NE | C103: NE | D103: 0 | U103: Střešní okna 2 | V103: NE | W103: NE | X103: 0 | AO103: Střešní okna 2 | AP103: NE | AQ103: NE | AR103: 0
D104: =SUM(D94:D103) -> 0 | G104: =IF(D56=1,1,IF((D91+D104)<=2,2,IF(D104=0,3,IF((D91+D104)>2,4)))) -> 2 | X104: =SUM(X94:X103) -> 0 | AA104: =IF(D56=1,1,IF((X91+X104)<=2,2,IF(X104=0,3,IF((X91+X104)>2,4)))) -> 2 | AR104: =SUM(AR94:AR103) -> 0 | AU104: =IF(D56=1,1,IF((AR91+AR104)<=2,2,IF(AR104=0,3,IF((AR91+AR104)>2,4)))) -> 2
A107: Bytové jendnotky | C107: Podlahová plocha z vnitřních rozměrů | G107: Bytové jednotky | M107: koeficient pro pricky | N107: 0.95 | S107: Schodišťový prostor | U107: Podlahová plocha z vnitřních rozměrů | X107: Schodiště | AM107: Technické podlaží/garáže | AO107: Podlahová plocha z vnitřních rozměrů | AR107: Tech.podlaží/garáže
A108: a | B108: ='5. Geometrie - Byty'!F10 -> 0 | C108: počet podlaží | G108: ='5. Geometrie - Byty'!F7 -> 0 | S108: a | T108: ='6. Geometrie - Sch'!F10 -> 0 | U108: počet podlaží | X108: ='6. Geometrie - Sch'!$F$7 -> 0 | AM108: a | AN108: ='7. Geometrie - Tech'!$F$10 -> 0 | AO108: počet podlaží | AR108: ='7. Geometrie - Tech'!$F$7 -> 0
A109: b | B109: ='5. Geometrie - Byty'!F11 -> 0 | C109: plocha podlah | G109: =SUM(J16:J18,J20:J22) -> 0 | H109: m2 | M109: Koeficient pro vnitřní podlahovou plochu | P109: Vnitřní podlahová plocha pro PENB | S109: b | T109: ='6. Geometrie - Sch'!F11 -> 0 | U109: plocha podlah | X109: =SUM(AD16:AD18,AD20:AD22) -> 0 | Y109: m2 | AM109: b | AN109: ='7. Geometrie - Tech'!$F$11 -> 0 | AO109: plocha podlah | AR109: =SUM(AX16:AX18,AX20:AX22) -> 0 | AS109: m2
A110: c | B110: ='5. Geometrie - Byty'!$F$12 -> 0 | C110: plocha obv. zdí | G110: =G109*0.1 -> 0 | H110: m2 | M110: 0.9 | P110: ='1. PENB'!I20*Vypocet!M110 -> 0 | Q110: m2 | S110: c | T110: ='6. Geometrie - Sch'!F12 -> 0 | U110: plocha obv. zdí | X110: =X109*0.1 -> 0 | Y110: m2 | AM110: c | AN110: ='7. Geometrie - Tech'!$F$12 -> 0 | AO110: plocha obv. zdí | AR110: =AR109*0.1 -> 0 | AS110: m2
A111: d | B111: ='5. Geometrie - Byty'!$F$13 -> 0 | C111: Vnitřní podlahová plocha | G111: =IF(G109=0,0,(G109-G110)*N107*G108) -> 0 | H111: m2 | S111: d | T111: ='6. Geometrie - Sch'!F13 -> 0 | U111: Vnitřní podlahová plocha | W111: A,int= | X111: =IF(X109=0,0,($X$109-$X$110)*$N$107*$X$108) -> 0 | Y111: m2 | AM111: d | AN111: ='7. Geometrie - Tech'!$F$13 -> 0 | AO111: Vnitřní podlahová plocha | AQ111: A,int= | AR111: =IF(AR109=0,0,($AR$109-$AR$110)*$N$107*$AR$108) -> 0 | AS111: m2
A112: e | B112: ='5. Geometrie - Byty'!$F$14 -> 0 | S112: e | T112: ='6. Geometrie - Sch'!F14 -> 0 | AM112: e | AN112: ='7. Geometrie - Tech'!$F$14 -> 0
L113: Suma ploch | M113: =G111+X111+AR111 -> 0
C114: Vnitřní objem prostoru pod střechou | U114: Vnitřní objem prostoru pod střechou | AO114: Vnitřní objem prostoru pod střechou
C115: Vnitřní podlahová plocha | G115: =(G109-G110)*$N$107 -> 0 | H115: m2 | M115: Byty | N115: Schodiště | O115: Technické podlaží/Garáže | U115: Vnitřní podlahová plocha | X115: =(X109-X110)*$N$107 -> 0 | Y115: m2 | AO115: Vnitřní podlahová plocha | AR115: =(AR109-AR110)*$N$107 -> 0 | AS115: m2
C116: Výška objektu | G116: =B109 -> 0 | H116: m2 | L116: koeficient | M116: =G111/M113 ->  | N116: =X111/M113 ->  | O116: =AR111/M113 ->  | U116: Výška objektu | X116: =$T$109 -> 0 | Y116: m2 | AO116: Výška objektu | AR116: =$AN$109 -> 0 | AS116: m2
C117: Tloušťka vnitřního stropu | G117: 0.3 | H117: m | U117: Tloušťka vnitřního stropu | X117: 0.3 | Y117: m | AO117: Tloušťka vnitřního stropu | AR117: 0.3 | AS117: m
C118: Tloušťka podlahy | G118: 0.3 | H118: m | L118: plocha z PENBu | M118: =M116*P110 ->  | N118: =N116*P110 ->  | O118: =O116*P110 ->  | U118: Tloušťka podlahy | X118: 0.3 | Y118: m | AO118: Tloušťka podlahy | AR118: 0.3 | AS118: m
F119: V,int,1= | G119: =(G115*G116)-(G115*G118)-(G117*G115*(G108-1)) -> 0 | H119: m3 | W119: V,int,1= | X119: =($X$115*$X$116)-($X$115*$X$118)-($X$117*$X$115*($X$108-1)) -> 0 | Y119: m3 | AQ119: V,int,1= | AR119: =($AR$115*$AR$116)-($AR$115*$AR$118)-($AR$117*$AR$115*($AR$108-1)) -> 0 | AS119: m3
F121: V,int,1= | G121: ='5. Geometrie - Byty'!F5*0.8 -> 0 | H121: m3 | W121: V,int,1= | X121: ='6. Geometrie - Sch'!F5*0.8 -> 0 | Y121: m3 | AQ121: V,int,1= | AR121: ='7. Geometrie - Tech'!F5*0.8 -> 0 | AS121: m3
C125: Bytové jendnotky | U125: Schodišťový prostor | AO125: Technické podlaží/garáže
C126: Plochá střecha | H126: tl. plochá 1 | I126: tl. plochá 2 | J126: vážená hodnota | U126: Plochá střecha | Z126: tl. plochá 1 | AA126: tl. plochá 2 | AB126: vážená hodnota | AO126: Plochá střecha | AT126: tl. plochá 1 | AU126: tl. plochá 2 | AV126: vážená hodnota
D127: V,st,1= | E127: =G111*J127 -> 0 | F127: m3 | H127: =IF(B25<=6,N25,0) -> 0 | I127: =IF(B26<=6,N26,0) -> 0 | J127: =IF((J25+J26)=0,0,((H127*J25+I127*J26)/(J25+J26))) -> 0 | V127: V,st,1= | W127: =X111*AB127 -> 0 | X127: m3 | Z127: =IF(V25<=6,AH25,0) -> 0 | AA127: =IF(V26<=6,AH26,0) -> 0 | AB127: =IF((AD25+AD26)=0,0,((Z127*AD25+AA127*AD26)/(AD25+AD26))) -> 0 | AP127: V,st,1= | AQ127: =AR111*AV127 -> 0 | AR127: m3 | AT127: =IF(AP25<=6,BB25,0) -> 0 | AU127: =IF(AP26<=6,BB26,0) -> 0 | AV127: =IF((AX25+AX26)=0,0,((AT127*AX25+AU127*AX26)/(AX25+AX26))) -> 0
C129: Střecha bez půdy | H129: tl.do 45° | I129: tl.nad 45° | U129: Střecha bez půdy | Z129: tl.do 45° | AA129: tl.nad 45° | AO129: Střecha bez půdy | AT129: tl.do 45° | AU129: tl.nad 45°
D130: V,st,2= | E130: =(((B110-(2*J130))*(B112-J130))/2)*B108 -> 0 | F130: m3 | H130: =O26 -> 0 | I130: =O29 -> 0 | J130: =IF(H130=0,I130,H130) -> 0 | V130: V,st,2= | W130: =(((T110-(2*AB130))*(T112-AB130))/2)*T108 -> 0 | X130: m3 | Z130: =AI26 -> 0 | AA130: =AI29 -> 0 | AB130: =IF(Z130=0,AA130,Z130) -> 0 | AP130: V,st,2= | AQ130: =(((AN110-(2*AV130))*(AN112-AV130))/2)*AN108 -> 0 | AR130: m3 | AT130: =BC26 -> 0 | AU130: =BC29 -> 0 | AV130: =IF(AT130=0,AU130,Z130) -> 0
C132: Střecha s půdou | H132: tl. strecha | I132: tl. str. půda | U132: Střecha s půdou | Z132: tl. strecha | AA132: tl. str. půda | AO132: Střecha s půdou | AT132: tl. strecha | AU132: tl. str. půda
D133: V,st,3= | E133: =(((B110-(2*H133))+(B111-(2*H133))*(B112-I133))/2)*B108 -> 0 | F133: m3 | H133: =J130 -> 0 | I133: =O32 -> 0 | V133: V,st,3= | W133: =(((T110-(2*Z133))+(T111-(2*Z133))*(T112-AA133))/2)*T108 -> 0 | X133: m3 | Z133: =AB130 -> 0 | AA133: =AI32 -> 0 | AP133: V,st,3= | AQ133: =(((AN110-(2*AT133))+(AN111-(2*AT133))*(AN112-AU133))/2)*AN108 -> 0 | AR133: m3 | AT133: =AV130 -> 0 | AU133: =BC32 -> 0
C135: Objem vnitřních prostor | U135: Objem vnitřních prostor | AO135: Objem vnitřních prostor
D136: V,int,2= | E136: =IF(J127>0,((G115*(G116-G118-(G108-1)*G117))-E127),IF(I133=0,G121+E130,G121+E133)) -> 0 | F136: m3 | V136: V,int,2= | W136: =IF((AB127+AB130+AA133)=0,X111,IF(AB127>0,((X115*(X116-X118-(X108-1)*X117))-W127),IF(AA133=0,X121+W130,X121+W133))) -> 0 | X136: m3 | AP136: V,int,2= | AQ136: =IF((AV127+AV130+AU133)=0,AR121,IF(AV127>0,((AR115*(AR116-AR118-(AR108-1)*AR117))-AQ127),IF(AU133=0,AR121+AQ130,AR119+AQ133))) -> 0 | AR136: m3
A144: Objem z vnitřních rozměrů | D144: V,int | E144: [m3] | G144: =E136 -> 0 | U144: Objem z vnitřních rozměrů | X144: V,int | Y144: [m3] | AA144: =W136 -> 0 | AO144: Objem z vnitřních rozměrů | AR144: V,int | AS144: [m3] | AU144: =AQ136 -> 0
A148: Měrné tepelné ztráty | U148: Měrné tepelné ztráty | AO148: Měrné tepelné ztráty
A149: Obálkou - Ht | U149: Obálkou - Ht | AO149: Obálkou - Ht
A150: Měrný tepelný tok obálkou budovy | D150: Ht | E150: [W/K] | G150: =B53 -> 0 | U150: Měrný tepelný tok obálkou budovy | X150: Ht | Y150: [W/K] | AA150: =V53 -> 0 | AO150: Měrný tepelný tok obálkou budovy | AR150: Ht | AS150: [W/K] | AU150: =AP53 -> 0
A152: Přirozené větráním - Hv | U152: Přirozené větráním - Hv | AO152: Přirozené větráním - Hv
A153: Podíl vzduchu z objemu zóny | D153: V | E153: [m3] | G153: =E136 -> 0 | U153: Podíl vzduchu z objemu zóny | X153: V | Y153: [m3] | AA153: =W136 -> 0 | AO153: Podíl vzduchu z objemu zóny | AR153: V | AS153: [m3] | AU153: =AQ136 -> 0
A154: Násobnost výměny vzduchu | E154: [h-1] | G154: 0.3 | U154: Násobnost výměny vzduchu | Y154: [h-1] | AA154: 0.1 | AO154: Násobnost výměny vzduchu | AS154: [h-1] | AU154: 0.1
A155: Větrací tok | E155: [m3/h] | G155: =G153*G154 -> 0 | U155: Větrací tok | Y155: [m3/h] | AA155: =AA153*AA154 -> 0 | AO155: Větrací tok | AS155: [m3/h] | AU155: =AU153*AU154 -> 0
A156: Měrný tepelný tok větráním | D156: Hv | E156: [W/K] | G156: =0.34*G155 -> 0 | U156: Měrný tepelný tok větráním | X156: Hv | Y156: [W/K] | AA156: =0.34*AA155 -> 0 | AO156: Měrný tepelný tok větráním | AR156: Hv | AS156: [W/K] | AU156: =0.34*AU155 -> 0
A158: Nucené větráním - Hv | U158: Nucené větráním - Hv | AO158: Nucené větráním - Hv
A159: Nucené větrání | U159: Nucené větrání | AO159: Nucené větrání
A161: Potřeba větracího vzduchu na jednu osobu | D161: V1 | E161: m3/(os.hod) | G161: 25 | U161: Potřeba větracího vzduchu na jednu osobu | X161: V1 | Y161: m3/(os.hod) | AA161: 25 | AO161: Potřeba větracího vzduchu na jednu osobu | AR161: V1 | AS161: m3/(os.hod) | AU161: 25
A162: Součinitel přítomnosti osob | D162: pi vent | E162: - | G162: 0.7 | U162: Součinitel přítomnosti osob | X162: pi vent | Y162: - | AA162: 0.7 | AO162: Součinitel přítomnosti osob | AR162: pi vent | AS162: - | AU162: 0.7
A163: Množství přiváděného čerstvého vzduchu | D163: Vf | E163: m3/hod | G163: =SUM('9. Technické systémy'!S57:T59) -> 0 | U163: Množství přiváděného čerstvého vzduchu | X163: Vf | Y163: m3/hod | AA163: =SUM('9. Technické systémy'!AM45:AN47) -> 0 | AO163: Množství přiváděného čerstvého vzduchu | AR163: Vf | AS163: m3/hod | AU163: =SUM('9. Technické systémy'!BG45:BH47) -> 0
A164: Násobnost výměny vzduchu při 50 Pa | D164: n50 | E164: 1/h | G164: =IF(G104=1,2,IF(G104=2,2,IF(G104=3,2.5,IF(G104=4,4.5,"chyba")))) -> 2 | H164: , oprava TNI 730330 komplexní sanace 2.0, výměna oken 2.5, výměna pouze některých oken 2.5-4.5 měření Dektrade 0.36, Svoboda Software vícepodlažní těsné domy 0.5, předpoklad vyměněných oken | U164: Násobnost výměny vzduchu při 50 Pa | X164: n50 | Y164: 1/h | AA164: =IF(AA104=1,2,IF(AA104=2,2,IF(AA104=3,2.5,IF(AA104=4,4.5,"chyba")))) -> 2 | AO164: Násobnost výměny vzduchu při 50 Pa | AR164: n50 | AS164: 1/h | AU164: =IF(AU104=1,2,IF(AU104=2,2,IF(AU104=3,2.5,IF(AU104=4,4.5,"chyba")))) -> 2
A165: Součinitel větrné expozice - e (0.01-0.1) | D165: e | E165: - | G165: 0.01 | U165: Součinitel větrné expozice - e (0.01-0.1) | X165: e | Y165: - | AA165: 0.01 | AO165: Součinitel větrné expozice - e (0.01-0.1) | AR165: e | AS165: - | AU165: 0.01
A166: Součinitel větrné expozice - f (15,20) | D166: f | E166: - | G166: 20 | U166: Součinitel větrné expozice - f (15,20) | X166: f | Y166: - | AA166: 20 | AO166: Součinitel větrné expozice - f (15,20) | AR166: f | AS166: - | AU166: 20
A167: Přídavný objemový tok vzduchu netěsnostmi | D167: Vx | E167: m3/hod | G167: =(G153*G164*G165)/(1+(G166/G165)*((0)/(G153*G164))^2) ->  | U167: Přídavný objemový tok vzduchu netěsnostmi | X167: Vx | Y167: m3/hod | AA167: =(AA153*AA164*AA165)/(1+(AA166/AA165)*((0)/(AA153*AA164))^2) ->  | AO167: Přídavný objemový tok vzduchu netěsnostmi | AR167: Vx | AS167: m3/hod | AU167: =(AU153*AU164*AU165)/(1+(AU166/AU165)*((0)/(AU153*AU164))^2) -> 
A168: Účinnost rekuperace | D168: ni | E168: - | G168: =Data!K369 -> 0 | U168: Účinnost rekuperace | X168: ni | Y168: - | AA168: =Data!AE369 -> 0 | AO168: Účinnost rekuperace | AR168: ni | AS168: - | AU168: =Data!AY369 -> 0
A169: Množství ohřívaného vzduchu (z ext. teploty) | D169: V | E169: m3/hod | G169: =G163*(1-G168)+G167 ->  | H169: nevstupuje nikam do výpočtu | U169: Množství ohřívaného vzduchu (z ext. teploty) | X169: V | Y169: m3/hod | AA169: =AA163*(1-AA168)+AA167 ->  | AO169: Množství ohřívaného vzduchu (z ext. teploty) | AR169: V | AS169: m3/hod | AU169: =AU163*(1-AU168)+AU167 -> 
A170: Měrná ztráta na ohřev větracího vzduchu | D170: Hv,f | E170: W/K | G170: =G163*(1-G168)*0.34 -> 0 | U170: Měrná ztráta na ohřev větracího vzduchu | X170: Hv,f | Y170: W/K | AA170: =AA163*(1-AA168)*0.34 -> 0 | AO170: Měrná ztráta na ohřev větracího vzduchu | AR170: Hv,f | AS170: W/K | AU170: =AU163*(1-AU168)*0.34 -> 0
A171: Měrná ztráta na ohřev vzd. pr. netěsnostmi | D171: Hv,x | E171: W/K | G171: =G167*0.34 ->  | U171: Měrná ztráta na ohřev vzd. pr. netěsnostmi | X171: Hv,x | Y171: W/K | AA171: =AA167*0.34 ->  | AO171: Měrná ztráta na ohřev vzd. pr. netěsnostmi | AR171: Hv,x | AS171: W/K | AU171: =AU167*0.34 -> 
A172: Měrná ztráta větráním - PV/NV TNI 730330 | D172: Hv | E172: W/K | G172: =G171+G170 ->  | U172: Měrná ztráta větráním - PV/NV TNI 730330 | X172: Hv | Y172: W/K | AA172: =AA171+AA170 ->  | AO172: Měrná ztráta větráním - PV/NV TNI 730330 | AR172: Hv | AS172: W/K | AU172: =AU171+AU170 -> 
A174: Celkový ztráta větráním | D174: Hv | E174: [W/K] | G174: =IF(Data!H361=1,Vypocet!G156,IF(Data!H361=2,Vypocet!G156,IF(Data!H361=3,Vypocet!G172,"chyba"))) -> 0 | U174: Celkový ztráta větráním | X174: Hv | Y174: [W/K] | AA174: =AA156 -> 0 | AO174: Celkový ztráta větráním | AR174: Hv | AS174: [W/K] | AU174: =AU156 -> 0
A176: Celkový tepeplný tok | D176: Hc | E176: [W/K] | G176: =IF(Data!H361=1,Vypocet!G150+Vypocet!G156,IF(Data!H361=2,Vypocet!G150+Vypocet!G156,IF(Data!H361=3,Vypocet!G150+Vypocet!G172,"chyba"))) -> 0 | U176: Celkový tepeplný tok | X176: Hc | Y176: [W/K] | AA176: =AA150+AA156 -> 0 | AO176: Celkový tepeplný tok | AR176: Hc | AS176: [W/K] | AU176: =AU150+AU156 -> 0
H178: leden | I178: únor | J178: březen | K178: duben | L178: květen | M178: červen | N178: červenec | O178: srpen | P178: září | Q178: říjen | R178: listopad | S178: prosinec | AB178: leden | AC178: únor | AD178: březen | AE178: duben | AF178: květen | AG178: červen | AH178: červenec | AI178: srpen | AJ178: září | AK178: říjen | AL178: listopad | AM178: prosinec | AV178: leden | AW178: únor | AX178: březen | AY178: duben | AZ178: květen | BA178: červen | BB178: červenec | BC178: srpen | BD178: září | BE178: říjen | BF178: listopad | BG178: prosinec
A179: Celková měrná zráta | D179: H | E179: W/K | G179: =B53 -> 0 | H179: =G179 -> 0 | I179: =H179 -> 0 | J179: 0 | K179: 0 | L179: 0 | M179: 0 | N179: 0 | O179: 0 | P179: 0 | Q179: 0 | R179: 0 | S179: 0 | U179: Celková měrná zráta | X179: H | Y179: W/K | AA179: =V53 -> 0 | AB179: =AA179 -> 0 | AC179: =AB179 -> 0 | AD179: =AC179 -> 0 | AE179: =AD179 -> 0 | AF179: =AE179 -> 0 | AG179: =AF179 -> 0 | AH179: =AG179 -> 0 | AI179: =AH179 -> 0 | AJ179: =AI179 -> 0 | AK179: =AJ179 -> 0 | AL179: =AK179 -> 0 | AM179: =AL179 -> 0 | AO179: Celková měrná zráta | AR179: H | AS179: W/K | AU179: =AP53 -> 0 | AV179: =AU179 -> 0 | AW179: =AV179 -> 0 | AX179: =AW179 -> 0 | AY179: =AX179 -> 0 | AZ179: =AY179 -> 0 | BA179: =AZ179 -> 0 | BB179: =BA179 -> 0 | BC179: =BB179 -> 0 | BD179: =BC179 -> 0 | BE179: =BD179 -> 0 | BF179: =BE179 -> 0 | BG179: =BF179 -> 0
A180: Venkovní výpočtová teplota pro ztrátu | D180: Te | E180: °C | G180: -12 | U180: Venkovní výpočtová teplota pro ztrátu | X180: Te | Y180: °C | AA180: -12 | AO180: Venkovní výpočtová teplota pro ztrátu | AR180: Te | AS180: °C | AU180: -12
A181: Návrhová vnitřní teplota - větrání | D181: Ti | E181: °C | G181: 20 | U181: Návrhová vnitřní teplota - větrání | X181: Ti | Y181: °C | AA181: 16 | AO181: Návrhová vnitřní teplota - větrání | AR181: Ti | AS181: °C | AU181: 16
A182: Výpočtová tepelná ztráta | E182: kW | G182: =G179*($G$181-$G$180)/1000 -> 0 | U182: Výpočtová tepelná ztráta | Y182: kW | AA182: =AA179*($AA$181-$AA$180)/1000 -> 0 | AO182: Výpočtová tepelná ztráta | AS182: kW | AU182: =AU179*($AU$181-$AU$180)/1000 -> 0
A183: Měsíc | H183: leden | I183: únor | J183: březen | K183: duben | L183: květen | M183: červen | N183: červenec | O183: srpen | P183: září | Q183: říjen | R183: listopad | S183: prosinec | U183: Měsíc | AB183: leden | AC183: únor | AD183: březen | AE183: duben | AF183: květen | AG183: červen | AH183: červenec | AI183: srpen | AJ183: září | AK183: říjen | AL183: listopad | AM183: prosinec | AO183: Měsíc | AV183: leden | AW183: únor | AX183: březen | AY183: duben | AZ183: květen | BA183: červen | BB183: červenec | BC183: srpen | BD183: září | BE183: říjen | BF183: listopad | BG183: prosinec
A184: Délka | D184: t | E184: [dny] | G184: =SUM(H184:S184) -> 365 | H184: 31 | I184: 28 | J184: 31 | K184: 30 | L184: 31 | M184: 30 | N184: 31 | O184: 31 | P184: 30 | Q184: 31 | R184: 30 | S184: 31 | U184: Délka | X184: t | Y184: [dny] | AA184: =SUM(AB184:AM184) -> 365 | AB184: 31 | AC184: 28 | AD184: 31 | AE184: 30 | AF184: 31 | AG184: 30 | AH184: 31 | AI184: 31 | AJ184: 30 | AK184: 31 | AL184: 30 | AM184: 31 | AO184: Délka | AR184: t | AS184: [dny] | AU184: =SUM(AV184:BG184) -> 365 | AV184: 31 | AW184: 28 | AX184: 31 | AY184: 30 | AZ184: 31 | BA184: 30 | BB184: 31 | BC184: 31 | BD184: 30 | BE184: 31 | BF184: 30 | BG184: 31
A185: Počet hodin | D185: t | E185: [h] | G185: =24*G184 -> 8760 | H185: =24*H184 -> 744 | I185: =24*I184 -> 672 | J185: =24*J184 -> 744 | K185: =24*K184 -> 720 | L185: =24*L184 -> 744 | M185: 720 | N185: 744 | O185: 744 | P185: 720 | Q185: 744 | R185: 720 | S185: 744 | U185: Počet hodin | X185: t | Y185: [h] | AA185: =24*AA184 -> 8760 | AB185: =24*AB184 -> 744 | AC185: =24*AC184 -> 672 | AD185: =24*AD184 -> 744 | AE185: =24*AE184 -> 720 | AF185: =24*AF184 -> 744 | AG185: 720 | AH185: 744 | AI185: 744 | AJ185: 720 | AK185: 744 | AL185: 720 | AM185: 744 | AO185: Počet hodin | AR185: t | AS185: [h] | AU185: =24*AU184 -> 8760 | AV185: =24*AV184 -> 744 | AW185: =24*AW184 -> 672 | AX185: =24*AX184 -> 744 | AY185: =24*AY184 -> 720 | AZ185: =24*AZ184 -> 744 | BA185: 720 | BB185: 744 | BC185: 744 | BD185: 720 | BE185: 744 | BF185: 720 | BG185: 744
A186: Průměrná venkovní teplota | D186: Te | E186: [°C] | H186: =Data!O3 -> -1.3 | I186: =Data!P3 -> -0.1 | J186: =Data!Q3 -> 3.7 | K186: =Data!R3 -> 8.1 | L186: =Data!S3 -> 13.3 | M186: =Data!T3 -> 16.1 | N186: =Data!U3 -> 18 | O186: =Data!V3 -> 17.9 | P186: =Data!W3 -> 13.5 | Q186: =Data!X3 -> 8.3 | R186: =Data!Y3 -> 3.2 | S186: =Data!Z3 -> 0.5 | U186: Průměrná venkovní teplota | X186: Te | Y186: [°C] | AB186: =Data!O3 -> -1.3 | AC186: =Data!P3 -> -0.1 | AD186: =Data!Q3 -> 3.7 | AE186: =Data!R3 -> 8.1 | AF186: =Data!S3 -> 13.3 | AG186: =Data!T3 -> 16.1 | AH186: =Data!U3 -> 18 | AI186: =Data!V3 -> 17.9 | AJ186: =Data!W3 -> 13.5 | AK186: =Data!X3 -> 8.3 | AL186: =Data!Y3 -> 3.2 | AM186: =Data!Z3 -> 0.5 | AO186: Průměrná venkovní teplota | AR186: Te | AS186: [°C] | AV186: =Data!O3 -> -1.3 | AW186: =Data!P3 -> -0.1 | AX186: =Data!Q3 -> 3.7 | AY186: =Data!R3 -> 8.1 | AZ186: =Data!S3 -> 13.3 | BA186: =Data!T3 -> 16.1 | BB186: =Data!U3 -> 18 | BC186: =Data!V3 -> 17.9 | BD186: =Data!W3 -> 13.5 | BE186: =Data!X3 -> 8.3 | BF186: =Data!Y3 -> 3.2 | BG186: =Data!Z3 -> 0.5
A187: Teplotní rozdíl - větrání | D187: Dte | E187: [°C] | H187: =$G$181-H186 -> 21.3 | I187: 20.1 | J187: 16.3 | K187: 11.9 | L187: 6.7 | M187: 3.9 | N187: 2 | O187: 2.1 | P187: 6.5 | Q187: 11.7 | R187: 16.8 | S187: 19.5 | U187: Teplotní rozdíl - větrání | X187: Dte | Y187: [°C] | AB187: =$AA$181-AB186 -> 17.3 | AC187: =$AA$181-AC186 -> 16.1 | AD187: 12.3 | AE187: 7.9 | AF187: 2.7 | AG187: -0.1 | AH187: -2 | AI187: -1.9 | AJ187: 2.5 | AK187: 7.7 | AL187: 12.8 | AM187: 15.5 | AO187: Teplotní rozdíl - větrání | AR187: Dte | AS187: [°C] | AV187: =$AU$181-AV186 -> 17.3 | AW187: =$AU$181-AW186 -> 16.1 | AX187: 12.3 | AY187: 7.9 | AZ187: 2.7 | BA187: -0.1 | BB187: -2 | BC187: -1.9 | BD187: 2.5 | BE187: 7.7 | BF187: 12.8 | BG187: 15.5
A189: Suma tepelných ztrát prostupem tepla | D189: Qt | E189: [kWh] | G189: =SUM(H189:S189) -> 0 | H189: =IF(H186>$G$181,0,0.001*$G$179*H187*H185) -> 0 | I189: 0 | J189: 0 | K189: 0 | L189: 0 | M189: 0 | N189: 0 | O189: 0 | P189: 0 | Q189: 0 | R189: 0 | S189: 0 | U189: Suma tepelných ztrát prostupem tepla | X189: Qt | Y189: [kWh] | AA189: =SUM(AB189:AM189) -> 0 | AB189: =IF(AB186>$AA$181,0,0.001*$AA$179*AB187*AB185) -> 0 | AC189: =IF(AC186>$AA$181,0,0.001*$AA$179*AC187*AC185) -> 0 | AD189: 0 | AE189: 0 | AF189: 0 | AG189: 0 | AH189: 0 | AI189: 0 | AJ189: 0 | AK189: 0 | AL189: 0 | AM189: 0 | AO189: Suma tepelných ztrát prostupem tepla | AR189: Qt | AS189: [kWh] | AU189: =SUM(AV189:BG189) -> 0 | AV189: =IF(AV186>$AU$181,0,0.001*$AU$179*AV187*AV185) -> 0 | AW189: =IF(AW186>$AU$181,0,0.001*$AU$179*AW187*AW185) -> 0 | AX189: 0 | AY189: 0 | AZ189: 0 | BA189: 0 | BB189: 0 | BC189: 0 | BD189: 0 | BE189: 0 | BF189: 0 | BG189: 0
A191: Suma tepelných ztrát větráním | D191: Qv | E191: [kWh] | G191: =SUM(H191:S191) -> 0 | H191: =IF(H186>$G$181,0,0.001*$G$174*H187*H185) -> 0 | I191: =IF(I186>$G$181,0,0.001*$G$174*I187*I185) -> 0 | J191: 0 | K191: 0 | L191: 0 | M191: 0 | N191: 0 | O191: 0 | P191: 0 | Q191: 0 | R191: 0 | S191: 0 | U191: Suma tepelných ztrát větráním | X191: Qv | Y191: [kWh] | AA191: =SUM(AB191:AM191) -> 0 | AB191: =IF(AB186>$AA$181,0,0.001*$AA$174*AB187*AB185) -> 0 | AC191: =IF(AC186>$AA$181,0,0.001*$AA$174*AC187*AC185) -> 0 | AD191: 0 | AE191: 0 | AF191: 0 | AG191: 0 | AH191: 0 | AI191: 0 | AJ191: 0 | AK191: 0 | AL191: 0 | AM191: 0 | AO191: Suma tepelných ztrát větráním | AR191: Qv | AS191: [kWh] | AU191: =SUM(AV191:BG191) -> 0 | AV191: =IF(AV186>$AU$181,0,0.001*$AU$174*AV187*AV185) -> 0 | AW191: =IF(AW186>$AU$181,0,0.001*$AU$174*AW187*AW185) -> 0 | AX191: 0 | AY191: 0 | AZ191: 0 | BA191: 0 | BB191: 0 | BC191: 0 | BD191: 0 | BE191: 0 | BF191: 0 | BG191: 0
A194: Suma tepelných ztrát budovy / rok - výběr PVSO, PVNO, HV, NV | D194: Ql | E194: [kWh] | G194: =SUM(H194:S194) -> 0 | H194: =H189+H191 -> 0 | I194: 0 | J194: 0 | K194: 0 | L194: 0 | M194: 0 | N194: 0 | O194: 0 | P194: 0 | Q194: 0 | R194: 0 | S194: 0 | U194: Suma tepelných ztrát budovy / rok - výběr PVSO, PVNO, HV, NV | X194: Ql | Y194: [kWh] | AA194: =SUM(AB194:AM194) -> 0 | AB194: =AB189+AB191 -> 0 | AC194: 0 | AD194: 0 | AE194: 0 | AF194: 0 | AG194: 0 | AH194: 0 | AI194: 0 | AJ194: 0 | AK194: 0 | AL194: 0 | AM194: 0 | AO194: Suma tepelných ztrát budovy / rok - výběr PVSO, PVNO, HV, NV | AR194: Ql | AS194: [kWh] | AU194: =SUM(AV194:BG194) -> 0 | AV194: =AV189+AV191 -> 0 | AW194: 0 | AX194: 0 | AY194: 0 | AZ194: 0 | BA194: 0 | BB194: 0 | BC194: 0 | BD194: 0 | BE194: 0 | BF194: 0 | BG194: 0
A195: Suma tepelných ztrát budovy / rok - výběr PVSO, PVNO, HV, NV | D195: Ql | E195: [GJ] | G195: =G194/(1000/3.6) -> 0 | U195: Suma tepelných ztrát budovy / rok - výběr PVSO, PVNO, HV, NV | X195: Ql | Y195: [GJ] | AA195: =AA194/(1000/3.6) -> 0 | AO195: Suma tepelných ztrát budovy / rok - výběr PVSO, PVNO, HV, NV | AR195: Ql | AS195: [GJ] | AU195: =AU194/(1000/3.6) -> 0
A197: Vnitřní tepelné zisky | U197: Vnitřní tepelné zisky | AO197: Vnitřní tepelné zisky
A198: Časová konstanta zóny | U198: Časová konstanta zóny | AO198: Časová konstanta zóny
A199: Tepelná kapacita na 1m2 | D199: C | E199: [kJ/m2/K] | G199: 165 | U199: Tepelná kapacita na 1m2 | X199: C | Y199: [kJ/m2/K] | AA199: 165 | AO199: Tepelná kapacita na 1m2 | AR199: C | AS199: [kJ/m2/K] | AU199: 165
A200: Celková tepelná kapacita | D200: C | E200: [kJ/K] | G200: =G199*M118 ->  | U200: Celková tepelná kapacita | X200: C | Y200: [kJ/K] | AA200: =AA199*N118 ->  | AO200: Celková tepelná kapacita | AR200: C | AS200: [kJ/K] | AU200: =AU199*O118 -> 
A201: Celková tepelná kapacita | D201: C | E201: [Wh/K] | G201: =G200/3.6 ->  | U201: Celková tepelná kapacita | X201: C | Y201: [Wh/K] | AA201: =AA200/3.6 ->  | AO201: Celková tepelná kapacita | AR201: C | AS201: [Wh/K] | AU201: =AU200/3.6 -> 
A202: Časová konstanta zóny | D202: t | E202: [hod] | G202: =G201/G176 ->  | U202: Časová konstanta zóny | X202: t | Y202: [hod] | AA202: =AA201/AA179 ->  | AO202: Časová konstanta zóny | AR202: t | AS202: [hod] | AU202: =AU201/AU179 -> 
A204: Vnitřní tepelné zisky dle TNI 73 0331 | U204: Vnitřní tepelné zisky dle TNI 73 0331 | AO204: Vnitřní tepelné zisky dle TNI 73 0331
A205: Vnitřní podlahová plocha pro PENB | D205: A,int | E205: [m2] | G205: =M118 ->  | U205: Vnitřní podlahová plocha pro PENB | X205: A,int | Y205: [m2] | AA205: =N118 ->  | AO205: Vnitřní podlahová plocha pro PENB | AR205: A,int | AS205: [m2] | AU205: =O118 -> 
A207: Měsíc | H207: leden | I207: únor | J207: březen | K207: duben | L207: květen | M207: červen | N207: červenec | O207: srpen | P207: září | Q207: říjen | R207: listopad | S207: prosinec | U207: Měsíc | AB207: leden | AC207: únor | AD207: březen | AE207: duben | AF207: květen | AG207: červen | AH207: červenec | AI207: srpen | AJ207: září | AK207: říjen | AL207: listopad | AM207: prosinec | AO207: Měsíc | AV207: leden | AW207: únor | AX207: březen | AY207: duben | AZ207: květen | BA207: červen | BB207: červenec | BC207: srpen | BD207: září | BE207: říjen | BF207: listopad | BG207: prosinec
A208: Délka | D208: t | E208: [dny] | G208: =SUM(H208:S208) -> 365 | H208: 31 | I208: 28 | J208: 31 | K208: 30 | L208: 31 | M208: 30 | N208: 31 | O208: 31 | P208: 30 | Q208: 31 | R208: 30 | S208: 31 | U208: Délka | X208: t | Y208: [dny] | AA208: =SUM(AB208:AM208) -> 365 | AB208: 31 | AC208: 28 | AD208: 31 | AE208: 30 | AF208: 31 | AG208: 30 | AH208: 31 | AI208: 31 | AJ208: 30 | AK208: 31 | AL208: 30 | AM208: 31 | AO208: Délka | AR208: t | AS208: [dny] | AU208: =SUM(AV208:BG208) -> 365 | AV208: 31 | AW208: 28 | AX208: 31 | AY208: 30 | AZ208: 31 | BA208: 30 | BB208: 31 | BC208: 31 | BD208: 30 | BE208: 31 | BF208: 30 | BG208: 31
A209: Počet hodin | D209: t | E209: [h] | G209: =24*G208 -> 8760 | H209: =24*H208 -> 744 | I209: =24*I208 -> 672 | J209: =24*J208 -> 744 | K209: =24*K208 -> 720 | L209: =24*L208 -> 744 | M209: 720 | N209: 744 | O209: 744 | P209: 720 | Q209: 744 | R209: 720 | S209: 744 | U209: Počet hodin | X209: t | Y209: [h] | AA209: =24*AA208 -> 8760 | AB209: =24*AB208 -> 744 | AC209: =24*AC208 -> 672 | AD209: =24*AD208 -> 744 | AE209: =24*AE208 -> 720 | AF209: =24*AF208 -> 744 | AG209: 720 | AH209: 744 | AI209: 744 | AJ209: 720 | AK209: 744 | AL209: 720 | AM209: 744 | AO209: Počet hodin | AR209: t | AS209: [h] | AU209: =24*AU208 -> 8760 | AV209: =24*AV208 -> 744 | AW209: =24*AW208 -> 672 | AX209: =24*AX208 -> 744 | AY209: =24*AY208 -> 720 | AZ209: =24*AZ208 -> 744 | BA209: 720 | BB209: 744 | BC209: 744 | BD209: 720 | BE209: 744 | BF209: 720 | BG209: 744
A211: Osoby a vybavení | D211: Φint,oc+ap,j | E211: [W] | G211: =G205*(2*0.7+3*0.2) ->  | U211: Osoby a vybavení | X211: Φint,oc+ap,j | Y211: [W] | AA211: =AA205*(0*0+0*0.2) ->  | AO211: Osoby a vybavení | AR211: Φint,oc+ap,j | AS211: [W] | AU211: =AU205*(0*0+0*0.2) -> 
H212: leden | I212: únor | J212: březen | K212: duben | L212: květen | M212: červen | N212: červenec | O212: srpen | P212: září | Q212: říjen | R212: listopad | S212: prosinec | AB212: leden | AC212: únor | AD212: březen | AE212: duben | AF212: květen | AG212: červen | AH212: červenec | AI212: srpen | AJ212: září | AK212: říjen | AL212: listopad | AM212: prosinec | AV212: leden | AW212: únor | AX212: březen | AY212: duben | AZ212: květen | BA212: červen | BB212: červenec | BC212: srpen | BD212: září | BE212: říjen | BF212: listopad | BG212: prosinec
A213: Vnitřní zisky od osob a vybavení | D213: Qint,oc+ap | E213: [GJ] | G213: =SUM(H213:S213) ->  | H213: =($G$211*(H209*3600))/10^9 ->  | U213: Vnitřní zisky od osob a vybavení | X213: Qint,oc+ap | Y213: [GJ] | AA213: =SUM(AB213:AM213) ->  | AB213: =($AA$211*(AB209*3600))/10^9 ->  | AC213: =($AA$211*(AC209*3600))/10^9 ->  | AO213: Vnitřní zisky od osob a vybavení | AR213: Qint,oc+ap | AS213: [GJ] | AU213: =SUM(AV213:BG213) ->  | AV213: =($AU$211*(AV209*3600))/10^9 ->  | AW213: =($AU$211*(AW209*3600))/10^9 -> 
H215: tD [h] | I215: tN [h] | J215: Osvětlenost [lx] | K215: Účinnost [%] | L215: Příkon osvětlení [W/(m2.lx)] | M215: Činitel závislosti na denním světle | AB215: tD [h] | AC215: tN [h] | AD215: Osvětlenost [lx] | AE215: Účinnost [%] | AF215: Příkon osvětlení [W/(m2.lx)] | AG215: Činitel závislosti na denním světle | AV215: tD [h] | AW215: tN [h] | AX215: Osvětlenost [lx] | AY215: Účinnost [%] | AZ215: Příkon osvětlení [W/(m2.lx)] | BA215: Činitel závislosti na denním světle
H216: 900 | I216: 600 | J216: 90 | K216: 0.15 | L216: 0.05 | M216: 1 | AB216: 900 | AC216: 600 | AD216: 90 | AE216: 0.15 | AF216: 0.05 | AG216: 1 | AV216: 900 | AW216: 600 | AX216: 90 | AY216: 0.15 | AZ216: 0.05 | BA216: 1
A217: Roční potřeba elektřiny na osvětlení | D217: Wlt | E217: [Wh] | G217: =((L216*J216*G205)*1*(H216*M216+I216)) ->  | U217: Roční potřeba elektřiny na osvětlení | X217: Wlt | Y217: [Wh] | AA217: =((AF216*AD216*AA205)*1*(AB216*AG216+AC216)) ->  | AO217: Roční potřeba elektřiny na osvětlení | AR217: Wlt | AS217: [Wh] | AU217: =((AZ216*AX216*AU205)*1*(AV216*BA216+AW216)) -> 
A218: Průměrný příkon elektřiny v j-tém měsící | D218: Φlt,j | E218: [W] | G218: =((1*G217)/8760) ->  | H218: leden | I218: únor | J218: březen | K218: duben | L218: květen | M218: červen | N218: červenec | O218: srpen | P218: září | Q218: říjen | R218: listopad | S218: prosinec | U218: Průměrný příkon elektřiny v j-tém měsící | X218: Φlt,j | Y218: [W] | AA218: =((1*AA217)/8760) ->  | AB218: leden | AC218: únor | AD218: březen | AE218: duben | AF218: květen | AG218: červen | AH218: červenec | AI218: srpen | AJ218: září | AK218: říjen | AL218: listopad | AM218: prosinec | AO218: Průměrný příkon elektřiny v j-tém měsící | AR218: Φlt,j | AS218: [W] | AU218: =((1*AU217)/8760) ->  | AV218: leden | AW218: únor | AX218: březen | AY218: duben | AZ218: květen | BA218: červen | BB218: červenec | BC218: srpen | BD218: září | BE218: říjen | BF218: listopad | BG218: prosinec
A219: Vnitřní zisky od osvětlení | D219: Qint,lt,j | E219: [GJ] | G219: =SUM(H219:S219) ->  | H219: =((1-$K$216)*$G$218*(H209*3600))/10^9 ->  | U219: Vnitřní zisky od osvětlení | X219: Qint,lt,j | Y219: [GJ] | AA219: =SUM(AB219:AM219) ->  | AB219: =((1-$AE$216)*$AA$218*(AB209*3600))/10^9 ->  | AC219: =((1-$AE$216)*$AA$218*(AC209*3600))/10^9 ->  | AO219: Vnitřní zisky od osvětlení | AR219: Qint,lt,j | AS219: [GJ] | AU219: =SUM(AV219:BG219) ->  | AV219: =((1-$AY$216)*$AU$218*(AV209*3600))/10^9 ->  | AW219: =((1-$AY$216)*$AU$218*(AW209*3600))/10^9 -> 
A221: Celkové vnitřní tepelné zisky | D221: Fi | E221: [W] | G221: =((G213+G219)/(G209*3600))*10^9 ->  | U221: Celkové vnitřní tepelné zisky | X221: Fi | Y221: [W] | AA221: =((AA213+AA219)/(AA209*3600))*10^9 ->  | AO221: Celkové vnitřní tepelné zisky | AR221: Fi | AS221: [W] | AU221: =((AU213+AU219)/(AU209*3600))*10^9 -> 
A223: Solární tepelné zisky | U223: Solární tepelné zisky | AO223: Solární tepelné zisky
A224: Plocha oken (čistá) | E224: [m2] | G224: S | H224: J | I224: V | J224: Z | K224: H | U224: Plocha oken (čistá) | Y224: [m2] | AA224: S | AB224: J | AC224: V | AD224: Z | AE224: H | AO224: Plocha oken (čistá) | AS224: [m2] | AU224: S | AV224: J | AW224: V | AX224: Z | AY224: H
A225: Průčelní stěny | G225: =(SUM(J40:J47)+SUM(Vypocet!M40:M47))/4 -> 0 | H225: =(SUM(J40:J47)+SUM(Vypocet!M40:M47))/4 -> 0 | I225: =(SUM(J40:J47)+SUM(Vypocet!M40:M47))/4 -> 0 | J225: =(SUM(J40:J47)+SUM(Vypocet!M40:M47))/4 -> 0 | K225: =SUM(J48:J49) -> 0 | U225: Průčelní stěny | AA225: =(SUM(AD40:AD47)+SUM(Vypocet!AG40:AG47))/4 -> 0 | AB225: =(SUM(AD40:AD47)+SUM(Vypocet!AG40:AG47))/4 -> 0 | AC225: =(SUM(AD40:AD47)+SUM(Vypocet!AG40:AG47))/4 -> 0 | AD225: =(SUM(AD40:AD47)+SUM(Vypocet!AG40:AG47))/4 -> 0 | AE225: =SUM(AD48:AD49) -> 0 | AO225: Průčelní stěny | AU225: =(SUM(AX40:AX47)+SUM(Vypocet!BA40:BA47))/4 -> 0 | AV225: =(SUM(AX40:AX47)+SUM(Vypocet!BA40:BA47))/4 -> 0 | AW225: =(SUM(AX40:AX47)+SUM(Vypocet!BA40:BA47))/4 -> 0 | AX225: =(SUM(AX40:AX47)+SUM(Vypocet!BA40:BA47))/4 -> 0 | AY225: =SUM(AX48:AX49) -> 0
A227: Korekční činitel zasklení | G227: S | H227: J | I227: V | J227: Z | K227: H | U227: Korekční činitel zasklení | AA227: S | AB227: J | AC227: V | AD227: Z | AE227: H | AO227: Korekční činitel zasklení | AU227: S | AV227: J | AW227: V | AX227: Z | AY227: H
A228: Průčelní stěny | G228: 0.7 | H228: 0.7 | I228: 0.7 | J228: 0.7 | K228: 0.75 | U228: Průčelní stěny | AA228: 0.7 | AB228: 0.7 | AC228: 0.7 | AD228: 0.7 | AE228: 0.75 | AO228: Průčelní stěny | AU228: 0.7 | AV228: 0.7 | AW228: 0.7 | AX228: 0.7 | AY228: 0.75
A230: Korekční činitel stínění horizontem | G230: S | H230: J | I230: V | J230: Z | K230: H | U230: Korekční činitel stínění horizontem | AA230: S | AB230: J | AC230: V | AD230: Z | AE230: H | AO230: Korekční činitel stínění horizontem | AU230: S | AV230: J | AW230: V | AX230: Z | AY230: H
A231: Průčelní stěny | G231: 0.75 | H231: 0.75 | I231: 0.75 | J231: 0.75 | K231: 1 | U231: Průčelní stěny | AA231: 0.75 | AB231: 0.75 | AC231: 0.75 | AD231: 0.75 | AE231: 1 | AO231: Průčelní stěny | AU231: 0.75 | AV231: 0.75 | AW231: 0.75 | AX231: 0.75 | AY231: 1
A233: Úhel stínění markýzou ° | G233: S | H233: J | I233: V | J233: Z | K233: H | U233: Úhel stínění markýzou ° | AA233: S | AB233: J | AC233: V | AD233: Z | AE233: H | AO233: Úhel stínění markýzou ° | AU233: S | AV233: J | AW233: V | AX233: Z | AY233: H
A234: Průčelní stěny | G234: 1 | H234: 1 | I234: 1 | J234: 1 | K234: 1 | U234: Průčelní stěny | AA234: 1 | AB234: 1 | AC234: 1 | AD234: 1 | AE234: 1 | AO234: Průčelní stěny | AU234: 1 | AV234: 1 | AW234: 1 | AX234: 1 | AY234: 1
A236: Korekční činitel stínění markýzou ° | G236: S | H236: J | I236: V | J236: Z | K236: H | U236: Korekční činitel stínění markýzou ° | AA236: S | AB236: J | AC236: V | AD236: Z | AE236: H | AO236: Korekční činitel stínění markýzou ° | AU236: S | AV236: J | AW236: V | AX236: Z | AY236: H
A237: Průčelní stěny | G237: 1 | H237: 1 | I237: 1 | J237: 1 | K237: 1 | U237: Průčelní stěny | AA237: 1 | AB237: 1 | AC237: 1 | AD237: 1 | AE237: 1 | AO237: Průčelní stěny | AU237: 1 | AV237: 1 | AW237: 1 | AX237: 1 | AY237: 1
A239: Úhel stínění bočním žebrem ° | G239: S | H239: J | I239: V | J239: Z | K239: H | U239: Úhel stínění bočním žebrem ° | AA239: S | AB239: J | AC239: V | AD239: Z | AE239: H | AO239: Úhel stínění bočním žebrem ° | AU239: S | AV239: J | AW239: V | AX239: Z | AY239: H
A240: Průčelní stěny | G240: 1 | H240: 1 | I240: 1 | J240: 1 | K240: 1 | U240: Průčelní stěny | AA240: 1 | AB240: 1 | AC240: 1 | AD240: 1 | AE240: 1 | AO240: Průčelní stěny | AU240: 1 | AV240: 1 | AW240: 1 | AX240: 1 | AY240: 1
A242: Korekční činitel stínění bočním žebrem ° | G242: S | H242: J | I242: V | J242: Z | K242: H | U242: Korekční činitel stínění bočním žebrem ° | AA242: S | AB242: J | AC242: V | AD242: Z | AE242: H | AO242: Korekční činitel stínění bočním žebrem ° | AU242: S | AV242: J | AW242: V | AX242: Z | AY242: H
A243: Průčelní stěny | G243: 1 | H243: 1 | I243: 1 | J243: 1 | K243: 1 | U243: Průčelní stěny | AA243: 1 | AB243: 1 | AC243: 1 | AD243: 1 | AE243: 1 | AO243: Průčelní stěny | AU243: 1 | AV243: 1 | AW243: 1 | AX243: 1 | AY243: 1
A245: Celková propustnost solárního záření | G245: S | H245: J | I245: V | J245: Z | K245: H | U245: Celková propustnost solárního záření | AA245: S | AB245: J | AC245: V | AD245: Z | AE245: H | AO245: Celková propustnost solárního záření | AU245: S | AV245: J | AW245: V | AX245: Z | AY245: H
A246: Průčelní stěny | G246: =IF(SUM(J40:J47)=0,0,((N40*J40+N41*J41+N42*J42+N43*J43+N44*J44+N45*J45+N46*J46+N47*J47)/(SUM(J40:J47)))) -> 0 | H246: =IF(SUM(J40:J47)=0,0,((N40*J40+N41*J41+N42*J42+N43*J43+N44*J44+N45*J45+N46*J46+N47*J47)/(SUM(J40:J47)))) -> 0 | I246: =IF(SUM(J40:J47)=0,0,((N40*J40+N41*J41+N42*J42+N43*J43+N44*J44+N45*J45+N46*J46+N47*J47)/(SUM(J40:J47)))) -> 0 | J246: =IF(SUM(J40:J47)=0,0,((N40*J40+N41*J41+N42*J42+N43*J43+N44*J44+N45*J45+N46*J46+N47*J47)/(SUM(J40:J47)))) -> 0 | K246: =IF(SUM(J48:J49)=0,0,((J48*N48+J49*N49)/(SUM(J48:J49)))) -> 0 | U246: Průčelní stěny | AA246: =IF(SUM(AD40:AD47)=0,0,((AH40*AD40+AH41*AD41+AH42*AD42+AH43*AD43+AH44*AD44+AH45*AD45+AH46*AD46+AH47*AD47)/(SUM(AD40:AD47)))) -> 0 | AB246: =IF(SUM(AD40:AD47)=0,0,((AH40*AD40+AH41*AD41+AH42*AD42+AH43*AD43+AH44*AD44+AH45*AD45+AH46*AD46+AH47*AD47)/(SUM(AD40:AD47)))) -> 0 | AC246: =IF(SUM(AD40:AD47)=0,0,((AH40*AD40+AH41*AD41+AH42*AD42+AH43*AD43+AH44*AD44+AH45*AD45+AH46*AD46+AH47*AD47)/(SUM(AD40:AD47)))) -> 0 | AD246: =IF(SUM(AD40:AD47)=0,0,((AH40*AD40+AH41*AD41+AH42*AD42+AH43*AD43+AH44*AD44+AH45*AD45+AH46*AD46+AH47*AD47)/(SUM(AD40:AD47)))) -> 0 | AE246: =IF(SUM(AD48:AD49)=0,0,((AD48*AH48+AD49*AH49)/(SUM(AD48:AD49)))) -> 0 | AO246: Průčelní stěny | AU246: =IF(SUM(AX40:AX47)=0,0,((BB40*AX40+BB41*AX41+BB42*AX42+BB43*AX43+BB44*AX44+BB45*AX45+BB46*AX46+BB47*AX47)/(SUM(AX40:AX47)))) -> 0 | AV246: =IF(SUM(AX40:AX47)=0,0,((BB40*AX40+BB41*AX41+BB42*AX42+BB43*AX43+BB44*AX44+BB45*AX45+BB46*AX46+BB47*AX47)/(SUM(AX40:AX47)))) -> 0 | AW246: =IF(SUM(AX40:AX47)=0,0,((BB40*AX40+BB41*AX41+BB42*AX42+BB43*AX43+BB44*AX44+BB45*AX45+BB46*AX46+BB47*AX47)/(SUM(AX40:AX47)))) -> 0 | AX246: =IF(SUM(AX40:AX47)=0,0,((BB40*AX40+BB41*AX41+BB42*AX42+BB43*AX43+BB44*AX44+BB45*AX45+BB46*AX46+BB47*AX47)/(SUM(AX40:AX47)))) -> 0 | AY246: =IF(SUM(AX48:AX49)=0,0,((AX48*BB48+AX49*BB49)/(SUM(AX48:AX49)))) -> 0
A248: Sběrná plocha oken | G248: S | H248: J | I248: V | J248: Z | K248: H | U248: Sběrná plocha oken | AA248: S | AB248: J | AC248: V | AD248: Z | AE248: H | AO248: Sběrná plocha oken | AU248: S | AV248: J | AW248: V | AX248: Z | AY248: H
A249: Průčelní stěny | E249: [m2] | G249: =G225*G228*G231*G234*G237*G240*G243*G246 -> 0 | H249: =H225*H228*H231*H234*H237*H240*H243*H246 -> 0 | I249: 0 | J249: 0 | K249: 0 | U249: Průčelní stěny | Y249: [m2] | AA249: =AA225*AA228*AA231*AA234*AA237*AA240*AA243*AA246 -> 0 | AB249: =AB225*AB228*AB231*AB234*AB237*AB240*AB243*AB246 -> 0 | AC249: 0 | AD249: 0 | AE249: 0 | AO249: Průčelní stěny | AS249: [m2] | AU249: =AU225*AU228*AU231*AU234*AU237*AU240*AU243*AU246 -> 0 | AV249: =AV225*AV228*AV231*AV234*AV237*AV240*AV243*AV246 -> 0 | AW249: 0 | AX249: 0 | AY249: 0
E251: [m2] | G251: =G249 -> 0 | H251: =H249 -> 0 | I251: 0 | J251: 0 | K251: 0 | Y251: [m2] | AA251: =AA249 -> 0 | AB251: =AB249 -> 0 | AC251: 0 | AD251: 0 | AE251: 0 | AS251: [m2] | AU251: =AU249 -> 0 | AV251: =AV249 -> 0 | AW251: 0 | AX251: 0 | AY251: 0
A253: Celkem | E253: [m2] | G253: =SUM(G251:K251) -> 0 | U253: Celkem | Y253: [m2] | AA253: =SUM(AA251:AE251) -> 0 | AO253: Celkem | AS253: [m2] | AU253: =SUM(AU251:AY251) -> 0
A255: Měsíc | H255: leden | I255: únor | J255: březen | K255: duben | L255: květen | M255: červen | N255: červenec | O255: srpen | P255: září | Q255: říjen | R255: listopad | S255: prosinec | U255: Měsíc | AB255: leden | AC255: únor | AD255: březen | AE255: duben | AF255: květen | AG255: červen | AH255: červenec | AI255: srpen | AJ255: září | AK255: říjen | AL255: listopad | AM255: prosinec | AO255: Měsíc | AV255: leden | AW255: únor | AX255: březen | AY255: duben | AZ255: květen | BA255: červen | BB255: červenec | BC255: srpen | BD255: září | BE255: říjen | BF255: listopad | BG255: prosinec
A256: Délka | D256: t | E256: [dny] | G256: =SUM(H256:S256) -> 365 | H256: 31 | I256: 28 | J256: 31 | K256: 30 | L256: 31 | M256: 30 | N256: 31 | O256: 31 | P256: 30 | Q256: 31 | R256: 30 | S256: 31 | U256: Délka | X256: t | Y256: [dny] | AA256: =SUM(AB256:AM256) -> 365 | AB256: 31 | AC256: 28 | AD256: 31 | AE256: 30 | AF256: 31 | AG256: 30 | AH256: 31 | AI256: 31 | AJ256: 30 | AK256: 31 | AL256: 30 | AM256: 31 | AO256: Délka | AR256: t | AS256: [dny] | AU256: =SUM(AV256:BG256) -> 365 | AV256: 31 | AW256: 28 | AX256: 31 | AY256: 30 | AZ256: 31 | BA256: 30 | BB256: 31 | BC256: 31 | BD256: 30 | BE256: 31 | BF256: 30 | BG256: 31
A257: Počet hodin | D257: t | E257: [h] | G257: =24*G256 -> 8760 | H257: =24*H256 -> 744 | I257: =24*I256 -> 672 | J257: =24*J256 -> 744 | K257: =24*K256 -> 720 | L257: =24*L256 -> 744 | M257: 720 | N257: 744 | O257: 744 | P257: 720 | Q257: 744 | R257: 720 | S257: 744 | U257: Počet hodin | X257: t | Y257: [h] | AA257: =24*AA256 -> 8760 | AB257: =24*AB256 -> 744 | AC257: =24*AC256 -> 672 | AD257: =24*AD256 -> 744 | AE257: =24*AE256 -> 720 | AF257: =24*AF256 -> 744 | AG257: 720 | AH257: 744 | AI257: 744 | AJ257: 720 | AK257: 744 | AL257: 720 | AM257: 744 | AO257: Počet hodin | AR257: t | AS257: [h] | AU257: =24*AU256 -> 8760 | AV257: =24*AV256 -> 744 | AW257: =24*AW256 -> 672 | AX257: =24*AX256 -> 744 | AY257: =24*AY256 -> 720 | AZ257: =24*AZ256 -> 744 | BA257: 720 | BB257: 744 | BC257: 744 | BD257: 720 | BE257: 744 | BF257: 720 | BG257: 744
A258: Průměrná venkovní teplota | D258: Te | E258: [°C] | H258: =Data!O3 -> -1.3 | I258: =Data!P3 -> -0.1 | J258: =Data!Q3 -> 3.7 | K258: =Data!R3 -> 8.1 | L258: =Data!S3 -> 13.3 | M258: =Data!T3 -> 16.1 | N258: =Data!U3 -> 18 | O258: =Data!V3 -> 17.9 | P258: =Data!W3 -> 13.5 | Q258: =Data!X3 -> 8.3 | R258: =Data!Y3 -> 3.2 | S258: =Data!Z3 -> 0.5 | U258: Průměrná venkovní teplota | X258: Te | Y258: [°C] | AB258: =Data!O3 -> -1.3 | AC258: =Data!P3 -> -0.1 | AD258: =Data!Q3 -> 3.7 | AE258: =Data!R3 -> 8.1 | AF258: =Data!S3 -> 13.3 | AG258: =Data!T3 -> 16.1 | AH258: =Data!U3 -> 18 | AI258: =Data!V3 -> 17.9 | AJ258: =Data!W3 -> 13.5 | AK258: =Data!X3 -> 8.3 | AL258: =Data!Y3 -> 3.2 | AM258: =Data!Z3 -> 0.5 | AO258: Průměrná venkovní teplota | AR258: Te | AS258: [°C] | AV258: =Data!O3 -> -1.3 | AW258: =Data!P3 -> -0.1 | AX258: =Data!Q3 -> 3.7 | AY258: =Data!R3 -> 8.1 | AZ258: =Data!S3 -> 13.3 | BA258: =Data!T3 -> 16.1 | BB258: =Data!U3 -> 18 | BC258: =Data!V3 -> 17.9 | BD258: =Data!W3 -> 13.5 | BE258: =Data!X3 -> 8.3 | BF258: =Data!Y3 -> 3.2 | BG258: =Data!Z3 -> 0.5
A259: Teplotní rozdíl | D259: Dte | E259: [°C] | H259: =$G$181-H258 -> 21.3 | I259: 20.1 | J259: 16.3 | K259: 11.9 | L259: 6.7 | M259: 3.9 | N259: 2 | O259: 2.1 | P259: 6.5 | Q259: 11.7 | R259: 16.8 | S259: 19.5 | U259: Teplotní rozdíl | X259: Dte | Y259: [°C] | AB259: =$G$181-AB258 -> 21.3 | AC259: 20.1 | AD259: 16.3 | AE259: 11.9 | AF259: 6.7 | AG259: 3.9 | AH259: 2 | AI259: 2.1 | AJ259: 6.5 | AK259: 11.7 | AL259: 16.8 | AM259: 19.5 | AO259: Teplotní rozdíl | AR259: Dte | AS259: [°C] | AV259: =$G$181-AV258 -> 21.3 | AW259: 20.1 | AX259: 16.3 | AY259: 11.9 | AZ259: 6.7 | BA259: 3.9 | BB259: 2 | BC259: 2.1 | BD259: 6.5 | BE259: 11.7 | BF259: 16.8 | BG259: 19.5
A261: Intenzita slunečního záření | H261: leden | I261: únor | J261: březen | K261: duben | L261: květen | M261: červen | N261: červenec | O261: srpen | P261: září | Q261: říjen | R261: listopad | S261: prosinec | U261: Intenzita slunečního záření | AB261: leden | AC261: únor | AD261: březen | AE261: duben | AF261: květen | AG261: červen | AH261: červenec | AI261: srpen | AJ261: září | AK261: říjen | AL261: listopad | AM261: prosinec | AO261: Intenzita slunečního záření | AV261: leden | AW261: únor | AX261: březen | AY261: duben | AZ261: květen | BA261: červen | BB261: červenec | BC261: srpen | BD261: září | BE261: říjen | BF261: listopad | BG261: prosinec
A262: S | D262: Is | E262: [kWh/m2] | H262: =Data!O4 -> 8.2 | I262: =Data!P4 -> 13.4 | J262: =Data!Q4 -> 25.3 | K262: =Data!R4 -> 36 | L262: =Data!S4 -> 49.1 | M262: =Data!T4 -> 51.8 | N262: =Data!U4 -> 51.3 | O262: =Data!V4 -> 42.4 | P262: =Data!W4 -> 28.8 | Q262: =Data!X4 -> 18.6 | R262: =Data!Y4 -> 9.4 | S262: =Data!Z4 -> 6 | U262: S | X262: Is | Y262: [kWh/m2] | AB262: =Data!O4 -> 8.2 | AC262: =Data!P4 -> 13.4 | AD262: =Data!Q4 -> 25.3 | AE262: =Data!R4 -> 36 | AF262: =Data!S4 -> 49.1 | AG262: =Data!T4 -> 51.8 | AH262: =Data!U4 -> 51.3 | AI262: =Data!V4 -> 42.4 | AJ262: =Data!W4 -> 28.8 | AK262: =Data!X4 -> 18.6 | AL262: =Data!Y4 -> 9.4 | AM262: =Data!Z4 -> 6 | AO262: S | AR262: Is | AS262: [kWh/m2] | AV262: =Data!O4 -> 8.2 | AW262: =Data!P4 -> 13.4 | AX262: =Data!Q4 -> 25.3 | AY262: =Data!R4 -> 36 | AZ262: =Data!S4 -> 49.1 | BA262: =Data!T4 -> 51.8 | BB262: =Data!U4 -> 51.3 | BC262: =Data!V4 -> 42.4 | BD262: =Data!W4 -> 28.8 | BE262: =Data!X4 -> 18.6 | BF262: =Data!Y4 -> 9.4 | BG262: =Data!Z4 -> 6
... 243 more rows

Sheet Citlivostni analyza 1) (hidden)
B2: Geometrické charakteristiky budovy
C3: 0.7 | D3: 0.9 | E3: 1 | F3: 1.1 | G3: 1.3
B4: Objem budovy V | C4: =$E$4*C3 -> 0 | D4: =$E$4*D3 -> 0 | E4: =SUM('1. PENB'!I13:I15) -> 0 | F4: =$E$4*F3 -> 0 | G4: =$E$4*G3 -> 0
C6: 0.7 | D6: 0.9 | E6: 1 | F6: 1.1 | G6: 1.3
B7: Celková plocha obálky budovy A | C7: =$E$7*C6 -> 0 | D7: =$E$7*D6 -> 0 | E7: =SUM('1. PENB'!I16:I18) -> 0 | F7: =$E$7*F6 -> 0 | G7: =$E$7*G6 -> 0
C9: 0.7 | D9: 0.9 | E9: 1 | F9: 1.1 | G9: 1.3
B10: Objemový faktor tvaru budovy A/V | C10: =$E$10*C9 ->  | D10: =$E$10*D9 ->  | E10: ='1. PENB'!I19 ->  | F10: =$E$10*F9 ->  | G10: =$E$10*G9 -> 
C12: 0.7 | D12: 0.9 | E12: 1 | F12: 1.1 | G12: 1.3
B13: Celková energeticky vztažná plocha budovy Ac | C13: =$E$13*C12 -> 0 | D13: =$E$13*D12 -> 0 | E13: ='1. PENB'!I20 -> 0 | F13: =$E$13*F12 -> 0 | G13: =$E$13*G12 -> 0
C15: 0.7 | D15: 0.9 | E15: 1 | F15: 1.1 | G15: 1.3
B16: Ht | C16: =$E$16*C15 -> 0 | D16: =$E$16*D15 -> 0 | E16: ='1. PENB'!I31 -> 0 | F16: =$E$16*F15 -> 0 | G16: =$E$16*G15 -> 0
C18: 0.7 | D18: 0.9 | E18: 1 | F18: 1.1 | G18: 1.3
B19: Uem | C19: =$E$19*C18 -> 0 | D19: =$E$19*D18 -> 0 | E19: =SUM('8. Tepelně tech. parametry'!G48:G49) -> 0 | F19: =$E$19*F18 -> 0 | G19: =$E$19*G18 -> 0

Sheet Citlivostni analyza 2) (hidden)
A2: TZB systémy
A3: b.1.a) vytápění
B5: 0.7 | C5: 0.9 | D5: 1 | E5: 1.1 | F5: 1.3
A6: 1.zdroj - ηH,gen | B6: =$D$6*B5 -> 0 | C6: =$D$6*C5 -> 0 | D6: =SUM('10. Vyhodnocení'!N12:O12) -> 0 | E6: =$D$6*E5 -> 0 | F6: =$D$6*F5 -> 0
B8: 0.7 | C8: 0.9 | D8: 1 | E8: 1.1 | F8: 1.3
A9: 1.zdroj - COP | B9: =$D$9*B8 -> 0 | C9: =$D$9*C8 -> 0 | D9: =SUM('10. Vyhodnocení'!P12) -> 0 | E9: =$D$9*E8 -> 0 | F9: =$D$9*F8 -> 0
B11: 0.7 | C11: 0.9 | D11: 1 | E11: 1.1 | F11: 1.3
A12: 2.zdroj - ηH,gen | B12: =$D$12*B11 -> 0 | C12: =$D$12*C11 -> 0 | D12: =SUM('10. Vyhodnocení'!N13:O13) -> 0 | E12: =$D$12*E11 -> 0 | F12: =$D$12*F11 -> 0
B14: 0.7 | C14: 0.9 | D14: 1 | E14: 1.1 | F14: 1.3
A15: 2.zdroj - COP | B15: =$D$15*B14 -> 0 | C15: =$D$15*C14 -> 0 | D15: =SUM('10. Vyhodnocení'!P13) -> 0 | E15: =$D$15*E14 -> 0 | F15: =$D$15*F14 -> 0
B17: 0.7 | C17: 0.9 | D17: 1 | E17: 1.1 | F17: 1.3
A18: 3.zdroj - ηH,gen | B18: =$D$18*B17 -> 0 | C18: =$D$18*C17 -> 0 | D18: =SUM('10. Vyhodnocení'!N14:O14) -> 0 | E18: =$D$18*E17 -> 0 | F18: =$D$18*F17 -> 0
B20: 0.7 | C20: 0.9 | D20: 1 | E20: 1.1 | F20: 1.3
A21: 3.zdroj - COP | B21: =$D$21*B20 -> 0 | C21: =$D$21*C20 -> 0 | D21: =SUM('10. Vyhodnocení'!P14) -> 0 | E21: =$D$21*E20 -> 0 | F21: =$D$21*F20 -> 0
B23: 0.7 | C23: 0.9 | D23: 1 | E23: 1.1 | F23: 1.3
A24: 4.zdroj - ηH,gen | B24: =$D$24*B23 -> 0 | C24: =$D$24*C23 -> 0 | D24: =SUM('10. Vyhodnocení'!N15:O15) -> 0 | E24: =$D$24*E23 -> 0 | F24: =$D$24*F23 -> 0
B26: 0.7 | C26: 0.9 | D26: 1 | E26: 1.1 | F26: 1.3
A27: 4.zdroj - COP | B27: =$D$27*B26 -> 0 | C27: =$D$27*C26 -> 0 | D27: =SUM('10. Vyhodnocení'!P15) -> 0 | E27: =$D$27*E26 -> 0 | F27: =$D$27*F26 -> 0
B29: 0.7 | C29: 0.9 | D29: 1 | E29: 1.1 | F29: 1.3
A30: 5.zdroj - ηH,gen | B30: =$D$30*B29 -> 0 | C30: =$D$30*C29 -> 0 | D30: =SUM('10. Vyhodnocení'!N16:O16) -> 0 | E30: =$D$30*E29 -> 0 | F30: =$D$30*F29 -> 0
B32: 0.7 | C32: 0.9 | D32: 1 | E32: 1.1 | F32: 1.3
A33: 5.zdroj - COP | B33: =$D$33*B32 -> 0 | C33: =$D$33*C32 -> 0 | D33: =SUM('10. Vyhodnocení'!P16) -> 0 | E33: =$D$33*E32 -> 0 | F33: =$D$33*F32 -> 0
B35: 0.7 | C35: 0.9 | D35: 1 | E35: 1.1 | F35: 1.3
A36: 1.zdroj - účinnost distribuce | B36: =$D$36*B35 -> 0 | C36: =$D$36*C35 -> 0 | D36: =SUM('10. Vyhodnocení'!Q12:R12) -> 0 | E36: =$D$36*E35 -> 0 | F36: =$D$36*F35 -> 0
B38: 0.7 | C38: 0.9 | D38: 1 | E38: 1.1 | F38: 1.3
A39: 2.zdroj - účinnost distribuce | B39: =$D$39*B38 -> 0 | C39: =$D$39*C38 -> 0 | D39: =SUM('10. Vyhodnocení'!Q13:R13) -> 0 | E39: =$D$39*E38 -> 0 | F39: =$D$39*F38 -> 0
B41: 0.7 | C41: 0.9 | D41: 1 | E41: 1.1 | F41: 1.3
A42: 3.zdroj - účinnost distribuce | B42: =$D$42*B41 -> 0 | C42: =$D$42*C41 -> 0 | D42: =SUM('10. Vyhodnocení'!Q14:R14) -> 0 | E42: =$D$42*E41 -> 0 | F42: =$D$42*F41 -> 0
B44: 0.7 | C44: 0.9 | D44: 1 | E44: 1.1 | F44: 1.3
A45: 4.zdroj - účinnost distribuce | B45: =$D$45*B44 -> 0 | C45: =$D$45*C44 -> 0 | D45: =SUM('10. Vyhodnocení'!Q15:R15) -> 0 | E45: =$D$45*E44 -> 0 | F45: =$D$45*F44 -> 0
B47: 0.7 | C47: 0.9 | D47: 1 | E47: 1.1 | F47: 1.3
A48: 5.zdroj - účinnost distribuce | B48: =$D$48*B47 -> 0 | C48: =$D$48*C47 -> 0 | D48: =SUM('10. Vyhodnocení'!Q16:R16) -> 0 | E48: =$D$48*E47 -> 0 | F48: =$D$48*F47 -> 0
B50: 0.7 | C50: 0.9 | D50: 1 | E50: 1.1 | F50: 1.3
A51: 1.zdroj - účinnost sdílení | B51: =$D$51*B50 -> 0 | C51: =$D$51*C50 -> 0 | D51: =SUM('10. Vyhodnocení'!S12:T12) -> 0 | E51: =$D$51*E50 -> 0 | F51: =$D$51*F50 -> 0
B53: 0.7 | C53: 0.9 | D53: 1 | E53: 1.1 | F53: 1.3
A54: 2.zdroj - účinnost sdílení | B54: =$D$54*B53 -> 0 | C54: =$D$54*C53 -> 0 | D54: =SUM('10. Vyhodnocení'!S13:T13) -> 0 | E54: =$D$54*E53 -> 0 | F54: =$D$54*F53 -> 0
B56: 0.7 | C56: 0.9 | D56: 1 | E56: 1.1 | F56: 1.3
A57: 3.zdroj - účinnost sdílení | B57: =$D$57*B56 -> 0 | C57: =$D$57*C56 -> 0 | D57: =SUM('10. Vyhodnocení'!S14:T14) -> 0 | E57: =$D$57*E56 -> 0 | F57: =$D$57*F56 -> 0
B59: 0.7 | C59: 0.9 | D59: 1 | E59: 1.1 | F59: 1.3
A60: 4.zdroj - účinnost sdílení | B60: =$D$60*B59 -> 0 | C60: =$D$60*C59 -> 0 | D60: =SUM('10. Vyhodnocení'!S15:T15) -> 0 | E60: =$D$60*E59 -> 0 | F60: =$D$60*F59 -> 0
B62: 0.7 | C62: 0.9 | D62: 1 | E62: 1.1 | F62: 1.3
A63: 5.zdroj - účinnost sdílení | B63: =$D$63*B62 -> 0 | C63: =$D$63*C62 -> 0 | D63: =SUM('10. Vyhodnocení'!S16:T16) -> 0 | E63: =$D$63*E62 -> 0 | F63: =$D$63*F62 -> 0 | P63: kwh/(m2.rok)
B65: 0.7 | C65: 0.9 | D65: 1 | E65: 1.1 | F65: 1.3 | N65: 0.7 | O65: 0.9 | P65: 1 | Q65: 1.1 | R65: 1.3
A66: Potřeba energie na vytápění hodnocené budovy | B66: =$D$66*B65 -> 0 | C66: =$D$66*C65 -> 0 | D66: =SUM('10. Vyhodnocení'!Q21:R21) -> 0 | E66: =$D$66*E65 -> 0 | F66: =$D$66*F65 -> 0 | M66: Potřeba energie na vytápění hodnocené budovy | N66: =$P$66*N65 -> 0 | O66: =$P$66*O65 -> 0 | P66: =SUM('10. Vyhodnocení'!L21:M21) -> 0 | Q66: =$P$66*Q65 -> 0 | R66: =$P$66*R65 -> 0
B68: 0.7 | C68: 0.9 | D68: 1 | E68: 1.1 | F68: 1.3 | N68: 0.7 | O68: 0.9 | P68: 1 | Q68: 1.1 | R68: 1.3
A69: Vypočtená spotřeba energie na vytápění hodnocené budovy | B69: =$D$69*B68 -> 0 | C69: =$D$69*C68 -> 0 | D69: =SUM('10. Vyhodnocení'!Q23:R23) -> 0 | E69: =$D$69*E68 -> 0 | F69: =$D$69*F68 -> 0 | M69: Vypočtená spotřeba energie na vytápění hodnocené budovy | N69: =$P$69*N68 -> 0 | O69: =$P$69*O68 -> 0 | P69: =SUM('10. Vyhodnocení'!L23:M23) -> 0 | Q69: =$P$69*Q68 -> 0 | R69: =$P$69*R68 -> 0
A71: b.2.a) chlazení
B72: 0.7 | C72: 0.9 | D72: 1 | E72: 1.1 | F72: 1.3
A73: EERC,gen | B73: =$D$73*B72 -> 0 | C73: =$D$73*C72 -> 0 | D73: =SUM('10. Vyhodnocení'!N31:P31) -> 0 | E73: =$D$73*E72 -> 0 | F73: =$D$73*F72 -> 0
B75: 0.7 | C75: 0.9 | D75: 1 | E75: 1.1 | F75: 1.3
A76: účinnost distribuce | B76: =$D$76*B75 -> 0 | C76: =$D$76*C75 -> 0 | D76: =SUM('10. Vyhodnocení'!Q31:R31) -> 0 | E76: =$D$76*E75 -> 0 | F76: =$D$76*F75 -> 0
B78: 0.7 | C78: 0.9 | D78: 1 | E78: 1.1 | F78: 1.3
A79: účinnost sdílení | B79: =$D$79*B78 -> 0 | C79: =$D$79*C78 -> 0 | D79: =SUM('10. Vyhodnocení'!S31:T31) -> 0 | E79: =$D$79*E78 -> 0 | F79: =$D$79*F78 -> 0 | P79: kwh/(m2.rok)
B81: 0.7 | C81: 0.9 | D81: 1 | E81: 1.1 | F81: 1.3 | N81: 0.7 | O81: 0.9 | P81: 1 | Q81: 1.1 | R81: 1.3
A82: Potřeba energie na chlazení hodnocené budovy | B82: =$D$82*B81 -> 0 | C82: =$D$82*C81 -> 0 | D82: =SUM('10. Vyhodnocení'!Q33:R33) -> 0 | E82: =$D$82*E81 -> 0 | F82: =$D$82*F81 -> 0 | M82: Potřeba energie na chlazení hodnocené budovy | N82: =$P$82*N81 -> 0 | O82: =$P$82*O81 -> 0 | P82: =SUM('10. Vyhodnocení'!L33:M33) -> 0 | Q82: =$P$82*Q81 -> 0 | R82: =$P$82*R81 -> 0
B83: 0.7 | C83: 0.9 | D83: 1 | E83: 1.1 | F83: 1.3 | N83: 0.7 | O83: 0.9 | P83: 1 | Q83: 1.1 | R83: 1.3
A84: Vypočtená spotřeba energie na chlazení hodnocené budovy | B84: =$D$84*B83 -> 0 | C84: =$D$84*C83 -> 0 | D84: =SUM('10. Vyhodnocení'!Q35:R35) -> 0 | E84: =$D$84*E83 -> 0 | F84: =$D$84*F83 -> 0 | M84: Vypočtená spotřeba energie na chlazení hodnocené budovy | N84: =$P$84*N83 -> 0 | O84: =$P$84*O83 -> 0 | P84: =SUM('10. Vyhodnocení'!L35:M35) -> 0 | Q84: =$P$84*Q83 -> 0 | R84: =$P$84*R83 -> 0
A87: b.3) větrání
B88: 0.7 | C88: 0.9 | D88: 1 | E88: 1.1 | F88: 1.3
A89: Měrný příkon ventilátorů | B89: =$D$89*B88 -> 0 | C89: =$D$89*C88 -> 0 | D89: =SUM('10. Vyhodnocení'!S43:T43) -> 0 | E89: =$D$89*E88 -> 0 | F89: =$D$89*F88 -> 0 | P89: kwh/(m2.rok)
B91: 0.7 | C91: 0.9 | D91: 1 | E91: 1.1 | F91: 1.3 | N91: 0.7 | O91: 0.9 | P91: 1 | Q91: 1.1 | R91: 1.3
A92: Vypočtená spotřeba energie na nucené větrání | B92: =$D$92*B91 -> 0 | C92: =$D$92*C91 -> 0 | D92: =SUM('10. Vyhodnocení'!Q45:R45) -> 0 | E92: =$D$92*E91 -> 0 | F92: =$D$92*F91 -> 0 | M92: Vypočtená spotřeba energie na nucené větrání | N92: =$P$92*N91 -> 0 | O92: =$P$92*O91 -> 0 | P92: =SUM('10. Vyhodnocení'!L45:M45) -> 0 | Q92: =$P$92*Q91 -> 0 | R92: =$P$92*R91 -> 0
A95: b.5.a) příprava teplé vody (TV)
B96: 0.7 | C96: 0.9 | D96: 1 | E96: 1.1 | F96: 1.3
A97: 1.zdroj - ηH,gen | B97: =$D$97*B96 -> 0 | C97: =$D$97*C96 -> 0 | D97: =SUM('10. Vyhodnocení'!N64:O64) -> 0 | E97: =$D$97*E96 -> 0 | F97: =$D$97*F96 -> 0
B99: 0.7 | C99: 0.9 | D99: 1 | E99: 1.1 | F99: 1.3
A100: 1.zdroj - COP | B100: =$D$100*B99 -> 0 | C100: =$D$100*C99 -> 0 | D100: =SUM('10. Vyhodnocení'!P64) -> 0 | E100: =$D$100*E99 -> 0 | F100: =$D$100*F99 -> 0
B102: 0.7 | C102: 0.9 | D102: 1 | E102: 1.1 | F102: 1.3
A103: 2.zdroj - ηH,gen | B103: =$D$103*B102 -> 0 | C103: =$D$103*C102 -> 0 | D103: =SUM('10. Vyhodnocení'!N65:O65) -> 0 | E103: =$D$103*E102 -> 0 | F103: =$D$103*F102 -> 0
B105: 0.7 | C105: 0.9 | D105: 1 | E105: 1.1 | F105: 1.3
A106: 2.zdroj - COP | B106: =$D$106*B105 -> 0 | C106: =$D$106*C105 -> 0 | D106: =SUM('10. Vyhodnocení'!P65) -> 0 | E106: =$D$106*E105 -> 0 | F106: =$D$106*F105 -> 0
B108: 0.7 | C108: 0.9 | D108: 1 | E108: 1.1 | F108: 1.3
A109: 3.zdroj - ηH,gen | B109: =$D$109*B108 -> 0 | C109: =$D$109*C108 -> 0 | D109: =SUM('10. Vyhodnocení'!N66:O66) -> 0 | E109: =$D$109*E108 -> 0 | F109: =$D$109*F108 -> 0
B111: 0.7 | C111: 0.9 | D111: 1 | E111: 1.1 | F111: 1.3
A112: 3.zdroj - COP | B112: =$D$112*B111 -> 0 | C112: =$D$112*C111 -> 0 | D112: =SUM('10. Vyhodnocení'!P66) -> 0 | E112: =$D$112*E111 -> 0 | F112: =$D$112*F111 -> 0
B114: 0.7 | C114: 0.9 | D114: 1 | E114: 1.1 | F114: 1.3
A115: 1.zdroj - Měrná ztráta zásobníku | B115: =$D$115*B114 -> 0 | C115: =$D$115*C114 -> 0 | D115: =SUM('10. Vyhodnocení'!Q64:R64) -> 0 | E115: =$D$115*E114 -> 0 | F115: =$D$115*F114 -> 0
B117: 0.7 | C117: 0.9 | D117: 1 | E117: 1.1 | F117: 1.3
A118: 2.zdroj - Měrná ztráta zásobníku | B118: =$D$118*B117 -> 0 | C118: =$D$118*C117 -> 0 | D118: =SUM('10. Vyhodnocení'!Q65:R65) -> 0 | E118: =$D$118*E117 -> 0 | F118: =$D$118*F117 -> 0
B120: 0.7 | C120: 0.9 | D120: 1 | E120: 1.1 | F120: 1.3
A121: 3.zdroj - Měrná ztráta zásobníku | B121: =$D$121*B120 -> 0 | C121: =$D$121*C120 -> 0 | D121: =SUM('10. Vyhodnocení'!Q66:R66) -> 0 | E121: =$D$121*E120 -> 0 | F121: =$D$121*F120 -> 0 | P121: kwh/(m2.rok)
B123: 0.7 | C123: 0.9 | D123: 1 | E123: 1.1 | F123: 1.3 | N123: 0.7 | O123: 0.9 | P123: 1 | Q123: 1.1 | R123: 1.3
A124: Potřeba energie na přípravu teplé vody | B124: =$D$124*B123 -> 0 | C124: =$D$124*C123 -> 0 | D124: =SUM('10. Vyhodnocení'!Q69:R69) -> 0 | E124: =$D$124*E123 -> 0 | F124: =$D$124*F123 -> 0 | M124: Potřeba energie na přípravu teplé vody | N124: =$P$124*N123 -> 0 | O124: =$P$124*O123 -> 0 | P124: =SUM('10. Vyhodnocení'!L69:M69) -> 0 | Q124: =$P$124*Q123 -> 0 | R124: =$P$124*R123 -> 0
B126: 0.7 | C126: 0.9 | D126: 1 | E126: 1.1 | F126: 1.3 | N126: 0.7 | O126: 0.9 | P126: 1 | Q126: 1.1 | R126: 1.3
A127: Vypočtená spotřeba energie na přípravu teplé vody | B127: =$D$127*B126 -> 0 | C127: =$D$127*C126 -> 0 | D127: =SUM('10. Vyhodnocení'!Q71:R71) -> 0 | E127: =$D$127*E126 -> 0 | F127: =$D$127*F126 -> 0 | M127: Vypočtená spotřeba energie na přípravu teplé vody | N127: =$P$127*N126 -> 0 | O127: =$P$127*O126 -> 0 | P127: =SUM('10. Vyhodnocení'!L71:M71) -> 0 | Q127: =$P$127*Q126 -> 0 | R127: =$P$127*R126 -> 0
A130: b.6) osvětlení
B131: 0.7 | C131: 0.9 | D131: 1 | E131: 1.1 | F131: 1.3
A132: Průměrný příkon osvětlení | B132: =$D$132*B131 ->  | C132: =$D$132*C131 ->  | D132: =SUM('10. Vyhodnocení'!#REF!) ->  | E132: =$D$132*E131 ->  | F132: =$D$132*F131 -> 
B134: 0.7 | C134: 0.9 | D134: 1 | E134: 1.1 | F134: 1.3
A135: Závěrečná tabulka | B135: =$D$135*B134 ->  | C135: =$D$135*C134 ->  | D135: =SUM('10. Vyhodnocení'!#REF!) ->  | E135: =$D$135*E134 ->  | F135: =$D$135*F134 -> 
A137: d) rozdělení dílčích dodaných energií, celkové primární energie a neobnovitelné primární energie podle energonositelů | P137: kwh/(m2.rok)
B138: 0.7 | C138: 0.9 | D138: 1 | E138: 1.1 | F138: 1.3 | N138: 0.7 | O138: 0.9 | P138: 1 | Q138: 1.1 | R138: 1.3
A139: Celková dodaná energie | B139: =$D$139*B138 -> 0 | C139: =$D$139*C138 -> 0 | D139: =SUM('10. Vyhodnocení'!Q74:R74) -> 0 | E139: =$D$139*E138 -> 0 | F139: =$D$139*F138 -> 0 | M139: Celková dodaná energie | N139: =$P$139*N138 -> 0 | O139: =$P$139*O138 -> 0 | P139: =SUM('10. Vyhodnocení'!L74:M74) -> 0 | Q139: =$P$139*Q138 -> 0 | R139: =$P$139*R138 -> 0
B141: 0.7 | C141: 0.9 | D141: 1 | E141: 1.1 | F141: 1.3 | N141: 0.7 | O141: 0.9 | P141: 1 | Q141: 1.1 | R141: 1.3
A142: Celková primární energie | B142: =$D$142*B141 -> 0 | C142: =$D$142*C141 -> 0 | D142: =SUM('10. Vyhodnocení'!Q75:R75) -> 0 | E142: =$D$142*E141 -> 0 | F142: =$D$142*F141 -> 0 | M142: Celková primární energie | N142: =$P$142*N141 -> 0 | O142: =$P$142*O141 -> 0 | P142: =SUM('10. Vyhodnocení'!L75:M75) -> 0 | Q142: =$P$142*Q141 -> 0 | R142: =$P$142*R141 -> 0
B144: 0.7 | C144: 0.9 | D144: 1 | E144: 1.1 | F144: 1.3 | N144: 0.7 | O144: 0.9 | P144: 1 | Q144: 1.1 | R144: 1.3
A145: Neobnovitelná primární energie | B145: =$D$145*B144 -> 0 | C145: =$D$145*C144 -> 0 | D145: =SUM('10. Vyhodnocení'!Q76:R76) -> 0 | E145: =$D$145*E144 -> 0 | F145: =$D$145*F144 -> 0 | M145: Neobnovitelná primární energie | N145: =$P$145*N144 -> 0 | O145: =$P$145*O144 -> 0 | P145: =SUM('10. Vyhodnocení'!L76:M76) -> 0 | Q145: =$P$145*Q144 -> 0 | R145: =$P$145*R144 -> 0
B147: 0.7 | C147: 0.9 | D147: 1 | E147: 1.1 | F147: 1.3
A148: Využití obnovitelných zdrojů energie z hlediska primární energie | B148: =$D$148*B147 -> 0 | C148: =$D$148*C147 -> 0 | D148: =SUM('10. Vyhodnocení'!Q77:R77) -> 0 | E148: =$D$148*E147 -> 0 | F148: =$D$148*F147 -> 0

Sheet Help
C1: Nápověda
C3: Stavební konstrukce
B5: 1. | C5: Plocha konstrukcí se zadává v plošných metrech. Zadává se čistá plocha konstrukce po odečtení otvorových výplní. | D5: zpět
B7: 2. | C7: Zadávají se pouze konstrukce mezi vytápěnou částí a venkovním prostředím nebo mezi vytápěnou a nevytápěnou částí budovy. | D7: zpět
B9: 3. | C9: Kontrukce pod vytápěným prostorem mohou být buď podlaha na zemině nebo podlaha nad nevytápěným sklepem. | D9: zpět
B11: 4. | C11: U konstrukcí nad vytápěným prostorem se uvádějí tyto části: střecha nebo strop k nevytápěné půdě. Pokud je střecha bez zateplení, zadává se pouze strop pod půdou. | D11: zpět
B13: 5. | C13: Existující zateplení předpokládá jako izolant polystyren nebo minerální vatu. Pro termoizolační omítku zadejte poloviční hodnotu. | D13: zpět
B15: 6. | C15: Do objemu budovy se vkládá vypočtený objem vytápěné části budovy včetně všech vnitřních konstrukcí. Pro jednoduchý tvar je možné použít kalkulačku. | D15: zpět
C17: Technické systémy
B19: 1. | C19: V případech kdy ve vybraných možnostech není přesný typ (kotle, zásobníku, atd.), je nutné zvolit tak, aby se volba co nejvíce blížila skutečnému stavu. | D19: zpět
B21: 2. | C21: V případě, že v odstavci "b.3) větrání" nebude zvolen způsob výměny vzduchu, model bude vždy počítat s přirozeným způsobem větrání. | D21: zpět
B23: 3. | C23: V případech kdy je využíván zdroj jak na vytápění tak pro přípravu teplé vody. Lze v nabídce při zadávání 1. zdroje pro přípravu TV vybrat parametry zdrojů zadaných v části "b.1.a) vytápění". | D23: zpět
B25: 4. | C25: Při zadávání solárních kolektorů je lze zohlednit pouze ve výpočtu dodané energie pro přípravu teplé vody nebo zároveň i do výpočtu dodané energie na vytápění. Přednost má přitom vždy využití pro přípravu teplé vody. | D25: zpět
B27: 5. | C27: Plocha apertury - plocha otvoru, kterým vstupuje do kolektoru nesoustředěné sluneční záření. Hodnota je ve většině případů udávána jednotlivými výrobci fotovoltaických článků/solárních kolektorů. Hodnota je vždy menší než plocha celého kolektoru! | D27: zpět
